Workbook

Sheet General Model Paramaters
E2: Historic Periods | F2: ='Income Statement'!B14 -> Reclassified 12 months Dec-31-2008 | G2: ='Income Statement'!C14 -> Reclassified 12 months Dec-31-2009 | H2: ='Income Statement'!D14 -> 12 months Dec-31-2010 | I2: ='Income Statement'!E14 -> Reclassified 12 months Dec-31-2011 | J2: ='Income Statement'!F14 -> 12 months Dec-31-2012 | K2: ='Income Statement'!G14 -> LTM 12 months Mar-31-2013 | L2: ='Income Statement'!H14 -> 0 | M2: ='Income Statement'!I14 -> 0 | N2: ='Income Statement'!J14 -> 0 | O2: ='Income Statement'!K14 -> 0 | P2: ='Income Statement'!L14 -> 0 | Q2: ='Income Statement'!M14 -> 0 | R2: ='Income Statement'!N14 -> 0 | S2: ='Income Statement'!O14 -> 0 | T2: ='Income Statement'!P14 -> 0
E3: Year | F3: =VALUE(RIGHT(F2,4)) -> 2008 | G3: =VALUE(RIGHT(G2,4)) -> 2009 | H3: 2010 | I3: 2011 | J3: 2012 | K3: 2013 | L3: 0 | M3: 0 | N3: 0 | O3: 0 | P3: 0 | Q3: 0 | R3: 0 | S3: 0 | T3: 0
E4: Formatted | F4: =IF(F3<>0,VALUE(LEFT(F3,4))) -> 2008 | G4: =IF(G3<>0,VALUE(LEFT(G3,4))) -> 2009 | H4: 2010 | I4: 2011 | J4: 2012 | K4: 2013 | L4: FALSE | M4: FALSE | N4: FALSE | O4: FALSE | P4: FALSE | Q4: FALSE | R4: FALSE | S4: FALSE | T4: FALSE
E6: First Historic Period | F6: =MIN(4:4) -> 2008
E7: Last Historic Period | F7: 2012
E9: Valuation Year | F9: 2014
E10: Terminal Year | F10: 2019
E12: Cost of Equity | F12: =G12/1000 -> 0.1 | G12: 100
E13: Terminal Growth | F13: =G13/1000 -> 0.055 | G13: 55
E14: Max ROE vs COE | F14: =G14/1000 -> 0.07 | G14: 70 | M14: g=ROE x (1-DPO)
E15: Apply Normalised Earnings | F15: FALSE | M15: g/ROE = (1-DPO)
E16: Stable P/E Ratio | F16: =M19 -> 15.03267974 | M16: DPO = 1 - g/ROE
M18: (1-g/ROE/(k-g)
E19: Working Sheet | F19: =sheet_name(Working!$R$544) -> Working | M19: =(1-F13/(F12+F14))/(F12-F13) -> 15.03267974
E21: Model Test | F21: =Audit!C12 -> FALSE | G21: =Audit!D13 -> Balance SheetCap Adequacecy
E24: MB = | F24: 0.01729688742 | G24: + | H24: 9.75815516 | I24: x ROE

Sheet Summary
B7: Value - Dividend Growth | E7: =Working!G613 -> 18766.49877
B8: Value - Market to Book | E8: =Working!G624 -> 11138.84726
B9: Value - P/E Ratio | E9: =Working!G634 -> 16017.48356
B12: Cost of Equity | E12: ='General Model Paramaters'!F12 -> 0.1
B13: Terminal Growth | E13: ='General Model Paramaters'!F13 -> 0.055
B14: Terminal ROE/WACC Spread | E14: ='General Model Paramaters'!F14 -> 0.07
B16: Apply Stable Terminal

Sheet Working
A1: Time Line
B2: Year | G2: ='General Model Paramaters'!F6 -> 2008 | H2: =G2+1 -> 2009 | I2: =H2+1 -> 2010 | J2: 2011 | K2: 2012 | L2: 2013 | M2: 2014 | N2: 2015 | O2: 2016 | P2: 2017 | Q2: 2018 | R2: 2019 | S2: 2020 | T2: 2021 | U2: 2022 | V2: 2023 | W2: 2024 | X2: 2025 | Y2: 2026 | Z2: 2027 | AA2: 2028 | AB2: 2029 | AC2: 2030
B3: Historic Perid | F3: ='General Model Paramaters'!F7 -> 2012 | G3: =G2<=$F$3 -> TRUE | H3: TRUE | I3: TRUE | J3: TRUE | K3: TRUE | L3: FALSE | M3: FALSE | N3: FALSE | O3: FALSE | P3: FALSE | Q3: FALSE | R3: FALSE | S3: FALSE | T3: FALSE | U3: FALSE | V3: FALSE | W3: FALSE | X3: FALSE | Y3: FALSE | Z3: FALSE | AA3: FALSE | AB3: FALSE | AC3: FALSE
B4: Last Historic Period | G4: =G2=$F$3 -> FALSE | H4: =H2=$F$3 -> FALSE | I4: FALSE | J4: FALSE | K4: TRUE | L4: FALSE | M4: FALSE | N4: FALSE | O4: FALSE | P4: FALSE | Q4: FALSE | R4: FALSE | S4: FALSE | T4: FALSE | U4: FALSE | V4: FALSE | W4: FALSE | X4: FALSE | Y4: FALSE | Z4: FALSE | AA4: FALSE | AB4: FALSE | AC4: FALSE
A6: Historic Balance Sheet
B7: Assets
C8: ='Balance Sheet'!A17 -> Cash And Equivalents | G8: ='Balance Sheet'!B17 -> 18708327 | H8: ='Balance Sheet'!C17 -> 80474175 | I8: ='Balance Sheet'!D17 -> 66210486 | J8: ='Balance Sheet'!E17 -> 17294974 | K8: ='Balance Sheet'!F17 -> 43046602 | L8: ='Balance Sheet'!G17 -> 44254533 | M8: ='Balance Sheet'!H17 -> 0 | N8: ='Balance Sheet'!I17 -> 0 | O8: ='Balance Sheet'!J17 -> 0 | P8: ='Balance Sheet'!K17 -> 0 | Q8: ='Balance Sheet'!L17 -> 0 | R8: ='Balance Sheet'!M17 -> 0 | S8: ='Balance Sheet'!N17 -> 0 | T8: ='Balance Sheet'!O17 -> 0 | U8: ='Balance Sheet'!P17 -> 0 | V8: ='Balance Sheet'!Q17 -> 0 | W8: ='Balance Sheet'!R17 -> 0 | X8: ='Balance Sheet'!S17 -> 0 | Y8: ='Balance Sheet'!T17 -> 0 | Z8: ='Balance Sheet'!U17 -> 0 | AA8: ='Balance Sheet'!V17 -> 0 | AB8: ='Balance Sheet'!W17 -> 0 | AC8: ='Balance Sheet'!X17 -> 0
C10: ='Balance Sheet'!A19 -> Investment Securities | G10: ='Balance Sheet'!B19 -> 94677071 | H10: ='Balance Sheet'!C19 -> 58189032 | I10: ='Balance Sheet'!D19 -> 72374563 | J10: ='Balance Sheet'!E19 -> 111760755 | K10: ='Balance Sheet'!F19 -> 83048141 | L10: ='Balance Sheet'!G19 -> 77931798 | M10: ='Balance Sheet'!H19 -> 0 | N10: ='Balance Sheet'!I19 -> 0 | O10: ='Balance Sheet'!J19 -> 0 | P10: ='Balance Sheet'!K19 -> 0 | Q10: ='Balance Sheet'!L19 -> 0 | R10: ='Balance Sheet'!M19 -> 0 | S10: ='Balance Sheet'!N19 -> 0 | T10: ='Balance Sheet'!O19 -> 0 | U10: ='Balance Sheet'!P19 -> 0 | V10: ='Balance Sheet'!Q19 -> 0 | W10: ='Balance Sheet'!R19 -> 0 | X10: ='Balance Sheet'!S19 -> 0 | Y10: ='Balance Sheet'!T19 -> 0 | Z10: ='Balance Sheet'!U19 -> 0 | AA10: ='Balance Sheet'!V19 -> 0 | AB10: ='Balance Sheet'!W19 -> 0 | AC10: ='Balance Sheet'!X19 -> 0
C11: ='Balance Sheet'!A20 -> Trading Asset Securities | G11: ='Balance Sheet'!B20 -> 206766 | H11: ='Balance Sheet'!C20 -> 37410 | I11: ='Balance Sheet'!D20 -> 63966 | J11: ='Balance Sheet'!E20 -> 2567832 | K11: ='Balance Sheet'!F20 -> 1441725 | L11: ='Balance Sheet'!G20 -> 1850018 | M11: ='Balance Sheet'!H20 -> 0 | N11: ='Balance Sheet'!I20 -> 0 | O11: ='Balance Sheet'!J20 -> 0 | P11: ='Balance Sheet'!K20 -> 0 | Q11: ='Balance Sheet'!L20 -> 0 | R11: ='Balance Sheet'!M20 -> 0 | S11: ='Balance Sheet'!N20 -> 0 | T11: ='Balance Sheet'!O20 -> 0 | U11: ='Balance Sheet'!P20 -> 0 | V11: ='Balance Sheet'!Q20 -> 0 | W11: ='Balance Sheet'!R20 -> 0 | X11: ='Balance Sheet'!S20 -> 0 | Y11: ='Balance Sheet'!T20 -> 0 | Z11: ='Balance Sheet'!U20 -> 0 | AA11: ='Balance Sheet'!V20 -> 0 | AB11: ='Balance Sheet'!W20 -> 0 | AC11: ='Balance Sheet'!X20 -> 0
C12: ='Balance Sheet'!A21 -> Total Investments | G12: ='Balance Sheet'!B21 -> 94883837 | H12: ='Balance Sheet'!C21 -> 58226442 | I12: ='Balance Sheet'!D21 -> 72438529 | J12: ='Balance Sheet'!E21 -> 114328587 | K12: ='Balance Sheet'!F21 -> 84489866 | L12: ='Balance Sheet'!G21 -> 79781816 | M12: ='Balance Sheet'!H21 -> 0 | N12: ='Balance Sheet'!I21 -> 0 | O12: ='Balance Sheet'!J21 -> 0 | P12: ='Balance Sheet'!K21 -> 0 | Q12: ='Balance Sheet'!L21 -> 0 | R12: ='Balance Sheet'!M21 -> 0 | S12: ='Balance Sheet'!N21 -> 0 | T12: ='Balance Sheet'!O21 -> 0 | U12: ='Balance Sheet'!P21 -> 0 | V12: ='Balance Sheet'!Q21 -> 0 | W12: ='Balance Sheet'!R21 -> 0 | X12: ='Balance Sheet'!S21 -> 0 | Y12: ='Balance Sheet'!T21 -> 0 | Z12: ='Balance Sheet'!U21 -> 0 | AA12: ='Balance Sheet'!V21 -> 0 | AB12: ='Balance Sheet'!W21 -> 0 | AC12: ='Balance Sheet'!X21 -> 0
C14: ='Balance Sheet'!A23 -> Gross Loans | G14: ='Balance Sheet'!B23 -> 114242564 | H14: ='Balance Sheet'!C23 -> 125847866 | I14: ='Balance Sheet'!D23 -> 157577264 | J14: ='Balance Sheet'!E23 -> 206789521 | K14: ='Balance Sheet'!F23 -> 262881165 | L14: ='Balance Sheet'!G23 -> 271236575 | M14: ='Balance Sheet'!H23 -> 0 | N14: ='Balance Sheet'!I23 -> 0 | O14: ='Balance Sheet'!J23 -> 0 | P14: ='Balance Sheet'!K23 -> 0 | Q14: ='Balance Sheet'!L23 -> 0 | R14: ='Balance Sheet'!M23 -> 0 | S14: ='Balance Sheet'!N23 -> 0 | T14: ='Balance Sheet'!O23 -> 0 | U14: ='Balance Sheet'!P23 -> 0 | V14: ='Balance Sheet'!Q23 -> 0 | W14: ='Balance Sheet'!R23 -> 0 | X14: ='Balance Sheet'!S23 -> 0 | Y14: ='Balance Sheet'!T23 -> 0 | Z14: ='Balance Sheet'!U23 -> 0 | AA14: ='Balance Sheet'!V23 -> 0 | AB14: ='Balance Sheet'!W23 -> 0 | AC14: ='Balance Sheet'!X23 -> 0
C15: ='Balance Sheet'!A24 -> Allowance For Loan Losses | G15: ='Balance Sheet'!B24 -> -2794789 | H15: ='Balance Sheet'!C24 -> -4345084 | I15: ='Balance Sheet'!D24 -> -3949307 | J15: ='Balance Sheet'!E24 -> -3860505 | K15: ='Balance Sheet'!F24 -> -4105684 | L15: ='Balance Sheet'!G24 -> -4413962 | M15: ='Balance Sheet'!H24 -> 0 | N15: ='Balance Sheet'!I24 -> 0 | O15: ='Balance Sheet'!J24 -> 0 | P15: ='Balance Sheet'!K24 -> 0 | Q15: ='Balance Sheet'!L24 -> 0 | R15: ='Balance Sheet'!M24 -> 0 | S15: ='Balance Sheet'!N24 -> 0 | T15: ='Balance Sheet'!O24 -> 0 | U15: ='Balance Sheet'!P24 -> 0 | V15: ='Balance Sheet'!Q24 -> 0 | W15: ='Balance Sheet'!R24 -> 0 | X15: ='Balance Sheet'!S24 -> 0 | Y15: ='Balance Sheet'!T24 -> 0 | Z15: ='Balance Sheet'!U24 -> 0 | AA15: ='Balance Sheet'!V24 -> 0 | AB15: ='Balance Sheet'!W24 -> 0 | AC15: ='Balance Sheet'!X24 -> 0
C16: ='Balance Sheet'!A25 -> Other Adj. to Gross Loans | G16: ='Balance Sheet'!B25 -> -96 | H16: ='Balance Sheet'!C25 -> - | I16: ='Balance Sheet'!D25 -> -217556 | J16: ='Balance Sheet'!E25 -> -302967 | K16: ='Balance Sheet'!F25 -> -423851 | L16: ='Balance Sheet'!G25 -> -435197 | M16: ='Balance Sheet'!H25 -> 0 | N16: ='Balance Sheet'!I25 -> 0 | O16: ='Balance Sheet'!J25 -> 0 | P16: ='Balance Sheet'!K25 -> 0 | Q16: ='Balance Sheet'!L25 -> 0 | R16: ='Balance Sheet'!M25 -> 0 | S16: ='Balance Sheet'!N25 -> 0 | T16: ='Balance Sheet'!O25 -> 0 | U16: ='Balance Sheet'!P25 -> 0 | V16: ='Balance Sheet'!Q25 -> 0 | W16: ='Balance Sheet'!R25 -> 0 | X16: ='Balance Sheet'!S25 -> 0 | Y16: ='Balance Sheet'!T25 -> 0 | Z16: ='Balance Sheet'!U25 -> 0 | AA16: ='Balance Sheet'!V25 -> 0 | AB16: ='Balance Sheet'!W25 -> 0 | AC16: ='Balance Sheet'!X25 -> 0
C17: ='Balance Sheet'!A26 -> Net Loans | G17: ='Balance Sheet'!B26 -> 111447679 | H17: ='Balance Sheet'!C26 -> 121502782 | I17: ='Balance Sheet'!D26 -> 153410401 | J17: ='Balance Sheet'!E26 -> 202626049 | K17: ='Balance Sheet'!F26 -> 258351630 | L17: ='Balance Sheet'!G26 -> 266387416 | M17: ='Balance Sheet'!H26 -> 0 | N17: ='Balance Sheet'!I26 -> 0 | O17: ='Balance Sheet'!J26 -> 0 | P17: ='Balance Sheet'!K26 -> 0 | Q17: ='Balance Sheet'!L26 -> 0 | R17: ='Balance Sheet'!M26 -> 0 | S17: ='Balance Sheet'!N26 -> 0 | T17: ='Balance Sheet'!O26 -> 0 | U17: ='Balance Sheet'!P26 -> 0 | V17: ='Balance Sheet'!Q26 -> 0 | W17: ='Balance Sheet'!R26 -> 0 | X17: ='Balance Sheet'!S26 -> 0 | Y17: ='Balance Sheet'!T26 -> 0 | Z17: ='Balance Sheet'!U26 -> 0 | AA17: ='Balance Sheet'!V26 -> 0 | AB17: ='Balance Sheet'!W26 -> 0 | AC17: ='Balance Sheet'!X26 -> 0
C19: ='Balance Sheet'!A28 -> Gross Property, Plant & Equipment | G19: ='Balance Sheet'!B28 -> 5162253 | H19: ='Balance Sheet'!C28 -> 5913511 | I19: ='Balance Sheet'!D28 -> 6825205 | J19: ='Balance Sheet'!E28 -> 7818396 | K19: ='Balance Sheet'!F28 -> 10620365 | L19: ='Balance Sheet'!G28 -> 11113982 | M19: ='Balance Sheet'!H28 -> 0 | N19: ='Balance Sheet'!I28 -> 0 | O19: ='Balance Sheet'!J28 -> 0 | P19: ='Balance Sheet'!K28 -> 0 | Q19: ='Balance Sheet'!L28 -> 0 | R19: ='Balance Sheet'!M28 -> 0 | S19: ='Balance Sheet'!N28 -> 0 | T19: ='Balance Sheet'!O28 -> 0 | U19: ='Balance Sheet'!P28 -> 0 | V19: ='Balance Sheet'!Q28 -> 0 | W19: ='Balance Sheet'!R28 -> 0 | X19: ='Balance Sheet'!S28 -> 0 | Y19: ='Balance Sheet'!T28 -> 0 | Z19: ='Balance Sheet'!U28 -> 0 | AA19: ='Balance Sheet'!V28 -> 0 | AB19: ='Balance Sheet'!W28 -> 0 | AC19: ='Balance Sheet'!X28 -> 0
C20: ='Balance Sheet'!A29 -> Accumulated Depreciation | G20: ='Balance Sheet'!B29 -> -2517468 | H20: ='Balance Sheet'!C29 -> -2942242 | I20: ='Balance Sheet'!D29 -> -3418248 | J20: ='Balance Sheet'!E29 -> -3673737 | K20: ='Balance Sheet'!F29 -> -4213740 | L20: ='Balance Sheet'!G29 -> -4404490 | M20: ='Balance Sheet'!H29 -> 0 | N20: ='Balance Sheet'!I29 -> 0 | O20: ='Balance Sheet'!J29 -> 0 | P20: ='Balance Sheet'!K29 -> 0 | Q20: ='Balance Sheet'!L29 -> 0 | R20: ='Balance Sheet'!M29 -> 0 | S20: ='Balance Sheet'!N29 -> 0 | T20: ='Balance Sheet'!O29 -> 0 | U20: ='Balance Sheet'!P29 -> 0 | V20: ='Balance Sheet'!Q29 -> 0 | W20: ='Balance Sheet'!R29 -> 0 | X20: ='Balance Sheet'!S29 -> 0 | Y20: ='Balance Sheet'!T29 -> 0 | Z20: ='Balance Sheet'!U29 -> 0 | AA20: ='Balance Sheet'!V29 -> 0 | AB20: ='Balance Sheet'!W29 -> 0 | AC20: ='Balance Sheet'!X29 -> 0
C21: ='Balance Sheet'!A30 -> Net Property, Plant & Equipment | G21: ='Balance Sheet'!B30 -> 2644785 | H21: ='Balance Sheet'!C30 -> 2971269 | I21: ='Balance Sheet'!D30 -> 3406957 | J21: ='Balance Sheet'!E30 -> 4144659 | K21: ='Balance Sheet'!F30 -> 6406625 | L21: ='Balance Sheet'!G30 -> 6709492 | M21: ='Balance Sheet'!H30 -> 0 | N21: ='Balance Sheet'!I30 -> 0 | O21: ='Balance Sheet'!J30 -> 0 | P21: ='Balance Sheet'!K30 -> 0 | Q21: ='Balance Sheet'!L30 -> 0 | R21: ='Balance Sheet'!M30 -> 0 | S21: ='Balance Sheet'!N30 -> 0 | T21: ='Balance Sheet'!O30 -> 0 | U21: ='Balance Sheet'!P30 -> 0 | V21: ='Balance Sheet'!Q30 -> 0 | W21: ='Balance Sheet'!R30 -> 0 | X21: ='Balance Sheet'!S30 -> 0 | Y21: ='Balance Sheet'!T30 -> 0 | Z21: ='Balance Sheet'!U30 -> 0 | AA21: ='Balance Sheet'!V30 -> 0 | AB21: ='Balance Sheet'!W30 -> 0 | AC21: ='Balance Sheet'!X30 -> 0
C23: ='Balance Sheet'!A32 -> Other Receivables | G23: ='Balance Sheet'!B32 -> - | H23: ='Balance Sheet'!C32 -> - | I23: ='Balance Sheet'!D32 -> - | J23: ='Balance Sheet'!E32 -> 1273598 | K23: ='Balance Sheet'!F32 -> 1946793 | L23: ='Balance Sheet'!G32 -> 1514246 | M23: ='Balance Sheet'!H32 -> 0 | N23: ='Balance Sheet'!I32 -> 0 | O23: ='Balance Sheet'!J32 -> 0 | P23: ='Balance Sheet'!K32 -> 0 | Q23: ='Balance Sheet'!L32 -> 0 | R23: ='Balance Sheet'!M32 -> 0 | S23: ='Balance Sheet'!N32 -> 0 | T23: ='Balance Sheet'!O32 -> 0 | U23: ='Balance Sheet'!P32 -> 0 | V23: ='Balance Sheet'!Q32 -> 0 | W23: ='Balance Sheet'!R32 -> 0 | X23: ='Balance Sheet'!S32 -> 0 | Y23: ='Balance Sheet'!T32 -> 0 | Z23: ='Balance Sheet'!U32 -> 0 | AA23: ='Balance Sheet'!V32 -> 0 | AB23: ='Balance Sheet'!W32 -> 0 | AC23: ='Balance Sheet'!X32 -> 0
C24: ='Balance Sheet'!A33 -> Restricted Cash | G24: ='Balance Sheet'!B33 -> 9668608 | H24: ='Balance Sheet'!C33 -> 11511278 | I24: ='Balance Sheet'!D33 -> 20585480 | J24: ='Balance Sheet'!E33 -> 31881075 | K24: ='Balance Sheet'!F33 -> 33848000 | L24: ='Balance Sheet'!G33 -> 33549606 | M24: ='Balance Sheet'!H33 -> 0 | N24: ='Balance Sheet'!I33 -> 0 | O24: ='Balance Sheet'!J33 -> 0 | P24: ='Balance Sheet'!K33 -> 0 | Q24: ='Balance Sheet'!L33 -> 0 | R24: ='Balance Sheet'!M33 -> 0 | S24: ='Balance Sheet'!N33 -> 0 | T24: ='Balance Sheet'!O33 -> 0 | U24: ='Balance Sheet'!P33 -> 0 | V24: ='Balance Sheet'!Q33 -> 0 | W24: ='Balance Sheet'!R33 -> 0 | X24: ='Balance Sheet'!S33 -> 0 | Y24: ='Balance Sheet'!T33 -> 0 | Z24: ='Balance Sheet'!U33 -> 0 | AA24: ='Balance Sheet'!V33 -> 0 | AB24: ='Balance Sheet'!W33 -> 0 | AC24: ='Balance Sheet'!X33 -> 0
C25: ='Balance Sheet'!A34 -> Other Current Assets | G25: ='Balance Sheet'!B34 -> - | H25: ='Balance Sheet'!C34 -> - | I25: ='Balance Sheet'!D34 -> - | J25: ='Balance Sheet'!E34 -> - | K25: ='Balance Sheet'!F34 -> - | L25: ='Balance Sheet'!G34 -> - | M25: ='Balance Sheet'!H34 -> 0 | N25: ='Balance Sheet'!I34 -> 0 | O25: ='Balance Sheet'!J34 -> 0 | P25: ='Balance Sheet'!K34 -> 0 | Q25: ='Balance Sheet'!L34 -> 0 | R25: ='Balance Sheet'!M34 -> 0 | S25: ='Balance Sheet'!N34 -> 0 | T25: ='Balance Sheet'!O34 -> 0 | U25: ='Balance Sheet'!P34 -> 0 | V25: ='Balance Sheet'!Q34 -> 0 | W25: ='Balance Sheet'!R34 -> 0 | X25: ='Balance Sheet'!S34 -> 0 | Y25: ='Balance Sheet'!T34 -> 0 | Z25: ='Balance Sheet'!U34 -> 0 | AA25: ='Balance Sheet'!V34 -> 0 | AB25: ='Balance Sheet'!W34 -> 0 | AC25: ='Balance Sheet'!X34 -> 0
C26: ='Balance Sheet'!A35 -> Deferred Tax Assets, LT | G26: ='Balance Sheet'!B35 -> 770686 | H26: ='Balance Sheet'!C35 -> 1046739 | I26: ='Balance Sheet'!D35 -> 951767 | J26: ='Balance Sheet'!E35 -> 798382 | K26: ='Balance Sheet'!F35 -> 919802 | L26: ='Balance Sheet'!G35 -> 1015870 | M26: ='Balance Sheet'!H35 -> 0 | N26: ='Balance Sheet'!I35 -> 0 | O26: ='Balance Sheet'!J35 -> 0 | P26: ='Balance Sheet'!K35 -> 0 | Q26: ='Balance Sheet'!L35 -> 0 | R26: ='Balance Sheet'!M35 -> 0 | S26: ='Balance Sheet'!N35 -> 0 | T26: ='Balance Sheet'!O35 -> 0 | U26: ='Balance Sheet'!P35 -> 0 | V26: ='Balance Sheet'!Q35 -> 0 | W26: ='Balance Sheet'!R35 -> 0 | X26: ='Balance Sheet'!S35 -> 0 | Y26: ='Balance Sheet'!T35 -> 0 | Z26: ='Balance Sheet'!U35 -> 0 | AA26: ='Balance Sheet'!V35 -> 0 | AB26: ='Balance Sheet'!W35 -> 0 | AC26: ='Balance Sheet'!X35 -> 0
C27: ='Balance Sheet'!A36 -> Other Long-Term Assets | G27: ='Balance Sheet'!B36 -> 7445934 | H27: ='Balance Sheet'!C36 -> 6659639 | I27: ='Balance Sheet'!D36 -> 7415449 | J27: ='Balance Sheet'!E36 -> 9561029 | K27: ='Balance Sheet'!F36 -> 13984879 | L27: ='Balance Sheet'!G36 -> 14232020 | M27: ='Balance Sheet'!H36 -> 0 | N27: ='Balance Sheet'!I36 -> 0 | O27: ='Balance Sheet'!J36 -> 0 | P27: ='Balance Sheet'!K36 -> 0 | Q27: ='Balance Sheet'!L36 -> 0 | R27: ='Balance Sheet'!M36 -> 0 | S27: ='Balance Sheet'!N36 -> 0 | T27: ='Balance Sheet'!O36 -> 0 | U27: ='Balance Sheet'!P36 -> 0 | V27: ='Balance Sheet'!Q36 -> 0 | W27: ='Balance Sheet'!R36 -> 0 | X27: ='Balance Sheet'!S36 -> 0 | Y27: ='Balance Sheet'!T36 -> 0 | Z27: ='Balance Sheet'!U36 -> 0 | AA27: ='Balance Sheet'!V36 -> 0 | AB27: ='Balance Sheet'!W36 -> 0 | AC27: ='Balance Sheet'!X36 -> 0
C28: ='Balance Sheet'!A37 -> Total Assets | G28: ='Balance Sheet'!B37 -> 245569856 | H28: ='Balance Sheet'!C37 -> 282392324 | I28: ='Balance Sheet'!D37 -> 324419069 | J28: ='Balance Sheet'!E37 -> 381908353 | K28: ='Balance Sheet'!F37 -> 442994197 | L28: ='Balance Sheet'!G37 -> 447444999 | M28: ='Balance Sheet'!H37 -> 0 | N28: ='Balance Sheet'!I37 -> 0 | O28: ='Balance Sheet'!J37 -> 0 | P28: ='Balance Sheet'!K37 -> 0 | Q28: ='Balance Sheet'!L37 -> 0 | R28: ='Balance Sheet'!M37 -> 0 | S28: ='Balance Sheet'!N37 -> 0 | T28: ='Balance Sheet'!O37 -> 0 | U28: ='Balance Sheet'!P37 -> 0 | V28: ='Balance Sheet'!Q37 -> 0 | W28: ='Balance Sheet'!R37 -> 0 | X28: ='Balance Sheet'!S37 -> 0 | Y28: ='Balance Sheet'!T37 -> 0 | Z28: ='Balance Sheet'!U37 -> 0 | AA28: ='Balance Sheet'!V37 -> 0 | AB28: ='Balance Sheet'!W37 -> 0 | AC28: ='Balance Sheet'!X37 -> 0
B30: Liabilities and Capital | G30: ='Balance Sheet'!B39 -> 0 | H30: ='Balance Sheet'!C39 -> 0 | I30: ='Balance Sheet'!D39 -> 0 | J30: ='Balance Sheet'!E39 -> 0 | K30: ='Balance Sheet'!F39 -> 0 | L30: ='Balance Sheet'!G39 -> 0 | M30: ='Balance Sheet'!H39 -> 0 | N30: ='Balance Sheet'!I39 -> 0 | O30: ='Balance Sheet'!J39 -> 0 | P30: ='Balance Sheet'!K39 -> 0 | Q30: ='Balance Sheet'!L39 -> 0 | R30: ='Balance Sheet'!M39 -> 0 | S30: ='Balance Sheet'!N39 -> 0 | T30: ='Balance Sheet'!O39 -> 0 | U30: ='Balance Sheet'!P39 -> 0 | V30: ='Balance Sheet'!Q39 -> 0 | W30: ='Balance Sheet'!R39 -> 0 | X30: ='Balance Sheet'!S39 -> 0 | Y30: ='Balance Sheet'!T39 -> 0 | Z30: ='Balance Sheet'!U39 -> 0 | AA30: ='Balance Sheet'!V39 -> 0 | AB30: ='Balance Sheet'!W39 -> 0 | AC30: ='Balance Sheet'!X39 -> 0
C31: ='Balance Sheet'!A40 -> Accrued Exp. | G31: ='Balance Sheet'!B40 -> 150776 | H31: ='Balance Sheet'!C40 -> 162283 | I31: ='Balance Sheet'!D40 -> 171288 | J31: ='Balance Sheet'!E40 -> 3693094 | K31: ='Balance Sheet'!F40 -> 5620847 | L31: ='Balance Sheet'!G40 -> 7327942 | M31: ='Balance Sheet'!H40 -> 0 | N31: ='Balance Sheet'!I40 -> 0 | O31: ='Balance Sheet'!J40 -> 0 | P31: ='Balance Sheet'!K40 -> 0 | Q31: ='Balance Sheet'!L40 -> 0 | R31: ='Balance Sheet'!M40 -> 0 | S31: ='Balance Sheet'!N40 -> 0 | T31: ='Balance Sheet'!O40 -> 0 | U31: ='Balance Sheet'!P40 -> 0 | V31: ='Balance Sheet'!Q40 -> 0 | W31: ='Balance Sheet'!R40 -> 0 | X31: ='Balance Sheet'!S40 -> 0 | Y31: ='Balance Sheet'!T40 -> 0 | Z31: ='Balance Sheet'!U40 -> 0 | AA31: ='Balance Sheet'!V40 -> 0 | AB31: ='Balance Sheet'!W40 -> 0 | AC31: ='Balance Sheet'!X40 -> 0
C33: ='Balance Sheet'!A42 -> Interest Bearing Deposits | G33: ='Balance Sheet'!B42 -> 213577063 | H33: ='Balance Sheet'!C42 -> 247628653 | I33: ='Balance Sheet'!D42 -> 280983885 | J33: ='Balance Sheet'!E42 -> 327043182 | K33: ='Balance Sheet'!F42 -> 372837307 | L33: ='Balance Sheet'!G42 -> 370630838 | M33: ='Balance Sheet'!H42 -> 0 | N33: ='Balance Sheet'!I42 -> 0 | O33: ='Balance Sheet'!J42 -> 0 | P33: ='Balance Sheet'!K42 -> 0 | Q33: ='Balance Sheet'!L42 -> 0 | R33: ='Balance Sheet'!M42 -> 0 | S33: ='Balance Sheet'!N42 -> 0 | T33: ='Balance Sheet'!O42 -> 0 | U33: ='Balance Sheet'!P42 -> 0 | V33: ='Balance Sheet'!Q42 -> 0 | W33: ='Balance Sheet'!R42 -> 0 | X33: ='Balance Sheet'!S42 -> 0 | Y33: ='Balance Sheet'!T42 -> 0 | Z33: ='Balance Sheet'!U42 -> 0 | AA33: ='Balance Sheet'!V42 -> 0 | AB33: ='Balance Sheet'!W42 -> 0 | AC33: ='Balance Sheet'!X42 -> 0
C34: ='Balance Sheet'!A43 -> Total Deposits | G34: ='Balance Sheet'!B43 -> 213577063 | H34: ='Balance Sheet'!C43 -> 247628653 | I34: ='Balance Sheet'!D43 -> 280983885 | J34: ='Balance Sheet'!E43 -> 327043182 | K34: ='Balance Sheet'!F43 -> 372837307 | L34: ='Balance Sheet'!G43 -> 370630838 | M34: ='Balance Sheet'!H43 -> 0 | N34: ='Balance Sheet'!I43 -> 0 | O34: ='Balance Sheet'!J43 -> 0 | P34: ='Balance Sheet'!K43 -> 0 | Q34: ='Balance Sheet'!L43 -> 0 | R34: ='Balance Sheet'!M43 -> 0 | S34: ='Balance Sheet'!N43 -> 0 | T34: ='Balance Sheet'!O43 -> 0 | U34: ='Balance Sheet'!P43 -> 0 | V34: ='Balance Sheet'!Q43 -> 0 | W34: ='Balance Sheet'!R43 -> 0 | X34: ='Balance Sheet'!S43 -> 0 | Y34: ='Balance Sheet'!T43 -> 0 | Z34: ='Balance Sheet'!U43 -> 0 | AA34: ='Balance Sheet'!V43 -> 0 | AB34: ='Balance Sheet'!W43 -> 0 | AC34: ='Balance Sheet'!X43 -> 0
C36: ='Balance Sheet'!A45 -> Short-term Borrowings | G36: ='Balance Sheet'!B45 -> 220286 | H36: ='Balance Sheet'!C45 -> 417265 | I36: ='Balance Sheet'!D45 -> 432150 | J36: ='Balance Sheet'!E45 -> 74393 | K36: ='Balance Sheet'!F45 -> 173474 | L36: ='Balance Sheet'!G45 -> 455000 | M36: ='Balance Sheet'!H45 -> 0 | N36: ='Balance Sheet'!I45 -> 0 | O36: ='Balance Sheet'!J45 -> 0 | P36: ='Balance Sheet'!K45 -> 0 | Q36: ='Balance Sheet'!L45 -> 0 | R36: ='Balance Sheet'!M45 -> 0 | S36: ='Balance Sheet'!N45 -> 0 | T36: ='Balance Sheet'!O45 -> 0 | U36: ='Balance Sheet'!P45 -> 0 | V36: ='Balance Sheet'!Q45 -> 0 | W36: ='Balance Sheet'!R45 -> 0 | X36: ='Balance Sheet'!S45 -> 0 | Y36: ='Balance Sheet'!T45 -> 0 | Z36: ='Balance Sheet'!U45 -> 0 | AA36: ='Balance Sheet'!V45 -> 0 | AB36: ='Balance Sheet'!W45 -> 0 | AC36: ='Balance Sheet'!X45 -> 0
C37: ='Balance Sheet'!A46 -> Curr. Port. of LT Debt | G37: ='Balance Sheet'!B46 -> 11897 | H37: ='Balance Sheet'!C46 -> 310242 | I37: ='Balance Sheet'!D46 -> 753309 | J37: ='Balance Sheet'!E46 -> 924639 | K37: ='Balance Sheet'!F46 -> 981859 | L37: ='Balance Sheet'!G46 -> 980177 | M37: ='Balance Sheet'!H46 -> 0 | N37: ='Balance Sheet'!I46 -> 0 | O37: ='Balance Sheet'!J46 -> 0 | P37: ='Balance Sheet'!K46 -> 0 | Q37: ='Balance Sheet'!L46 -> 0 | R37: ='Balance Sheet'!M46 -> 0 | S37: ='Balance Sheet'!N46 -> 0 | T37: ='Balance Sheet'!O46 -> 0 | U37: ='Balance Sheet'!P46 -> 0 | V37: ='Balance Sheet'!Q46 -> 0 | W37: ='Balance Sheet'!R46 -> 0 | X37: ='Balance Sheet'!S46 -> 0 | Y37: ='Balance Sheet'!T46 -> 0 | Z37: ='Balance Sheet'!U46 -> 0 | AA37: ='Balance Sheet'!V46 -> 0 | AB37: ='Balance Sheet'!W46 -> 0 | AC37: ='Balance Sheet'!X46 -> 0
C38: ='Balance Sheet'!A47 -> Long-Term Debt | G38: ='Balance Sheet'!B47 -> 882170 | H38: ='Balance Sheet'!C47 -> 414414 | I38: ='Balance Sheet'!D47 -> 395194 | J38: ='Balance Sheet'!E47 -> 975567 | K38: ='Balance Sheet'!F47 -> 1543036 | L38: ='Balance Sheet'!G47 -> 1444158 | M38: ='Balance Sheet'!H47 -> 0 | N38: ='Balance Sheet'!I47 -> 0 | O38: ='Balance Sheet'!J47 -> 0 | P38: ='Balance Sheet'!K47 -> 0 | Q38: ='Balance Sheet'!L47 -> 0 | R38: ='Balance Sheet'!M47 -> 0 | S38: ='Balance Sheet'!N47 -> 0 | T38: ='Balance Sheet'!O47 -> 0 | U38: ='Balance Sheet'!P47 -> 0 | V38: ='Balance Sheet'!Q47 -> 0 | W38: ='Balance Sheet'!R47 -> 0 | X38: ='Balance Sheet'!S47 -> 0 | Y38: ='Balance Sheet'!T47 -> 0 | Z38: ='Balance Sheet'!U47 -> 0 | AA38: ='Balance Sheet'!V47 -> 0 | AB38: ='Balance Sheet'!W47 -> 0 | AC38: ='Balance Sheet'!X47 -> 0
C39: ='Balance Sheet'!A48 -> Curr. Income Taxes Payable | G39: ='Balance Sheet'!B48 -> 498436 | H39: ='Balance Sheet'!C48 -> 264191 | I39: ='Balance Sheet'!D48 -> 487315 | J39: ='Balance Sheet'!E48 -> 159860 | K39: ='Balance Sheet'!F48 -> 216614 | L39: ='Balance Sheet'!G48 -> 240807 | M39: ='Balance Sheet'!H48 -> 0 | N39: ='Balance Sheet'!I48 -> 0 | O39: ='Balance Sheet'!J48 -> 0 | P39: ='Balance Sheet'!K48 -> 0 | Q39: ='Balance Sheet'!L48 -> 0 | R39: ='Balance Sheet'!M48 -> 0 | S39: ='Balance Sheet'!N48 -> 0 | T39: ='Balance Sheet'!O48 -> 0 | U39: ='Balance Sheet'!P48 -> 0 | V39: ='Balance Sheet'!Q48 -> 0 | W39: ='Balance Sheet'!R48 -> 0 | X39: ='Balance Sheet'!S48 -> 0 | Y39: ='Balance Sheet'!T48 -> 0 | Z39: ='Balance Sheet'!U48 -> 0 | AA39: ='Balance Sheet'!V48 -> 0 | AB39: ='Balance Sheet'!W48 -> 0 | AC39: ='Balance Sheet'!X48 -> 0
C40: ='Balance Sheet'!A49 -> Other Current Liabilities | G40: ='Balance Sheet'!B49 -> 4243940 | H40: ='Balance Sheet'!C49 -> 2872778 | I40: ='Balance Sheet'!D49 -> 3556190 | J40: ='Balance Sheet'!E49 -> 4043322 | K40: ='Balance Sheet'!F49 -> 5839495 | L40: ='Balance Sheet'!G49 -> 5761451 | M40: ='Balance Sheet'!H49 -> 0 | N40: ='Balance Sheet'!I49 -> 0 | O40: ='Balance Sheet'!J49 -> 0 | P40: ='Balance Sheet'!K49 -> 0 | Q40: ='Balance Sheet'!L49 -> 0 | R40: ='Balance Sheet'!M49 -> 0 | S40: ='Balance Sheet'!N49 -> 0 | T40: ='Balance Sheet'!O49 -> 0 | U40: ='Balance Sheet'!P49 -> 0 | V40: ='Balance Sheet'!Q49 -> 0 | W40: ='Balance Sheet'!R49 -> 0 | X40: ='Balance Sheet'!S49 -> 0 | Y40: ='Balance Sheet'!T49 -> 0 | Z40: ='Balance Sheet'!U49 -> 0 | AA40: ='Balance Sheet'!V49 -> 0 | AB40: ='Balance Sheet'!W49 -> 0 | AC40: ='Balance Sheet'!X49 -> 0
C41: ='Balance Sheet'!A50 -> Pension & Other Post-Retire. Benefits | G41: ='Balance Sheet'!B50 -> 792603 | H41: ='Balance Sheet'!C50 -> 1021633 | I41: ='Balance Sheet'!D50 -> 2047252 | J41: ='Balance Sheet'!E50 -> 2251449 | K41: ='Balance Sheet'!F50 -> 2854612 | L41: ='Balance Sheet'!G50 -> 3016257 | M41: ='Balance Sheet'!H50 -> 0 | N41: ='Balance Sheet'!I50 -> 0 | O41: ='Balance Sheet'!J50 -> 0 | P41: ='Balance Sheet'!K50 -> 0 | Q41: ='Balance Sheet'!L50 -> 0 | R41: ='Balance Sheet'!M50 -> 0 | S41: ='Balance Sheet'!N50 -> 0 | T41: ='Balance Sheet'!O50 -> 0 | U41: ='Balance Sheet'!P50 -> 0 | V41: ='Balance Sheet'!Q50 -> 0 | W41: ='Balance Sheet'!R50 -> 0 | X41: ='Balance Sheet'!S50 -> 0 | Y41: ='Balance Sheet'!T50 -> 0 | Z41: ='Balance Sheet'!U50 -> 0 | AA41: ='Balance Sheet'!V50 -> 0 | AB41: ='Balance Sheet'!W50 -> 0 | AC41: ='Balance Sheet'!X50 -> 0
C42: ='Balance Sheet'!A51 -> Other Non-Current Liabilities | G42: ='Balance Sheet'!B51 -> 1913375 | H42: ='Balance Sheet'!C51 -> 1444172 | I42: ='Balance Sheet'!D51 -> 1484642 | J42: ='Balance Sheet'!E51 -> 715507 | K42: ='Balance Sheet'!F51 -> 1029011 | L42: ='Balance Sheet'!G51 -> 989067 | M42: ='Balance Sheet'!H51 -> 0 | N42: ='Balance Sheet'!I51 -> 0 | O42: ='Balance Sheet'!J51 -> 0 | P42: ='Balance Sheet'!K51 -> 0 | Q42: ='Balance Sheet'!L51 -> 0 | R42: ='Balance Sheet'!M51 -> 0 | S42: ='Balance Sheet'!N51 -> 0 | T42: ='Balance Sheet'!O51 -> 0 | U42: ='Balance Sheet'!P51 -> 0 | V42: ='Balance Sheet'!Q51 -> 0 | W42: ='Balance Sheet'!R51 -> 0 | X42: ='Balance Sheet'!S51 -> 0 | Y42: ='Balance Sheet'!T51 -> 0 | Z42: ='Balance Sheet'!U51 -> 0 | AA42: ='Balance Sheet'!V51 -> 0 | AB42: ='Balance Sheet'!W51 -> 0 | AC42: ='Balance Sheet'!X51 -> 0
C43: ='Balance Sheet'!A52 -> Total Liabilities | G43: ='Balance Sheet'!B52 -> 222290546 | H43: ='Balance Sheet'!C52 -> 254535631 | I43: ='Balance Sheet'!D52 -> 290311225 | J43: ='Balance Sheet'!E52 -> 339881013 | K43: ='Balance Sheet'!F52 -> 391096255 | L43: ='Balance Sheet'!G52 -> 390845697 | M43: ='Balance Sheet'!H52 -> 0 | N43: ='Balance Sheet'!I52 -> 0 | O43: ='Balance Sheet'!J52 -> 0 | P43: ='Balance Sheet'!K52 -> 0 | Q43: ='Balance Sheet'!L52 -> 0 | R43: ='Balance Sheet'!M52 -> 0 | S43: ='Balance Sheet'!N52 -> 0 | T43: ='Balance Sheet'!O52 -> 0 | U43: ='Balance Sheet'!P52 -> 0 | V43: ='Balance Sheet'!Q52 -> 0 | W43: ='Balance Sheet'!R52 -> 0 | X43: ='Balance Sheet'!S52 -> 0 | Y43: ='Balance Sheet'!T52 -> 0 | Z43: ='Balance Sheet'!U52 -> 0 | AA43: ='Balance Sheet'!V52 -> 0 | AB43: ='Balance Sheet'!W52 -> 0 | AC43: ='Balance Sheet'!X52 -> 0
C45: ='Balance Sheet'!A54 -> Common Stock | G45: ='Balance Sheet'!B54 -> 1540938 | H45: ='Balance Sheet'!C54 -> 1540938 | I45: ='Balance Sheet'!D54 -> 1540938 | J45: ='Balance Sheet'!E54 -> 1540938 | K45: ='Balance Sheet'!F54 -> 1540938 | L45: ='Balance Sheet'!G54 -> 1540938 | M45: ='Balance Sheet'!H54 -> 0 | N45: ='Balance Sheet'!I54 -> 0 | O45: ='Balance Sheet'!J54 -> 0 | P45: ='Balance Sheet'!K54 -> 0 | Q45: ='Balance Sheet'!L54 -> 0 | R45: ='Balance Sheet'!M54 -> 0 | S45: ='Balance Sheet'!N54 -> 0 | T45: ='Balance Sheet'!O54 -> 0 | U45: ='Balance Sheet'!P54 -> 0 | V45: ='Balance Sheet'!Q54 -> 0 | W45: ='Balance Sheet'!R54 -> 0 | X45: ='Balance Sheet'!S54 -> 0 | Y45: ='Balance Sheet'!T54 -> 0 | Z45: ='Balance Sheet'!U54 -> 0 | AA45: ='Balance Sheet'!V54 -> 0 | AB45: ='Balance Sheet'!W54 -> 0 | AC45: ='Balance Sheet'!X54 -> 0
C46: ='Balance Sheet'!A55 -> Additional Paid In Capital | G46: ='Balance Sheet'!B55 -> 3895933 | H46: ='Balance Sheet'!C55 -> 3895933 | I46: ='Balance Sheet'!D55 -> 3895933 | J46: ='Balance Sheet'!E55 -> 3895933 | K46: ='Balance Sheet'!F55 -> 4396429 | L46: ='Balance Sheet'!G55 -> 5711369 | M46: ='Balance Sheet'!H55 -> 0 | N46: ='Balance Sheet'!I55 -> 0 | O46: ='Balance Sheet'!J55 -> 0 | P46: ='Balance Sheet'!K55 -> 0 | Q46: ='Balance Sheet'!L55 -> 0 | R46: ='Balance Sheet'!M55 -> 0 | S46: ='Balance Sheet'!N55 -> 0 | T46: ='Balance Sheet'!O55 -> 0 | U46: ='Balance Sheet'!P55 -> 0 | V46: ='Balance Sheet'!Q55 -> 0 | W46: ='Balance Sheet'!R55 -> 0 | X46: ='Balance Sheet'!S55 -> 0 | Y46: ='Balance Sheet'!T55 -> 0 | Z46: ='Balance Sheet'!U55 -> 0 | AA46: ='Balance Sheet'!V55 -> 0 | AB46: ='Balance Sheet'!W55 -> 0 | AC46: ='Balance Sheet'!X55 -> 0
C47: ='Balance Sheet'!A56 -> Retained Earnings | G47: ='Balance Sheet'!B56 -> 18338392 | H47: ='Balance Sheet'!C56 -> 22587283 | I47: ='Balance Sheet'!D56 -> 28528020 | J47: ='Balance Sheet'!E56 -> 36581874 | K47: ='Balance Sheet'!F56 -> 45534178 | L47: ='Balance Sheet'!G56 -> 48426068 | M47: ='Balance Sheet'!H56 -> 0 | N47: ='Balance Sheet'!I56 -> 0 | O47: ='Balance Sheet'!J56 -> 0 | P47: ='Balance Sheet'!K56 -> 0 | Q47: ='Balance Sheet'!L56 -> 0 | R47: ='Balance Sheet'!M56 -> 0 | S47: ='Balance Sheet'!N56 -> 0 | T47: ='Balance Sheet'!O56 -> 0 | U47: ='Balance Sheet'!P56 -> 0 | V47: ='Balance Sheet'!Q56 -> 0 | W47: ='Balance Sheet'!R56 -> 0 | X47: ='Balance Sheet'!S56 -> 0 | Y47: ='Balance Sheet'!T56 -> 0 | Z47: ='Balance Sheet'!U56 -> 0 | AA47: ='Balance Sheet'!V56 -> 0 | AB47: ='Balance Sheet'!W56 -> 0 | AC47: ='Balance Sheet'!X56 -> 0
C48: ='Balance Sheet'!A57 -> Treasury Stock | G48: ='Balance Sheet'!B57 -> -808585 | H48: ='Balance Sheet'!C57 -> -808585 | I48: ='Balance Sheet'!D57 -> -808585 | J48: ='Balance Sheet'!E57 -> -808585 | K48: ='Balance Sheet'!F57 -> -617589 | L48: ='Balance Sheet'!G57 -> - | M48: ='Balance Sheet'!H57 -> 0 | N48: ='Balance Sheet'!I57 -> 0 | O48: ='Balance Sheet'!J57 -> 0 | P48: ='Balance Sheet'!K57 -> 0 | Q48: ='Balance Sheet'!L57 -> 0 | R48: ='Balance Sheet'!M57 -> 0 | S48: ='Balance Sheet'!N57 -> 0 | T48: ='Balance Sheet'!O57 -> 0 | U48: ='Balance Sheet'!P57 -> 0 | V48: ='Balance Sheet'!Q57 -> 0 | W48: ='Balance Sheet'!R57 -> 0 | X48: ='Balance Sheet'!S57 -> 0 | Y48: ='Balance Sheet'!T57 -> 0 | Z48: ='Balance Sheet'!U57 -> 0 | AA48: ='Balance Sheet'!V57 -> 0 | AB48: ='Balance Sheet'!W57 -> 0 | AC48: ='Balance Sheet'!X57 -> 0
C49: ='Balance Sheet'!A58 -> Comprehensive Inc. and Other | G49: ='Balance Sheet'!B58 -> 312632 | H49: ='Balance Sheet'!C58 -> 641124 | I49: ='Balance Sheet'!D58 -> 951538 | J49: ='Balance Sheet'!E58 -> 792756 | K49: ='Balance Sheet'!F58 -> 972819 | L49: ='Balance Sheet'!G58 -> 846897 | M49: ='Balance Sheet'!H58 -> 0 | N49: ='Balance Sheet'!I58 -> 0 | O49: ='Balance Sheet'!J58 -> 0 | P49: ='Balance Sheet'!K58 -> 0 | Q49: ='Balance Sheet'!L58 -> 0 | R49: ='Balance Sheet'!M58 -> 0 | S49: ='Balance Sheet'!N58 -> 0 | T49: ='Balance Sheet'!O58 -> 0 | U49: ='Balance Sheet'!P58 -> 0 | V49: ='Balance Sheet'!Q58 -> 0 | W49: ='Balance Sheet'!R58 -> 0 | X49: ='Balance Sheet'!S58 -> 0 | Y49: ='Balance Sheet'!T58 -> 0 | Z49: ='Balance Sheet'!U58 -> 0 | AA49: ='Balance Sheet'!V58 -> 0 | AB49: ='Balance Sheet'!W58 -> 0 | AC49: ='Balance Sheet'!X58 -> 0
C50: ='Balance Sheet'!A59 -> Total Common Equity | G50: ='Balance Sheet'!B59 -> 23279310 | H50: ='Balance Sheet'!C59 -> 27856693 | I50: ='Balance Sheet'!D59 -> 34107844 | J50: ='Balance Sheet'!E59 -> 42002916 | K50: ='Balance Sheet'!F59 -> 51826775 | L50: ='Balance Sheet'!G59 -> 56525272 | M50: ='Balance Sheet'!H59 -> 0 | N50: ='Balance Sheet'!I59 -> 0 | O50: ='Balance Sheet'!J59 -> 0 | P50: ='Balance Sheet'!K59 -> 0 | Q50: ='Balance Sheet'!L59 -> 0 | R50: ='Balance Sheet'!M59 -> 0 | S50: ='Balance Sheet'!N59 -> 0 | T50: ='Balance Sheet'!O59 -> 0 | U50: ='Balance Sheet'!P59 -> 0 | V50: ='Balance Sheet'!Q59 -> 0 | W50: ='Balance Sheet'!R59 -> 0 | X50: ='Balance Sheet'!S59 -> 0 | Y50: ='Balance Sheet'!T59 -> 0 | Z50: ='Balance Sheet'!U59 -> 0 | AA50: ='Balance Sheet'!V59 -> 0 | AB50: ='Balance Sheet'!W59 -> 0 | AC50: ='Balance Sheet'!X59 -> 0
C52: ='Balance Sheet'!A61 -> Minority Interest | G52: ='Balance Sheet'!B61 -> - | H52: ='Balance Sheet'!C61 -> - | I52: ='Balance Sheet'!D61 -> - | J52: ='Balance Sheet'!E61 -> 24424 | K52: ='Balance Sheet'!F61 -> 71167 | L52: ='Balance Sheet'!G61 -> 74030 | M52: ='Balance Sheet'!H61 -> 0 | N52: ='Balance Sheet'!I61 -> 0 | O52: ='Balance Sheet'!J61 -> 0 | P52: ='Balance Sheet'!K61 -> 0 | Q52: ='Balance Sheet'!L61 -> 0 | R52: ='Balance Sheet'!M61 -> 0 | S52: ='Balance Sheet'!N61 -> 0 | T52: ='Balance Sheet'!O61 -> 0 | U52: ='Balance Sheet'!P61 -> 0 | V52: ='Balance Sheet'!Q61 -> 0 | W52: ='Balance Sheet'!R61 -> 0 | X52: ='Balance Sheet'!S61 -> 0 | Y52: ='Balance Sheet'!T61 -> 0 | Z52: ='Balance Sheet'!U61 -> 0 | AA52: ='Balance Sheet'!V61 -> 0 | AB52: ='Balance Sheet'!W61 -> 0 | AC52: ='Balance Sheet'!X61 -> 0
C53: ='Balance Sheet'!A63 -> Total Equity | G53: ='Balance Sheet'!B63 -> 23279310 | H53: ='Balance Sheet'!C63 -> 27856693 | I53: ='Balance Sheet'!D63 -> 34107844 | J53: ='Balance Sheet'!E63 -> 42027340 | K53: ='Balance Sheet'!F63 -> 51897942 | L53: ='Balance Sheet'!G63 -> 56599302 | M53: ='Balance Sheet'!H63 -> 0 | N53: ='Balance Sheet'!I63 -> 0 | O53: ='Balance Sheet'!J63 -> 0 | P53: ='Balance Sheet'!K63 -> 0 | Q53: ='Balance Sheet'!L63 -> 0 | R53: ='Balance Sheet'!M63 -> 0 | S53: ='Balance Sheet'!N63 -> 0 | T53: ='Balance Sheet'!O63 -> 0 | U53: ='Balance Sheet'!P63 -> 0 | V53: ='Balance Sheet'!Q63 -> 0 | W53: ='Balance Sheet'!R63 -> 0 | X53: ='Balance Sheet'!S63 -> 0 | Y53: ='Balance Sheet'!T63 -> 0 | Z53: ='Balance Sheet'!U63 -> 0 | AA53: ='Balance Sheet'!V63 -> 0 | AB53: ='Balance Sheet'!W63 -> 0 | AC53: ='Balance Sheet'!X63 -> 0
C55: ='Balance Sheet'!A65 -> Total Liabilities And Equity | G55: ='Balance Sheet'!B65 -> 245569856 | H55: ='Balance Sheet'!C65 -> 282392324 | I55: ='Balance Sheet'!D65 -> 324419069 | J55: ='Balance Sheet'!E65 -> 381908353 | K55: ='Balance Sheet'!F65 -> 442994197 | L55: ='Balance Sheet'!G65 -> 447444999 | M55: ='Balance Sheet'!H65 -> 0 | N55: ='Balance Sheet'!I65 -> 0 | O55: ='Balance Sheet'!J65 -> 0 | P55: ='Balance Sheet'!K65 -> 0 | Q55: ='Balance Sheet'!L65 -> 0 | R55: ='Balance Sheet'!M65 -> 0 | S55: ='Balance Sheet'!N65 -> 0 | T55: ='Balance Sheet'!O65 -> 0 | U55: ='Balance Sheet'!P65 -> 0 | V55: ='Balance Sheet'!Q65 -> 0 | W55: ='Balance Sheet'!R65 -> 0 | X55: ='Balance Sheet'!S65 -> 0 | Y55: ='Balance Sheet'!T65 -> 0 | Z55: ='Balance Sheet'!U65 -> 0 | AA55: ='Balance Sheet'!V65 -> 0 | AB55: ='Balance Sheet'!W65 -> 0 | AC55: ='Balance Sheet'!X65 -> 0
C57: ='Industry Specific'!A17 -> Tier 1 Capital | G57: ='Industry Specific'!B17 -> 17095742 | H57: ='Industry Specific'!C17 -> 20215658 | I57: ='Industry Specific'!D17 -> 21670983 | J57: ='Industry Specific'!E17 -> 25920836 | K57: ='Industry Specific'!F17 -> - | L57: ='Industry Specific'!G17 -> - | M57: ='Industry Specific'!H17 -> 0 | N57: ='Industry Specific'!I17 -> 0 | O57: ='Industry Specific'!J17 -> 0 | P57: ='Industry Specific'!K17 -> 0 | Q57: ='Industry Specific'!L17 -> 0 | R57: ='Industry Specific'!M17 -> 0 | S57: ='Industry Specific'!N17 -> 0 | T57: ='Industry Specific'!O17 -> 0 | U57: ='Industry Specific'!P17 -> 0 | V57: ='Industry Specific'!Q17 -> 0 | W57: ='Industry Specific'!R17 -> 0 | X57: ='Industry Specific'!S17 -> 0 | Y57: ='Industry Specific'!T17 -> 0 | Z57: ='Industry Specific'!U17 -> 0 | AA57: ='Industry Specific'!V17 -> 0 | AB57: ='Industry Specific'!W17 -> 0 | AC57: ='Industry Specific'!X17 -> 0
C58: ='Industry Specific'!A18 -> Tier 2 Capital | G58: ='Industry Specific'!B18 -> 2296615 | H58: ='Industry Specific'!C18 -> 1677006 | I58: ='Industry Specific'!D18 -> 1161603 | J58: ='Industry Specific'!E18 -> 1801332 | K58: ='Industry Specific'!F18 -> - | L58: ='Industry Specific'!G18 -> - | M58: ='Industry Specific'!H18 -> 0 | N58: ='Industry Specific'!I18 -> 0 | O58: ='Industry Specific'!J18 -> 0 | P58: ='Industry Specific'!K18 -> 0 | Q58: ='Industry Specific'!L18 -> 0 | R58: ='Industry Specific'!M18 -> 0 | S58: ='Industry Specific'!N18 -> 0 | T58: ='Industry Specific'!O18 -> 0 | U58: ='Industry Specific'!P18 -> 0 | V58: ='Industry Specific'!Q18 -> 0 | W58: ='Industry Specific'!R18 -> 0 | X58: ='Industry Specific'!S18 -> 0 | Y58: ='Industry Specific'!T18 -> 0 | Z58: ='Industry Specific'!U18 -> 0 | AA58: ='Industry Specific'!V18 -> 0 | AB58: ='Industry Specific'!W18 -> 0 | AC58: ='Industry Specific'!X18 -> 0
C59: ='Industry Specific'!A19 -> Total Capital | G59: ='Industry Specific'!B19 -> 18590263 | H59: ='Industry Specific'!C19 -> 20876066 | I59: ='Industry Specific'!D19 -> 22832586 | J59: ='Industry Specific'!E19 -> 27722168 | K59: ='Industry Specific'!F19 -> - | L59: ='Industry Specific'!G19 -> - | M59: ='Industry Specific'!H19 -> 0 | N59: ='Industry Specific'!I19 -> 0 | O59: ='Industry Specific'!J19 -> 0 | P59: ='Industry Specific'!K19 -> 0 | Q59: ='Industry Specific'!L19 -> 0 | R59: ='Industry Specific'!M19 -> 0 | S59: ='Industry Specific'!N19 -> 0 | T59: ='Industry Specific'!O19 -> 0 | U59: ='Industry Specific'!P19 -> 0 | V59: ='Industry Specific'!Q19 -> 0 | W59: ='Industry Specific'!R19 -> 0 | X59: ='Industry Specific'!S19 -> 0 | Y59: ='Industry Specific'!T19 -> 0 | Z59: ='Industry Specific'!U19 -> 0 | AA59: ='Industry Specific'!V19 -> 0 | AB59: ='Industry Specific'!W19 -> 0 | AC59: ='Industry Specific'!X19 -> 0
A61: Income Statement
C62: ='Income Statement'!A17 -> Interest Income On Loans | G62: ='Income Statement'!B17 -> 18616168 | H62: ='Income Statement'!C17 -> 22081673 | I62: ='Income Statement'!D17 -> 20660602 | J62: ='Income Statement'!E17 -> 25783993 | K62: ='Income Statement'!F17 -> 28885290 | L62: ='Income Statement'!G17 -> 29754210 | M62: ='Income Statement'!H17 -> 0 | N62: ='Income Statement'!I17 -> 0 | O62: ='Income Statement'!J17 -> 0 | P62: ='Income Statement'!K17 -> 0 | Q62: ='Income Statement'!L17 -> 0 | R62: ='Income Statement'!M17 -> 0 | S62: ='Income Statement'!N17 -> 0 | T62: ='Income Statement'!O17 -> 0 | U62: ='Income Statement'!P17 -> 0 | V62: ='Income Statement'!Q17 -> 0 | W62: ='Income Statement'!R17 -> 0 | X62: ='Income Statement'!S17 -> 0 | Y62: ='Income Statement'!T17 -> 0 | Z62: ='Income Statement'!U17 -> 0 | AA62: ='Income Statement'!V17 -> 0 | AB62: ='Income Statement'!W17 -> 0 | AC62: ='Income Statement'!X17 -> 0 | AD62: ='Income Statement'!Y17 -> 0 | AE62: ='Income Statement'!Z17 -> 0 | AF62: ='Income Statement'!AA17 -> 0 | AG62: ='Income Statement'!AB17 -> 0 | AH62: ='Income Statement'!AC17 -> 0
C63: ='Income Statement'!A18 -> Total Interest Income | G63: ='Income Statement'!B18 -> 18616168 | H63: ='Income Statement'!C18 -> 22081673 | I63: ='Income Statement'!D18 -> 20660602 | J63: ='Income Statement'!E18 -> 25783993 | K63: ='Income Statement'!F18 -> 28885290 | L63: ='Income Statement'!G18 -> 29754210 | M63: ='Income Statement'!H18 -> 0 | N63: ='Income Statement'!I18 -> 0 | O63: ='Income Statement'!J18 -> 0 | P63: ='Income Statement'!K18 -> 0 | Q63: ='Income Statement'!L18 -> 0 | R63: ='Income Statement'!M18 -> 0 | S63: ='Income Statement'!N18 -> 0 | T63: ='Income Statement'!O18 -> 0 | U63: ='Income Statement'!P18 -> 0 | V63: ='Income Statement'!Q18 -> 0 | W63: ='Income Statement'!R18 -> 0 | X63: ='Income Statement'!S18 -> 0 | Y63: ='Income Statement'!T18 -> 0 | Z63: ='Income Statement'!U18 -> 0 | AA63: ='Income Statement'!V18 -> 0 | AB63: ='Income Statement'!W18 -> 0 | AC63: ='Income Statement'!X18 -> 0
C64: ='Income Statement'!A19 -> Interest On Deposits | G64: ='Income Statement'!B19 -> 6940345 | H64: ='Income Statement'!C19 -> 8030986 | I64: ='Income Statement'!D19 -> 7723774 | J64: ='Income Statement'!E19 -> 7730157 | K64: ='Income Statement'!F19 -> 7647167 | L64: ='Income Statement'!G19 -> 7290078 | M64: ='Income Statement'!H19 -> 0 | N64: ='Income Statement'!I19 -> 0 | O64: ='Income Statement'!J19 -> 0 | P64: ='Income Statement'!K19 -> 0 | Q64: ='Income Statement'!L19 -> 0 | R64: ='Income Statement'!M19 -> 0 | S64: ='Income Statement'!N19 -> 0 | T64: ='Income Statement'!O19 -> 0 | U64: ='Income Statement'!P19 -> 0 | V64: ='Income Statement'!Q19 -> 0 | W64: ='Income Statement'!R19 -> 0 | X64: ='Income Statement'!S19 -> 0 | Y64: ='Income Statement'!T19 -> 0 | Z64: ='Income Statement'!U19 -> 0 | AA64: ='Income Statement'!V19 -> 0 | AB64: ='Income Statement'!W19 -> 0 | AC64: ='Income Statement'!X19 -> 0
C65: ='Income Statement'!A20 -> Total Interest Expense | G65: ='Income Statement'!B20 -> 6940345 | H65: ='Income Statement'!C20 -> 8030986 | I65: ='Income Statement'!D20 -> 7723774 | J65: ='Income Statement'!E20 -> 7730157 | K65: ='Income Statement'!F20 -> 7647167 | L65: ='Income Statement'!G20 -> 7290078 | M65: ='Income Statement'!H20 -> 0 | N65: ='Income Statement'!I20 -> 0 | O65: ='Income Statement'!J20 -> 0 | P65: ='Income Statement'!K20 -> 0 | Q65: ='Income Statement'!L20 -> 0 | R65: ='Income Statement'!M20 -> 0 | S65: ='Income Statement'!N20 -> 0 | T65: ='Income Statement'!O20 -> 0 | U65: ='Income Statement'!P20 -> 0 | V65: ='Income Statement'!Q20 -> 0 | W65: ='Income Statement'!R20 -> 0 | X65: ='Income Statement'!S20 -> 0 | Y65: ='Income Statement'!T20 -> 0 | Z65: ='Income Statement'!U20 -> 0 | AA65: ='Income Statement'!V20 -> 0 | AB65: ='Income Statement'!W20 -> 0 | AC65: ='Income Statement'!X20 -> 0
C66: ='Income Statement'!A21 -> Net Interest Income | G66: ='Income Statement'!B21 -> 11675823 | H66: ='Income Statement'!C21 -> 14050687 | I66: ='Income Statement'!D21 -> 12936828 | J66: ='Income Statement'!E21 -> 18053836 | K66: ='Income Statement'!F21 -> 21238123 | L66: ='Income Statement'!G21 -> 22464132 | M66: ='Income Statement'!H21 -> 0 | N66: ='Income Statement'!I21 -> 0 | O66: ='Income Statement'!J21 -> 0 | P66: ='Income Statement'!K21 -> 0 | Q66: ='Income Statement'!L21 -> 0 | R66: ='Income Statement'!M21 -> 0 | S66: ='Income Statement'!N21 -> 0 | T66: ='Income Statement'!O21 -> 0 | U66: ='Income Statement'!P21 -> 0 | V66: ='Income Statement'!Q21 -> 0 | W66: ='Income Statement'!R21 -> 0 | X66: ='Income Statement'!S21 -> 0 | Y66: ='Income Statement'!T21 -> 0 | Z66: ='Income Statement'!U21 -> 0 | AA66: ='Income Statement'!V21 -> 0 | AB66: ='Income Statement'!W21 -> 0 | AC66: ='Income Statement'!X21 -> 0
C68: ='Income Statement'!A23 -> Income From Trading Activities | G68: ='Income Statement'!B23 -> - | H68: ='Income Statement'!C23 -> - | I68: ='Income Statement'!D23 -> - | J68: ='Income Statement'!E23 -> 1158948 | K68: ='Income Statement'!F23 -> 604736 | L68: ='Income Statement'!G23 -> 624258 | M68: ='Income Statement'!H23 -> 0 | N68: ='Income Statement'!I23 -> 0 | O68: ='Income Statement'!J23 -> 0 | P68: ='Income Statement'!K23 -> 0 | Q68: ='Income Statement'!L23 -> 0 | R68: ='Income Statement'!M23 -> 0 | S68: ='Income Statement'!N23 -> 0 | T68: ='Income Statement'!O23 -> 0 | U68: ='Income Statement'!P23 -> 0 | V68: ='Income Statement'!Q23 -> 0 | W68: ='Income Statement'!R23 -> 0 | X68: ='Income Statement'!S23 -> 0 | Y68: ='Income Statement'!T23 -> 0 | Z68: ='Income Statement'!U23 -> 0 | AA68: ='Income Statement'!V23 -> 0 | AB68: ='Income Statement'!W23 -> 0 | AC68: ='Income Statement'!X23 -> 0
C69: ='Income Statement'!A24 -> Gain (Loss) On Sale Of Assets (Rev) | G69: ='Income Statement'!B24 -> 5974 | H69: ='Income Statement'!C24 -> 7219 | I69: ='Income Statement'!D24 -> 9673 | J69: ='Income Statement'!E24 -> 7007 | K69: ='Income Statement'!F24 -> 4461 | L69: ='Income Statement'!G24 -> 4461 | M69: ='Income Statement'!H24 -> 0 | N69: ='Income Statement'!I24 -> 0 | O69: ='Income Statement'!J24 -> 0 | P69: ='Income Statement'!K24 -> 0 | Q69: ='Income Statement'!L24 -> 0 | R69: ='Income Statement'!M24 -> 0 | S69: ='Income Statement'!N24 -> 0 | T69: ='Income Statement'!O24 -> 0 | U69: ='Income Statement'!P24 -> 0 | V69: ='Income Statement'!Q24 -> 0 | W69: ='Income Statement'!R24 -> 0 | X69: ='Income Statement'!S24 -> 0 | Y69: ='Income Statement'!T24 -> 0 | Z69: ='Income Statement'!U24 -> 0 | AA69: ='Income Statement'!V24 -> 0 | AB69: ='Income Statement'!W24 -> 0 | AC69: ='Income Statement'!X24 -> 0
C70: ='Income Statement'!A25 -> Gain on Sale of Invest. & Secur (Rev) | G70: ='Income Statement'!B25 -> -14429 | H70: ='Income Statement'!C25 -> -2211438 | I70: ='Income Statement'!D25 -> 2068760 | J70: ='Income Statement'!E25 -> - | K70: ='Income Statement'!F25 -> - | L70: ='Income Statement'!G25 -> - | M70: ='Income Statement'!H25 -> 0 | N70: ='Income Statement'!I25 -> 0 | O70: ='Income Statement'!J25 -> 0 | P70: ='Income Statement'!K25 -> 0 | Q70: ='Income Statement'!L25 -> 0 | R70: ='Income Statement'!M25 -> 0 | S70: ='Income Statement'!N25 -> 0 | T70: ='Income Statement'!O25 -> 0 | U70: ='Income Statement'!P25 -> 0 | V70: ='Income Statement'!Q25 -> 0 | W70: ='Income Statement'!R25 -> 0 | X70: ='Income Statement'!S25 -> 0 | Y70: ='Income Statement'!T25 -> 0 | Z70: ='Income Statement'!U25 -> 0 | AA70: ='Income Statement'!V25 -> 0 | AB70: ='Income Statement'!W25 -> 0 | AC70: ='Income Statement'!X25 -> 0
C71: ='Income Statement'!A26 -> Total Other Non-Interest Income | G71: ='Income Statement'!B26 -> 4580672 | H71: ='Income Statement'!C26 -> 5130002 | I71: ='Income Statement'!D26 -> 5674085 | J71: ='Income Statement'!E26 -> 4835924 | K71: ='Income Statement'!F26 -> 5771097 | L71: ='Income Statement'!G26 -> 5958196 | M71: ='Income Statement'!H26 -> 0 | N71: ='Income Statement'!I26 -> 0 | O71: ='Income Statement'!J26 -> 0 | P71: ='Income Statement'!K26 -> 0 | Q71: ='Income Statement'!L26 -> 0 | R71: ='Income Statement'!M26 -> 0 | S71: ='Income Statement'!N26 -> 0 | T71: ='Income Statement'!O26 -> 0 | U71: ='Income Statement'!P26 -> 0 | V71: ='Income Statement'!Q26 -> 0 | W71: ='Income Statement'!R26 -> 0 | X71: ='Income Statement'!S26 -> 0 | Y71: ='Income Statement'!T26 -> 0 | Z71: ='Income Statement'!U26 -> 0 | AA71: ='Income Statement'!V26 -> 0 | AB71: ='Income Statement'!W26 -> 0 | AC71: ='Income Statement'!X26 -> 0
C72: ='Income Statement'!A27 -> Non-Oper. Income (Exp.) | G72: ='Income Statement'!B27 -> 27114 | H72: ='Income Statement'!C27 -> 418990 | I72: ='Income Statement'!D27 -> 179318 | J72: ='Income Statement'!E27 -> 314976 | K72: ='Income Statement'!F27 -> 426017 | L72: ='Income Statement'!G27 -> 433877 | M72: ='Income Statement'!H27 -> 0 | N72: ='Income Statement'!I27 -> 0 | O72: ='Income Statement'!J27 -> 0 | P72: ='Income Statement'!K27 -> 0 | Q72: ='Income Statement'!L27 -> 0 | R72: ='Income Statement'!M27 -> 0 | S72: ='Income Statement'!N27 -> 0 | T72: ='Income Statement'!O27 -> 0 | U72: ='Income Statement'!P27 -> 0 | V72: ='Income Statement'!Q27 -> 0 | W72: ='Income Statement'!R27 -> 0 | X72: ='Income Statement'!S27 -> 0 | Y72: ='Income Statement'!T27 -> 0 | Z72: ='Income Statement'!U27 -> 0 | AA72: ='Income Statement'!V27 -> 0 | AB72: ='Income Statement'!W27 -> 0 | AC72: ='Income Statement'!X27 -> 0
C73: ='Income Statement'!A28 -> Total Non Interest Income | G73: ='Income Statement'!B28 -> 4599331 | H73: ='Income Statement'!C28 -> 3344773 | I73: ='Income Statement'!D28 -> 7931836 | J73: ='Income Statement'!E28 -> 6316855 | K73: ='Income Statement'!F28 -> 6806311 | L73: ='Income Statement'!G28 -> 7020792 | M73: ='Income Statement'!H28 -> 0 | N73: ='Income Statement'!I28 -> 0 | O73: ='Income Statement'!J28 -> 0 | P73: ='Income Statement'!K28 -> 0 | Q73: ='Income Statement'!L28 -> 0 | R73: ='Income Statement'!M28 -> 0 | S73: ='Income Statement'!N28 -> 0 | T73: ='Income Statement'!O28 -> 0 | U73: ='Income Statement'!P28 -> 0 | V73: ='Income Statement'!Q28 -> 0 | W73: ='Income Statement'!R28 -> 0 | X73: ='Income Statement'!S28 -> 0 | Y73: ='Income Statement'!T28 -> 0 | Z73: ='Income Statement'!U28 -> 0 | AA73: ='Income Statement'!V28 -> 0 | AB73: ='Income Statement'!W28 -> 0 | AC73: ='Income Statement'!X28 -> 0
C74: ='Income Statement'!A29 -> Revenue Before Loan Losses | G74: ='Income Statement'!B29 -> 16275154 | H74: ='Income Statement'!C29 -> 17395460 | I74: ='Income Statement'!D29 -> 20868664 | J74: ='Income Statement'!E29 -> 24370691 | K74: ='Income Statement'!F29 -> 28044434 | L74: ='Income Statement'!G29 -> 29484924 | M74: ='Income Statement'!H29 -> 0 | N74: ='Income Statement'!I29 -> 0 | O74: ='Income Statement'!J29 -> 0 | P74: ='Income Statement'!K29 -> 0 | Q74: ='Income Statement'!L29 -> 0 | R74: ='Income Statement'!M29 -> 0 | S74: ='Income Statement'!N29 -> 0 | T74: ='Income Statement'!O29 -> 0 | U74: ='Income Statement'!P29 -> 0 | V74: ='Income Statement'!Q29 -> 0 | W74: ='Income Statement'!R29 -> 0 | X74: ='Income Statement'!S29 -> 0 | Y74: ='Income Statement'!T29 -> 0 | Z74: ='Income Statement'!U29 -> 0 | AA74: ='Income Statement'!V29 -> 0 | AB74: ='Income Statement'!W29 -> 0 | AC74: ='Income Statement'!X29 -> 0
C76: ='Income Statement'!A31 -> Provision For Loan Losses | G76: ='Income Statement'!B31 -> 1754149 | H76: ='Income Statement'!C31 -> 15416 | I76: ='Income Statement'!D31 -> 657311 | J76: ='Income Statement'!E31 -> 559209 | K76: ='Income Statement'!F31 -> 498670 | L76: ='Income Statement'!G31 -> 879958 | M76: ='Income Statement'!H31 -> 0 | N76: ='Income Statement'!I31 -> 0 | O76: ='Income Statement'!J31 -> 0 | P76: ='Income Statement'!K31 -> 0 | Q76: ='Income Statement'!L31 -> 0 | R76: ='Income Statement'!M31 -> 0 | S76: ='Income Statement'!N31 -> 0 | T76: ='Income Statement'!O31 -> 0 | U76: ='Income Statement'!P31 -> 0 | V76: ='Income Statement'!Q31 -> 0 | W76: ='Income Statement'!R31 -> 0 | X76: ='Income Statement'!S31 -> 0 | Y76: ='Income Statement'!T31 -> 0 | Z76: ='Income Statement'!U31 -> 0 | AA76: ='Income Statement'!V31 -> 0 | AB76: ='Income Statement'!W31 -> 0 | AC76: ='Income Statement'!X31 -> 0
C77: ='Income Statement'!A32 -> Total Revenue | G77: ='Income Statement'!B32 -> 14521005 | H77: ='Income Statement'!C32 -> 17380044 | I77: ='Income Statement'!D32 -> 20211353 | J77: ='Income Statement'!E32 -> 23811482 | K77: ='Income Statement'!F32 -> 27545764 | L77: ='Income Statement'!G32 -> 28604966 | M77: ='Income Statement'!H32 -> 0 | N77: ='Income Statement'!I32 -> 0 | O77: ='Income Statement'!J32 -> 0 | P77: ='Income Statement'!K32 -> 0 | Q77: ='Income Statement'!L32 -> 0 | R77: ='Income Statement'!M32 -> 0 | S77: ='Income Statement'!N32 -> 0 | T77: ='Income Statement'!O32 -> 0 | U77: ='Income Statement'!P32 -> 0 | V77: ='Income Statement'!Q32 -> 0 | W77: ='Income Statement'!R32 -> 0 | X77: ='Income Statement'!S32 -> 0 | Y77: ='Income Statement'!T32 -> 0 | Z77: ='Income Statement'!U32 -> 0 | AA77: ='Income Statement'!V32 -> 0 | AB77: ='Income Statement'!W32 -> 0 | AC77: ='Income Statement'!X32 -> 0
C79: ='Income Statement'!A34 -> Salaries and Other Empl. Benefits | G79: ='Income Statement'!B34 -> 3283965 | H79: ='Income Statement'!C34 -> 4186617 | I79: ='Income Statement'!D34 -> 4544611 | J79: ='Income Statement'!E34 -> 5204359 | K79: ='Income Statement'!F34 -> 6154966 | L79: ='Income Statement'!G34 -> 6398327 | M79: ='Income Statement'!H34 -> 0 | N79: ='Income Statement'!I34 -> 0 | O79: ='Income Statement'!J34 -> 0 | P79: ='Income Statement'!K34 -> 0 | Q79: ='Income Statement'!L34 -> 0 | R79: ='Income Statement'!M34 -> 0 | S79: ='Income Statement'!N34 -> 0 | T79: ='Income Statement'!O34 -> 0 | U79: ='Income Statement'!P34 -> 0 | V79: ='Income Statement'!Q34 -> 0 | W79: ='Income Statement'!R34 -> 0 | X79: ='Income Statement'!S34 -> 0 | Y79: ='Income Statement'!T34 -> 0 | Z79: ='Income Statement'!U34 -> 0 | AA79: ='Income Statement'!V34 -> 0 | AB79: ='Income Statement'!W34 -> 0 | AC79: ='Income Statement'!X34 -> 0
C80: ='Income Statement'!A35 -> Amort. of Goodwill & Intang. Assets | G80: ='Income Statement'!B35 -> - | H80: ='Income Statement'!C35 -> - | I80: ='Income Statement'!D35 -> - | J80: ='Income Statement'!E35 -> - | K80: ='Income Statement'!F35 -> - | L80: ='Income Statement'!G35 -> - | M80: ='Income Statement'!H35 -> 0 | N80: ='Income Statement'!I35 -> 0 | O80: ='Income Statement'!J35 -> 0 | P80: ='Income Statement'!K35 -> 0 | Q80: ='Income Statement'!L35 -> 0 | R80: ='Income Statement'!M35 -> 0 | S80: ='Income Statement'!N35 -> 0 | T80: ='Income Statement'!O35 -> 0 | U80: ='Income Statement'!P35 -> 0 | V80: ='Income Statement'!Q35 -> 0 | W80: ='Income Statement'!R35 -> 0 | X80: ='Income Statement'!S35 -> 0 | Y80: ='Income Statement'!T35 -> 0 | Z80: ='Income Statement'!U35 -> 0 | AA80: ='Income Statement'!V35 -> 0 | AB80: ='Income Statement'!W35 -> 0 | AC80: ='Income Statement'!X35 -> 0
C81: ='Income Statement'!A36 -> Selling General & Admin Exp., Total | G81: ='Income Statement'!B36 -> 3318400 | H81: ='Income Statement'!C36 -> 4056247 | I81: ='Income Statement'!D36 -> 4785413 | J81: ='Income Statement'!E36 -> 5448690 | K81: ='Income Statement'!F36 -> 6400048 | L81: ='Income Statement'!G36 -> 6513027 | M81: ='Income Statement'!H36 -> 0 | N81: ='Income Statement'!I36 -> 0 | O81: ='Income Statement'!J36 -> 0 | P81: ='Income Statement'!K36 -> 0 | Q81: ='Income Statement'!L36 -> 0 | R81: ='Income Statement'!M36 -> 0 | S81: ='Income Statement'!N36 -> 0 | T81: ='Income Statement'!O36 -> 0 | U81: ='Income Statement'!P36 -> 0 | V81: ='Income Statement'!Q36 -> 0 | W81: ='Income Statement'!R36 -> 0 | X81: ='Income Statement'!S36 -> 0 | Y81: ='Income Statement'!T36 -> 0 | Z81: ='Income Statement'!U36 -> 0 | AA81: ='Income Statement'!V36 -> 0 | AB81: ='Income Statement'!W36 -> 0 | AC81: ='Income Statement'!X36 -> 0
C82: ='Income Statement'!A37 -> Total Other Non-Interest Expense | G82: ='Income Statement'!B37 -> 198597 | H82: ='Income Statement'!C37 -> 192088 | I82: ='Income Statement'!D37 -> 228060 | J82: ='Income Statement'!E37 -> -460325 | K82: ='Income Statement'!F37 -> 304704 | L82: ='Income Statement'!G37 -> 278906 | M82: ='Income Statement'!H37 -> 0 | N82: ='Income Statement'!I37 -> 0 | O82: ='Income Statement'!J37 -> 0 | P82: ='Income Statement'!K37 -> 0 | Q82: ='Income Statement'!L37 -> 0 | R82: ='Income Statement'!M37 -> 0 | S82: ='Income Statement'!N37 -> 0 | T82: ='Income Statement'!O37 -> 0 | U82: ='Income Statement'!P37 -> 0 | V82: ='Income Statement'!Q37 -> 0 | W82: ='Income Statement'!R37 -> 0 | X82: ='Income Statement'!S37 -> 0 | Y82: ='Income Statement'!T37 -> 0 | Z82: ='Income Statement'!U37 -> 0 | AA82: ='Income Statement'!V37 -> 0 | AB82: ='Income Statement'!W37 -> 0 | AC82: ='Income Statement'!X37 -> 0
C83: ='Income Statement'!A38 -> Total Non-Interest Expense | G83: ='Income Statement'!B38 -> 6800962 | H83: ='Income Statement'!C38 -> 8434952 | I83: ='Income Statement'!D38 -> 9558084 | J83: ='Income Statement'!E38 -> 10192724 | K83: ='Income Statement'!F38 -> 12859718 | L83: ='Income Statement'!G38 -> 13190260 | M83: ='Income Statement'!H38 -> 0 | N83: ='Income Statement'!I38 -> 0 | O83: ='Income Statement'!J38 -> 0 | P83: ='Income Statement'!K38 -> 0 | Q83: ='Income Statement'!L38 -> 0 | R83: ='Income Statement'!M38 -> 0 | S83: ='Income Statement'!N38 -> 0 | T83: ='Income Statement'!O38 -> 0 | U83: ='Income Statement'!P38 -> 0 | V83: ='Income Statement'!Q38 -> 0 | W83: ='Income Statement'!R38 -> 0 | X83: ='Income Statement'!S38 -> 0 | Y83: ='Income Statement'!T38 -> 0 | Z83: ='Income Statement'!U38 -> 0 | AA83: ='Income Statement'!V38 -> 0 | AB83: ='Income Statement'!W38 -> 0 | AC83: ='Income Statement'!X38 -> 0
C85: ='Income Statement'!A40 -> EBT Excl. Unusual Items | G85: ='Income Statement'!B40 -> 7720043 | H85: ='Income Statement'!C40 -> 8945092 | I85: ='Income Statement'!D40 -> 10653269 | J85: ='Income Statement'!E40 -> 13618758 | K85: ='Income Statement'!F40 -> 14686046 | L85: ='Income Statement'!G40 -> 15414706 | M85: ='Income Statement'!H40 -> 0 | N85: ='Income Statement'!I40 -> 0 | O85: ='Income Statement'!J40 -> 0 | P85: ='Income Statement'!K40 -> 0 | Q85: ='Income Statement'!L40 -> 0 | R85: ='Income Statement'!M40 -> 0 | S85: ='Income Statement'!N40 -> 0 | T85: ='Income Statement'!O40 -> 0 | U85: ='Income Statement'!P40 -> 0 | V85: ='Income Statement'!Q40 -> 0 | W85: ='Income Statement'!R40 -> 0 | X85: ='Income Statement'!S40 -> 0 | Y85: ='Income Statement'!T40 -> 0 | Z85: ='Income Statement'!U40 -> 0 | AA85: ='Income Statement'!V40 -> 0 | AB85: ='Income Statement'!W40 -> 0 | AC85: ='Income Statement'!X40 -> 0
C87: ='Income Statement'!A42 -> Impairment of Goodwill | G87: ='Income Statement'!B42 -> - | H87: ='Income Statement'!C42 -> - | I87: ='Income Statement'!D42 -> - | J87: ='Income Statement'!E42 -> - | K87: ='Income Statement'!F42 -> - | L87: ='Income Statement'!G42 -> - | M87: ='Income Statement'!H42 -> 0 | N87: ='Income Statement'!I42 -> 0 | O87: ='Income Statement'!J42 -> 0 | P87: ='Income Statement'!K42 -> 0 | Q87: ='Income Statement'!L42 -> 0 | R87: ='Income Statement'!M42 -> 0 | S87: ='Income Statement'!N42 -> 0 | T87: ='Income Statement'!O42 -> 0 | U87: ='Income Statement'!P42 -> 0 | V87: ='Income Statement'!Q42 -> 0 | W87: ='Income Statement'!R42 -> 0 | X87: ='Income Statement'!S42 -> 0 | Y87: ='Income Statement'!T42 -> 0 | Z87: ='Income Statement'!U42 -> 0 | AA87: ='Income Statement'!V42 -> 0 | AB87: ='Income Statement'!W42 -> 0 | AC87: ='Income Statement'!X42 -> 0
C88: ='Income Statement'!A43 -> Other Unusual Items | G88: ='Income Statement'!B43 -> - | H88: ='Income Statement'!C43 -> - | I88: ='Income Statement'!D43 -> - | J88: ='Income Statement'!E43 -> - | K88: ='Income Statement'!F43 -> - | L88: ='Income Statement'!G43 -> - | M88: ='Income Statement'!H43 -> 0 | N88: ='Income Statement'!I43 -> 0 | O88: ='Income Statement'!J43 -> 0 | P88: ='Income Statement'!K43 -> 0 | Q88: ='Income Statement'!L43 -> 0 | R88: ='Income Statement'!M43 -> 0 | S88: ='Income Statement'!N43 -> 0 | T88: ='Income Statement'!O43 -> 0 | U88: ='Income Statement'!P43 -> 0 | V88: ='Income Statement'!Q43 -> 0 | W88: ='Income Statement'!R43 -> 0 | X88: ='Income Statement'!S43 -> 0 | Y88: ='Income Statement'!T43 -> 0 | Z88: ='Income Statement'!U43 -> 0 | AA88: ='Income Statement'!V43 -> 0 | AB88: ='Income Statement'!W43 -> 0 | AC88: ='Income Statement'!X43 -> 0
C89: ='Income Statement'!A44 -> EBT Incl. Unusual Items | G89: ='Income Statement'!B44 -> 7720043 | H89: ='Income Statement'!C44 -> 8945092 | I89: ='Income Statement'!D44 -> 10653269 | J89: ='Income Statement'!E44 -> 13618758 | K89: ='Income Statement'!F44 -> 14686046 | L89: ='Income Statement'!G44 -> 15414706 | M89: ='Income Statement'!H44 -> 0 | N89: ='Income Statement'!I44 -> 0 | O89: ='Income Statement'!J44 -> 0 | P89: ='Income Statement'!K44 -> 0 | Q89: ='Income Statement'!L44 -> 0 | R89: ='Income Statement'!M44 -> 0 | S89: ='Income Statement'!N44 -> 0 | T89: ='Income Statement'!O44 -> 0 | U89: ='Income Statement'!P44 -> 0 | V89: ='Income Statement'!Q44 -> 0 | W89: ='Income Statement'!R44 -> 0 | X89: ='Income Statement'!S44 -> 0 | Y89: ='Income Statement'!T44 -> 0 | Z89: ='Income Statement'!U44 -> 0 | AA89: ='Income Statement'!V44 -> 0 | AB89: ='Income Statement'!W44 -> 0 | AC89: ='Income Statement'!X44 -> 0
C91: ='Income Statement'!A46 -> Income Tax Expense | G91: ='Income Statement'!B46 -> 1943904 | H91: ='Income Statement'!C46 -> 2137850 | I91: ='Income Statement'!D46 -> 2173996 | J91: ='Income Statement'!E46 -> 2800960 | K91: ='Income Statement'!F46 -> 2967586 | L91: ='Income Statement'!G46 -> 3106271 | M91: ='Income Statement'!H46 -> 0 | N91: ='Income Statement'!I46 -> 0 | O91: ='Income Statement'!J46 -> 0 | P91: ='Income Statement'!K46 -> 0 | Q91: ='Income Statement'!L46 -> 0 | R91: ='Income Statement'!M46 -> 0 | S91: ='Income Statement'!N46 -> 0 | T91: ='Income Statement'!O46 -> 0 | U91: ='Income Statement'!P46 -> 0 | V91: ='Income Statement'!Q46 -> 0 | W91: ='Income Statement'!R46 -> 0 | X91: ='Income Statement'!S46 -> 0 | Y91: ='Income Statement'!T46 -> 0 | Z91: ='Income Statement'!U46 -> 0 | AA91: ='Income Statement'!V46 -> 0 | AB91: ='Income Statement'!W46 -> 0 | AC91: ='Income Statement'!X46 -> 0
C92: ='Income Statement'!A47 -> Earnings from Cont. Ops. | G92: ='Income Statement'!B47 -> 5776139 | H92: ='Income Statement'!C47 -> 6807242 | I92: ='Income Statement'!D47 -> 8479273 | J92: ='Income Statement'!E47 -> 10817798 | K92: ='Income Statement'!F47 -> 11718460 | L92: ='Income Statement'!G47 -> 12308435 | M92: ='Income Statement'!H47 -> 0 | N92: ='Income Statement'!I47 -> 0 | O92: ='Income Statement'!J47 -> 0 | P92: ='Income Statement'!K47 -> 0 | Q92: ='Income Statement'!L47 -> 0 | R92: ='Income Statement'!M47 -> 0 | S92: ='Income Statement'!N47 -> 0 | T92: ='Income Statement'!O47 -> 0 | U92: ='Income Statement'!P47 -> 0 | V92: ='Income Statement'!Q47 -> 0 | W92: ='Income Statement'!R47 -> 0 | X92: ='Income Statement'!S47 -> 0 | Y92: ='Income Statement'!T47 -> 0 | Z92: ='Income Statement'!U47 -> 0 | AA92: ='Income Statement'!V47 -> 0 | AB92: ='Income Statement'!W47 -> 0 | AC92: ='Income Statement'!X47 -> 0
C94: ='Income Statement'!A49 -> Earnings of Discontinued Ops. | G94: ='Income Statement'!B49 -> - | H94: ='Income Statement'!C49 -> - | I94: ='Income Statement'!D49 -> - | J94: ='Income Statement'!E49 -> - | K94: ='Income Statement'!F49 -> - | L94: ='Income Statement'!G49 -> - | M94: ='Income Statement'!H49 -> 0 | N94: ='Income Statement'!I49 -> 0 | O94: ='Income Statement'!J49 -> 0 | P94: ='Income Statement'!K49 -> 0 | Q94: ='Income Statement'!L49 -> 0 | R94: ='Income Statement'!M49 -> 0 | S94: ='Income Statement'!N49 -> 0 | T94: ='Income Statement'!O49 -> 0 | U94: ='Income Statement'!P49 -> 0 | V94: ='Income Statement'!Q49 -> 0 | W94: ='Income Statement'!R49 -> 0 | X94: ='Income Statement'!S49 -> 0 | Y94: ='Income Statement'!T49 -> 0 | Z94: ='Income Statement'!U49 -> 0 | AA94: ='Income Statement'!V49 -> 0 | AB94: ='Income Statement'!W49 -> 0 | AC94: ='Income Statement'!X49 -> 0
C95: ='Income Statement'!A50 -> Extraord. Item & Account. Change | G95: ='Income Statement'!B50 -> - | H95: ='Income Statement'!C50 -> - | I95: ='Income Statement'!D50 -> - | J95: ='Income Statement'!E50 -> - | K95: ='Income Statement'!F50 -> - | L95: ='Income Statement'!G50 -> - | M95: ='Income Statement'!H50 -> 0 | N95: ='Income Statement'!I50 -> 0 | O95: ='Income Statement'!J50 -> 0 | P95: ='Income Statement'!K50 -> 0 | Q95: ='Income Statement'!L50 -> 0 | R95: ='Income Statement'!M50 -> 0 | S95: ='Income Statement'!N50 -> 0 | T95: ='Income Statement'!O50 -> 0 | U95: ='Income Statement'!P50 -> 0 | V95: ='Income Statement'!Q50 -> 0 | W95: ='Income Statement'!R50 -> 0 | X95: ='Income Statement'!S50 -> 0 | Y95: ='Income Statement'!T50 -> 0 | Z95: ='Income Statement'!U50 -> 0 | AA95: ='Income Statement'!V50 -> 0 | AB95: ='Income Statement'!W50 -> 0 | AC95: ='Income Statement'!X50 -> 0
C96: ='Income Statement'!A51 -> Net Income to Company | G96: ='Income Statement'!B51 -> 5776139 | H96: ='Income Statement'!C51 -> 6807242 | I96: ='Income Statement'!D51 -> 8479273 | J96: ='Income Statement'!E51 -> 10817798 | K96: ='Income Statement'!F51 -> 11718460 | L96: ='Income Statement'!G51 -> 12308435 | M96: ='Income Statement'!H51 -> 0 | N96: ='Income Statement'!I51 -> 0 | O96: ='Income Statement'!J51 -> 0 | P96: ='Income Statement'!K51 -> 0 | Q96: ='Income Statement'!L51 -> 0 | R96: ='Income Statement'!M51 -> 0 | S96: ='Income Statement'!N51 -> 0 | T96: ='Income Statement'!O51 -> 0 | U96: ='Income Statement'!P51 -> 0 | V96: ='Income Statement'!Q51 -> 0 | W96: ='Income Statement'!R51 -> 0 | X96: ='Income Statement'!S51 -> 0 | Y96: ='Income Statement'!T51 -> 0 | Z96: ='Income Statement'!U51 -> 0 | AA96: ='Income Statement'!V51 -> 0 | AB96: ='Income Statement'!W51 -> 0 | AC96: ='Income Statement'!X51 -> 0
C98: ='Income Statement'!A53 -> Minority Int. in Earnings | G98: ='Income Statement'!B53 -> - | H98: ='Income Statement'!C53 -> - | I98: ='Income Statement'!D53 -> - | J98: ='Income Statement'!E53 -> 1511 | K98: ='Income Statement'!F53 -> 3257 | L98: ='Income Statement'!G53 -> 1472 | M98: ='Income Statement'!H53 -> 0 | N98: ='Income Statement'!I53 -> 0 | O98: ='Income Statement'!J53 -> 0 | P98: ='Income Statement'!K53 -> 0 | Q98: ='Income Statement'!L53 -> 0 | R98: ='Income Statement'!M53 -> 0 | S98: ='Income Statement'!N53 -> 0 | T98: ='Income Statement'!O53 -> 0 | U98: ='Income Statement'!P53 -> 0 | V98: ='Income Statement'!Q53 -> 0 | W98: ='Income Statement'!R53 -> 0 | X98: ='Income Statement'!S53 -> 0 | Y98: ='Income Statement'!T53 -> 0 | Z98: ='Income Statement'!U53 -> 0 | AA98: ='Income Statement'!V53 -> 0 | AB98: ='Income Statement'!W53 -> 0 | AC98: ='Income Statement'!X53 -> 0
C99: ='Income Statement'!A54 -> Net Income | G99: ='Income Statement'!B54 -> 5776139 | H99: ='Income Statement'!C54 -> 6807242 | I99: ='Income Statement'!D54 -> 8479273 | J99: ='Income Statement'!E54 -> 10819309 | K99: ='Income Statement'!F54 -> 11721717 | L99: ='Income Statement'!G54 -> 12309907 | M99: ='Income Statement'!H54 -> 0 | N99: ='Income Statement'!I54 -> 0 | O99: ='Income Statement'!J54 -> 0 | P99: ='Income Statement'!K54 -> 0 | Q99: ='Income Statement'!L54 -> 0 | R99: ='Income Statement'!M54 -> 0 | S99: ='Income Statement'!N54 -> 0 | T99: ='Income Statement'!O54 -> 0 | U99: ='Income Statement'!P54 -> 0 | V99: ='Income Statement'!Q54 -> 0 | W99: ='Income Statement'!R54 -> 0 | X99: ='Income Statement'!S54 -> 0 | Y99: ='Income Statement'!T54 -> 0 | Z99: ='Income Statement'!U54 -> 0 | AA99: ='Income Statement'!V54 -> 0 | AB99: ='Income Statement'!W54 -> 0 | AC99: ='Income Statement'!X54 -> 0
C101: ='Income Statement'!A56 -> Pref. Dividends and Other Adj. | G101: ='Income Statement'!B56 -> - | H101: ='Income Statement'!C56 -> - | I101: ='Income Statement'!D56 -> - | J101: ='Income Statement'!E56 -> - | K101: ='Income Statement'!F56 -> - | L101: ='Income Statement'!G56 -> - | M101: ='Income Statement'!H56 -> 0 | N101: ='Income Statement'!I56 -> 0 | O101: ='Income Statement'!J56 -> 0 | P101: ='Income Statement'!K56 -> 0 | Q101: ='Income Statement'!L56 -> 0 | R101: ='Income Statement'!M56 -> 0 | S101: ='Income Statement'!N56 -> 0 | T101: ='Income Statement'!O56 -> 0 | U101: ='Income Statement'!P56 -> 0 | V101: ='Income Statement'!Q56 -> 0 | W101: ='Income Statement'!R56 -> 0 | X101: ='Income Statement'!S56 -> 0 | Y101: ='Income Statement'!T56 -> 0 | Z101: ='Income Statement'!U56 -> 0 | AA101: ='Income Statement'!V56 -> 0 | AB101: ='Income Statement'!W56 -> 0 | AC101: ='Income Statement'!X56 -> 0
C102: ='Income Statement'!A59 -> NI to Common Excl. Extra Items | G102: ='Income Statement'!B59 -> 5776139 | H102: ='Income Statement'!C59 -> 6807242 | I102: ='Income Statement'!D59 -> 8479273 | J102: ='Income Statement'!E59 -> 10819309 | K102: ='Income Statement'!F59 -> 11721717 | L102: ='Income Statement'!G59 -> 12309907 | M102: ='Income Statement'!H59 -> 0 | N102: ='Income Statement'!I59 -> 0 | O102: ='Income Statement'!J59 -> 0 | P102: ='Income Statement'!K59 -> 0 | Q102: ='Income Statement'!L59 -> 0 | R102: ='Income Statement'!M59 -> 0 | S102: ='Income Statement'!N59 -> 0 | T102: ='Income Statement'!O59 -> 0 | U102: ='Income Statement'!P59 -> 0 | V102: ='Income Statement'!Q59 -> 0 | W102: ='Income Statement'!R59 -> 0 | X102: ='Income Statement'!S59 -> 0 | Y102: ='Income Statement'!T59 -> 0 | Z102: ='Income Statement'!U59 -> 0 | AA102: ='Income Statement'!V59 -> 0 | AB102: ='Income Statement'!W59 -> 0 | AC102: ='Income Statement'!X59 -> 0
C104: ='Income Statement'!A61 -> Per Share Items | G104: ='Income Statement'!B61 -> 0 | H104: ='Income Statement'!C61 -> 0 | I104: ='Income Statement'!D61 -> 0 | J104: ='Income Statement'!E61 -> 0 | K104: ='Income Statement'!F61 -> 0 | L104: ='Income Statement'!G61 -> 0 | M104: ='Income Statement'!H61 -> 0 | N104: ='Income Statement'!I61 -> 0 | O104: ='Income Statement'!J61 -> 0 | P104: ='Income Statement'!K61 -> 0 | Q104: ='Income Statement'!L61 -> 0 | R104: ='Income Statement'!M61 -> 0 | S104: ='Income Statement'!N61 -> 0 | T104: ='Income Statement'!O61 -> 0 | U104: ='Income Statement'!P61 -> 0 | V104: ='Income Statement'!Q61 -> 0 | W104: ='Income Statement'!R61 -> 0 | X104: ='Income Statement'!S61 -> 0 | Y104: ='Income Statement'!T61 -> 0 | Z104: ='Income Statement'!U61 -> 0 | AA104: ='Income Statement'!V61 -> 0 | AB104: ='Income Statement'!W61 -> 0 | AC104: ='Income Statement'!X61 -> 0
C105: ='Income Statement'!A62 -> Basic EPS | G105: ='Income Statement'!B62 -> 236.46235 | H105: ='Income Statement'!C62 -> 279.3833 | I105: ='Income Statement'!D62 -> 348.006912 | J105: ='Income Statement'!E62 -> 444.046833 | K105: ='Income Statement'!F62 -> 480.363065 | L105: ='Income Statement'!G62 -> 503.394482 | M105: ='Income Statement'!H62 -> 0 | N105: ='Income Statement'!I62 -> 0 | O105: ='Income Statement'!J62 -> 0 | P105: ='Income Statement'!K62 -> 0 | Q105: ='Income Statement'!L62 -> 0 | R105: ='Income Statement'!M62 -> 0 | S105: ='Income Statement'!N62 -> 0 | T105: ='Income Statement'!O62 -> 0 | U105: ='Income Statement'!P62 -> 0 | V105: ='Income Statement'!Q62 -> 0 | W105: ='Income Statement'!R62 -> 0 | X105: ='Income Statement'!S62 -> 0 | Y105: ='Income Statement'!T62 -> 0 | Z105: ='Income Statement'!U62 -> 0 | AA105: ='Income Statement'!V62 -> 0 | AB105: ='Income Statement'!W62 -> 0 | AC105: ='Income Statement'!X62 -> 0
C106: ='Income Statement'!A64 -> Weighted Avg. Basic Shares Out. | G106: ='Income Statement'!B64 -> 24427.30941 | H106: ='Income Statement'!C64 -> 24365.243 | I106: ='Income Statement'!D64 -> 24365.243 | J106: ='Income Statement'!E64 -> 24365.243 | K106: ='Income Statement'!F64 -> 24401.78656 | L106: ='Income Statement'!G64 -> 24453.79804 | M106: ='Income Statement'!H64 -> 0 | N106: ='Income Statement'!I64 -> 0 | O106: ='Income Statement'!J64 -> 0 | P106: ='Income Statement'!K64 -> 0 | Q106: ='Income Statement'!L64 -> 0 | R106: ='Income Statement'!M64 -> 0 | S106: ='Income Statement'!N64 -> 0 | T106: ='Income Statement'!O64 -> 0 | U106: ='Income Statement'!P64 -> 0 | V106: ='Income Statement'!Q64 -> 0 | W106: ='Income Statement'!R64 -> 0 | X106: ='Income Statement'!S64 -> 0 | Y106: ='Income Statement'!T64 -> 0 | Z106: ='Income Statement'!U64 -> 0 | AA106: ='Income Statement'!V64 -> 0 | AB106: ='Income Statement'!W64 -> 0 | AC106: ='Income Statement'!X64 -> 0
C108: ='Income Statement'!A70 -> Normalized Basic EPS | G108: ='Income Statement'!B70 -> 197.525924 | H108: ='Income Statement'!C70 -> 229.45318 | I108: ='Income Statement'!D70 -> 273.27013 | J108: ='Income Statement'!E70 -> 349.400773 | K108: ='Income Statement'!F70 -> 376.285389 | L108: ='Income Statement'!G70 -> 394.035447 | M108: ='Income Statement'!H70 -> 0 | N108: ='Income Statement'!I70 -> 0 | O108: ='Income Statement'!J70 -> 0 | P108: ='Income Statement'!K70 -> 0 | Q108: ='Income Statement'!L70 -> 0 | R108: ='Income Statement'!M70 -> 0 | S108: ='Income Statement'!N70 -> 0 | T108: ='Income Statement'!O70 -> 0 | U108: ='Income Statement'!P70 -> 0 | V108: ='Income Statement'!Q70 -> 0 | W108: ='Income Statement'!R70 -> 0 | X108: ='Income Statement'!S70 -> 0 | Y108: ='Income Statement'!T70 -> 0 | Z108: ='Income Statement'!U70 -> 0 | AA108: ='Income Statement'!V70 -> 0 | AB108: ='Income Statement'!W70 -> 0 | AC108: ='Income Statement'!X70 -> 0
A110: Cash Flow Items
B111: ='Cash Flow'!A18 -> Depreciation & Amort. | G111: ='Cash Flow'!B18 -> 368800 | H111: ='Cash Flow'!C18 -> 535046 | I111: ='Cash Flow'!D18 -> 618185 | J111: ='Cash Flow'!E18 -> 742837 | K111: ='Cash Flow'!F18 -> 864567 | L111: ='Cash Flow'!G18 -> 910114 | M111: ='Cash Flow'!H18 -> 0 | N111: ='Cash Flow'!I18 -> 0 | O111: ='Cash Flow'!J18 -> 0 | P111: ='Cash Flow'!K18 -> 0 | Q111: ='Cash Flow'!L18 -> 0 | R111: ='Cash Flow'!M18 -> 0 | S111: ='Cash Flow'!N18 -> 0 | T111: ='Cash Flow'!O18 -> 0 | U111: ='Cash Flow'!P18 -> 0 | V111: ='Cash Flow'!Q18 -> 0 | W111: ='Cash Flow'!R18 -> 0 | X111: ='Cash Flow'!S18 -> 0 | Y111: ='Cash Flow'!T18 -> 0 | Z111: ='Cash Flow'!U18 -> 0 | AA111: ='Cash Flow'!V18 -> 0 | AB111: ='Cash Flow'!W18 -> 0 | AC111: ='Cash Flow'!X18 -> 0 | AD111: ='Cash Flow'!Y18 -> 0 | AE111: ='Cash Flow'!Z18 -> 0 | AF111: ='Cash Flow'!AA18 -> 0 | AG111: ='Cash Flow'!AB18 -> 0 | AH111: ='Cash Flow'!AC18 -> 0 | AI111: ='Cash Flow'!AD18 -> 0
B112: ='Cash Flow'!A26 -> Capital Expenditures | G112: ='Cash Flow'!B26 -> -1014455 | H112: ='Cash Flow'!C26 -> -930497 | I112: ='Cash Flow'!D26 -> -1118823 | J112: ='Cash Flow'!E26 -> -1727384 | K112: ='Cash Flow'!F26 -> -3211877 | L112: ='Cash Flow'!G26 -> -2928307 | M112: ='Cash Flow'!H26 -> 0 | N112: ='Cash Flow'!I26 -> 0 | O112: ='Cash Flow'!J26 -> 0 | P112: ='Cash Flow'!K26 -> 0 | Q112: ='Cash Flow'!L26 -> 0 | R112: ='Cash Flow'!M26 -> 0 | S112: ='Cash Flow'!N26 -> 0 | T112: ='Cash Flow'!O26 -> 0 | U112: ='Cash Flow'!P26 -> 0 | V112: ='Cash Flow'!Q26 -> 0 | W112: ='Cash Flow'!R26 -> 0 | X112: ='Cash Flow'!S26 -> 0 | Y112: ='Cash Flow'!T26 -> 0 | Z112: ='Cash Flow'!U26 -> 0 | AA112: ='Cash Flow'!V26 -> 0 | AB112: ='Cash Flow'!W26 -> 0 | AC112: ='Cash Flow'!X26 -> 0 | AD112: ='Cash Flow'!Y26 -> 0 | AE112: ='Cash Flow'!Z26 -> 0 | AF112: ='Cash Flow'!AA26 -> 0 | AG112: ='Cash Flow'!AB26 -> 0 | AH112: ='Cash Flow'!AC26 -> 0 | AI112: ='Cash Flow'!AD26 -> 0
B113: ='Cash Flow'!A46 -> Common Dividends Paid | G113: ='Cash Flow'!B46 -> -1549623 | H113: ='Cash Flow'!C46 -> -3411135 | I113: ='Cash Flow'!D46 -> -2741090 | J113: ='Cash Flow'!E46 -> -2765455 | K113: ='Cash Flow'!F46 -> -2769413 | L113: ='Cash Flow'!G46 -> -2769413 | M113: ='Cash Flow'!H46 -> 0 | N113: ='Cash Flow'!I46 -> 0 | O113: ='Cash Flow'!J46 -> 0 | P113: ='Cash Flow'!K46 -> 0 | Q113: ='Cash Flow'!L46 -> 0 | R113: ='Cash Flow'!M46 -> 0 | S113: ='Cash Flow'!N46 -> 0 | T113: ='Cash Flow'!O46 -> 0 | U113: ='Cash Flow'!P46 -> 0 | V113: ='Cash Flow'!Q46 -> 0 | W113: ='Cash Flow'!R46 -> 0 | X113: ='Cash Flow'!S46 -> 0 | Y113: ='Cash Flow'!T46 -> 0 | Z113: ='Cash Flow'!U46 -> 0 | AA113: ='Cash Flow'!V46 -> 0 | AB113: ='Cash Flow'!W46 -> 0 | AC113: ='Cash Flow'!X46 -> 0 | AD113: ='Cash Flow'!Y46 -> 0 | AE113: ='Cash Flow'!Z46 -> 0 | AF113: ='Cash Flow'!AA46 -> 0 | AG113: ='Cash Flow'!AB46 -> 0 | AH113: ='Cash Flow'!AC46 -> 0 | AI113: ='Cash Flow'!AD46 -> 0
A115: Assumptions
B116: Balance Sheet
C117: Deposits/Growth
D118: Deposits | G118: =G34 -> 213577063 | H118: =H34 -> 247628653 | I118: 280983885 | J118: 327043182 | K118: 372837307 | L118: 370630838 | M118: 0 | N118: 0 | O118: 0 | P118: 0 | Q118: 0 | R118: 0 | S118: 0 | T118: 0 | U118: 0 | V118: 0 | W118: 0 | X118: 0 | Y118: 0 | Z118: 0 | AA118: 0 | AB118: 0 | AC118: 0
D119: Growth in Deposits | H119: =IF(H3,H118/G118-1) -> 0.1594346767 | I119: 0.1346985965 | J119: 0.1639214897 | K119: 0.1400247047 | L119: FALSE | M119: FALSE | N119: FALSE | O119: FALSE | P119: FALSE | Q119: FALSE | R119: FALSE | S119: FALSE | T119: FALSE | U119: FALSE | V119: FALSE | W119: FALSE | X119: FALSE | Y119: FALSE | Z119: FALSE | AA119: FALSE | AB119: FALSE | AC119: FALSE
D121: Base Case | L121: 0.1 | M121: 0.1 | N121: =M121 -> 0.1 | O121: 0.08 | P121: 0.07 | Q121: 0.05 | R121: 0.05 | S121: 0.05 | T121: 0.05 | U121: 0.05 | V121: 0.05 | W121: 0.05 | X121: 0.05 | Y121: 0.05 | Z121: 0.05 | AA121: 0.05 | AB121: 0.05 | AC121: 0.05
D122: Low Case | L122: 0.05 | M122: 0.05 | N122: 0.05 | O122: 0.05 | P122: 0.03 | Q122: 0.03 | R122: 0.03 | S122: 0.03 | T122: 0.03 | U122: 0.03 | V122: 0.03 | W122: 0.03 | X122: 0.03 | Y122: 0.03 | Z122: 0.03 | AA122: 0.03 | AB122: 0.03 | AC122: 0.03
D123: High Case | L123: 0.15 | M123: 0.15 | N123: 0.15 | O123: 0.15 | P123: 0.15 | Q123: 0.15 | R123: 0.15 | S123: 0.15 | T123: 0.15 | U123: 0.15 | V123: 0.15 | W123: 0.15 | X123: 0.15 | Y123: 0.15 | Z123: 0.15 | AA123: 0.15 | AB123: 0.15 | AC123: 0.15
D124: Sensitivity Case | L124: 0.12 | M124: 0.12 | N124: =M124 -> 0.12 | O124: =N124 -> 0.12 | P124: 0.12 | Q124: 0.12 | R124: 0.12 | S124: 0.12 | T124: 0.12 | U124: 0.12 | V124: 0.12 | W124: 0.12 | X124: 0.12 | Y124: 0.12 | Z124: 0.12 | AA124: 0.12 | AB124: 0.12 | AC124: 0.12
D126: Deposit Growth | F126: ='Master Scenario'!E31 -> 3 | G126: =IF(G3,G119,INDEX(G121:G124,$F$126)) -> 0 | H126: 0.1594346767 | I126: 0.1346985965 | J126: 0.1639214897 | K126: 0.1400247047 | L126: 0.15 | M126: 0.15 | N126: 0.15 | O126: 0.15 | P126: 0.15 | Q126: 0.15 | R126: 0.15 | S126: 0.15 | T126: 0.15 | U126: 0.15 | V126: 0.15 | W126: 0.15 | X126: 0.15 | Y126: 0.15 | Z126: 0.15 | AA126: 0.15 | AB126: 0.15 | AC126: 0.15
C128: Cash
D129: Cash Balance | G129: =G8+G24 -> 28376935 | H129: =H8+H24 -> 91985453 | I129: 86795966 | J129: 49176049 | K129: 76894602 | L129: 77804139 | M129: 0 | N129: 0 | O129: 0 | P129: 0 | Q129: 0 | R129: 0 | S129: 0 | T129: 0 | U129: 0 | V129: 0 | W129: 0 | X129: 0 | Y129: 0 | Z129: 0 | AA129: 0 | AB129: 0 | AC129: 0
D130: Cash to Deposits - History | G130: =IF(G118,G129/G118) -> 0.1328650867 | H130: =IF(H118,H129/H118) -> 0.3714653045 | I130: 0.3089001563 | J130: 0.1503656144 | K130: 0.2062417053 | L130: 0.2099235439 | M130: FALSE | N130: FALSE | O130: FALSE | P130: FALSE | Q130: FALSE | R130: FALSE | S130: FALSE | T130: FALSE | U130: FALSE | V130: FALSE | W130: FALSE | X130: FALSE | Y130: FALSE | Z130: FALSE | AA130: FALSE | AB130: FALSE | AC130: FALSE
D131: Cash to Deposits - Forecast | L131: ='Master Scenario'!F31 -> 0.18 | M131: =L131 -> 0.18 | N131: =M131 -> 0.18 | O131: 0.18 | P131: 0.18 | Q131: 0.18 | R131: 0.18 | S131: 0.18 | T131: 0.18 | U131: 0.18 | V131: 0.18 | W131: 0.18 | X131: 0.18 | Y131: 0.18 | Z131: 0.18 | AA131: 0.18 | AB131: 0.18 | AC131: 0.18
D133: Cash to Deposits Applied | G133: =IF(G3,G130,G131) -> 0.1328650867 | H133: 0.3714653045 | I133: 0.3089001563 | J133: 0.1503656144 | K133: 0.2062417053 | L133: 0.18 | M133: 0.18 | N133: 0.18 | O133: 0.18 | P133: 0.18 | Q133: 0.18 | R133: 0.18 | S133: 0.18 | T133: 0.18 | U133: 0.18 | V133: 0.18 | W133: 0.18 | X133: 0.18 | Y133: 0.18 | Z133: 0.18 | AA133: 0.18 | AB133: 0.18 | AC133: 0.18
C135: Trading Assets
D136: Trading Assets | G136: =adjust(G11) -> 206766 | H136: =adjust(H11) -> 37410 | I136: 63966 | J136: 2567832 | K136: 1441725 | L136: 1850018 | M136: 0 | N136: 0 | O136: 0 | P136: 0 | Q136: 0 | R136: 0 | S136: 0 | T136: 0 | U136: 0 | V136: 0 | W136: 0 | X136: 0 | Y136: 0 | Z136: 0 | AA136: 0 | AB136: 0 | AC136: 0
D137: Trading Income | G137: =adjust(G68) -> 0 | H137: =adjust(H68) -> 0 | I137: 0 | J137: 1158948 | K137: 604736 | L137: 624258 | M137: 0 | N137: 0 | O137: 0 | P137: 0 | Q137: 0 | R137: 0 | S137: 0 | T137: 0 | U137: 0 | V137: 0 | W137: 0 | X137: 0 | Y137: 0 | Z137: 0 | AA137: 0 | AB137: 0 | AC137: 0
D138: Return on Trading Income | G138: =IF(F136,G137/AVERAGE(F136:G136)) -> FALSE | H138: =IF(G136,H137/AVERAGE(G136:H136)) -> 0 | I138: 0 | J138: 0.8807271683 | K138: 0.3016472892 | L138: 0.3792872044 | M138: 0 | N138: FALSE | O138: FALSE | P138: FALSE | Q138: FALSE | R138: FALSE | S138: FALSE | T138: FALSE | U138: FALSE | V138: FALSE | W138: FALSE | X138: FALSE | Y138: FALSE | Z138: FALSE | AA138: FALSE | AB138: FALSE | AC138: FALSE
D139: Projected Trading Return | L139: 0.35 | M139: =L139 -> 0.35 | N139: =M139 -> 0.35 | O139: 0.35 | P139: 0.35 | Q139: 0.35 | R139: 0.35 | S139: 0.35 | T139: 0.35 | U139: 0.35 | V139: 0.35 | W139: 0.35 | X139: 0.35 | Y139: 0.35 | Z139: 0.35 | AA139: 0.35 | AB139: 0.35 | AC139: 0.35
D140: Applied Trading Return | G140: =IF(G3,G138,G139) -> FALSE | H140: 0 | I140: 0 | J140: 0.8807271683 | K140: 0.3016472892 | L140: =IF(L3,L138,L139) -> 0.35 | M140: =IF(M3,M138,M139) -> 0.35 | N140: 0.35 | O140: 0.35 | P140: 0.35 | Q140: 0.35 | R140: 0.35 | S140: 0.35 | T140: 0.35 | U140: 0.35 | V140: 0.35 | W140: 0.35 | X140: 0.35 | Y140: 0.35 | Z140: 0.35 | AA140: 0.35 | AB140: 0.35 | AC140: 0.35
C142: Gross Loans
D143: Loans | G143: =G14 -> 114242564 | H143: 125847866 | I143: 157577264 | J143: 206789521 | K143: 262881165 | L143: 271236575 | M143: 0 | N143: 0 | O143: 0 | P143: 0 | Q143: 0 | R143: 0 | S143: 0 | T143: 0 | U143: 0 | V143: 0 | W143: 0 | X143: 0 | Y143: 0 | Z143: 0 | AA143: 0 | AB143: 0 | AC143: 0
D144: Loan to Deposit - Historic | G144: =IF(G118,G143/G118) -> 0.5349009037 | H144: =IF(H118,H143/H118) -> 0.5082120525 | I144: 0.560805343 | J144: 0.6323003578 | K144: 0.7050827802 | L144: 0.731824088 | M144: FALSE | N144: FALSE | O144: FALSE | P144: FALSE | Q144: FALSE | R144: FALSE | S144: FALSE | T144: FALSE | U144: FALSE | V144: FALSE | W144: FALSE | X144: FALSE | Y144: FALSE | Z144: FALSE | AA144: FALSE | AB144: FALSE | AC144: FALSE
D146: Base Case | L146: 0.74 | M146: 0.75 | N146: 0.78 | O146: 0.8 | P146: 0.85 | Q146: 0.85 | R146: 0.85 | S146: 0.85 | T146: 0.85 | U146: 0.85 | V146: 0.85 | W146: 0.85 | X146: 0.85 | Y146: 0.85 | Z146: 0.85 | AA146: 0.85 | AB146: 0.85 | AC146: 0.85
D147: Low Case | L147: 0.72 | M147: 0.72 | N147: 0.7 | O147: 0.65 | P147: 0.6 | Q147: 0.6 | R147: 0.6 | S147: 0.6 | T147: 0.6 | U147: 0.6 | V147: 0.6 | W147: 0.6 | X147: 0.6 | Y147: 0.6 | Z147: 0.6 | AA147: 0.6 | AB147: 0.6 | AC147: 0.6
D148: High Case | L148: 0.85 | M148: 0.9 | N148: 0.95 | O148: 1 | P148: 1 | Q148: 1 | R148: 1 | S148: 1 | T148: 1 | U148: 1 | V148: 1 | W148: 1 | X148: 1 | Y148: 1 | Z148: 1 | AA148: 1 | AB148: 1 | AC148: 1
D149: Sensitivity Case | L149: 0.75 | M149: 0.75 | N149: =M149 -> 0.75 | O149: =N149 -> 0.75 | P149: 0.75 | Q149: 0.75 | R149: 0.75 | S149: 0.75 | T149: 0.75 | U149: 0.75 | V149: 0.75 | W149: 0.75 | X149: 0.75 | Y149: 0.75 | Z149: 0.75 | AA149: 0.75 | AB149: 0.75 | AC149: 0.75
D151: Loan to Deposit | F151: ='Master Scenario'!G31 -> 3 | G151: =IF(G3,G144,INDEX(G146:G149,$F$151)) -> 0.5349009037 | H151: 0.5082120525 | I151: 0.560805343 | J151: 0.6323003578 | K151: 0.7050827802 | L151: 0.85 | M151: 0.9 | N151: 0.95 | O151: 1 | P151: 1 | Q151: 1 | R151: 1 | S151: 1 | T151: 1 | U151: 1 | V151: 1 | W151: 1 | X151: 1 | Y151: 1 | Z151: 1 | AA151: 1 | AB151: 1 | AC151: 1
C153: Loan Loss Reserves
D154: Closing Balance | G154: =-G15 -> 2794789 | H154: =-H15 -> 4345084 | I154: 3949307 | J154: 3860505 | K154: 4105684 | L154: 4413962 | M154: 0 | N154: 0 | O154: 0 | P154: 0 | Q154: 0 | R154: 0 | S154: 0 | T154: 0 | U154: 0 | V154: 0 | W154: 0 | X154: 0 | Y154: 0 | Z154: 0 | AA154: 0 | AB154: 0 | AC154: 0
D155: Increase | H155: =IF(H3,H154-G154) -> 1550295 | I155: -395777 | J155: -88802 | K155: 245179 | L155: FALSE | M155: FALSE | N155: FALSE | O155: FALSE | P155: FALSE | Q155: FALSE | R155: FALSE | S155: FALSE | T155: FALSE | U155: FALSE | V155: FALSE | W155: FALSE | X155: FALSE | Y155: FALSE | Z155: FALSE | AA155: FALSE | AB155: FALSE | AC155: FALSE
D156: Loan Loss Provisions | G156: =G76 -> 1754149 | H156: =H76 -> 15416 | I156: 657311 | J156: 559209 | K156: 498670 | L156: 879958 | M156: 0 | N156: 0 | O156: 0 | P156: 0 | Q156: 0 | R156: 0 | S156: 0 | T156: 0 | U156: 0 | V156: 0 | W156: 0 | X156: 0 | Y156: 0 | Z156: 0 | AA156: 0 | AB156: 0 | AC156: 0
D158: Average Loan Balance | G158: =AVERAGE(G14,F14) -> 114242564 | H158: =AVERAGE(H14,G14) -> 120045215 | I158: 141712565 | J158: 182183392.5 | K158: 234835343 | L158: 267058870 | M158: 135618287.5 | N158: 0 | O158: 0 | P158: 0 | Q158: 0 | R158: 0 | S158: 0 | T158: 0 | U158: 0 | V158: 0 | W158: 0 | X158: 0 | Y158: 0 | Z158: 0 | AA158: 0 | AB158: 0 | AC158: 0
D159: Loan Loss Provisions as Percent of Loans | G159: =IF(G158,G156/G158) -> 0.01535460111 | H159: =IF(H158,H156/H158) -> 0.0001284182797 | I159: 0.004638339585 | J159: 0.003069483954 | K159: 0.00212348786 | L159: 0.003294996343 | M159: 0 | N159: FALSE | O159: FALSE | P159: FALSE | Q159: FALSE | R159: FALSE | S159: FALSE | T159: FALSE | U159: FALSE | V159: FALSE | W159: FALSE | X159: FALSE | Y159: FALSE | Z159: FALSE | AA159: FALSE | AB159: FALSE | AC159: FALSE
D161: Base Case | L161: 0.003 | M161: 0.003 | N161: 0.003 | O161: 0.003 | P161: 0.003 | Q161: 0.003 | R161: 0.003 | S161: 0.003 | T161: 0.003 | U161: 0.003 | V161: 0.003 | W161: 0.003 | X161: 0.003 | Y161: 0.003 | Z161: 0.003 | AA161: 0.003 | AB161: 0.003 | AC161: 0.003
D162: Low Case | L162: 0.015 | M162: 0.015 | N162: 0.015 | O162: 0.015 | P162: 0.015 | Q162: 0.015 | R162: 0.015 | S162: 0.015 | T162: 0.015 | U162: 0.015 | V162: 0.015 | W162: 0.015 | X162: 0.015 | Y162: 0.015 | Z162: 0.015 | AA162: 0.015 | AB162: 0.015 | AC162: 0.015
D163: High Case | L163: 0.002 | M163: 0.002 | N163: 0.002 | O163: 0.002 | P163: 0.002 | Q163: 0.002 | R163: 0.002 | S163: 0.002 | T163: 0.002 | U163: 0.002 | V163: 0.002 | W163: 0.002 | X163: 0.002 | Y163: 0.002 | Z163: 0.002 | AA163: 0.002 | AB163: 0.002 | AC163: 0.002
D164: Sensitivity | L164: 0.004 | M164: 0.004 | N164: 0.004 | O164: 0.004 | P164: 0.004 | Q164: 0.004 | R164: 0.004 | S164: 0.004 | T164: 0.004 | U164: 0.004 | V164: 0.004 | W164: 0.004 | X164: 0.004 | Y164: 0.004 | Z164: 0.004 | AA164: 0.004 | AB164: 0.004 | AC164: 0.004
D166: Loan Loss Provisions | F166: ='Master Scenario'!H31 -> 3 | G166: =IF(G3,G159,INDEX(G161:G164,$F$166)) -> 0.01535460111 | H166: 0.0001284182797 | I166: 0.004638339585 | J166: 0.003069483954 | K166: 0.00212348786 | L166: 0.002 | M166: 0.002 | N166: 0.002 | O166: 0.002 | P166: 0.002 | Q166: 0.002 | R166: 0.002 | S166: 0.002 | T166: 0.002 | U166: 0.002 | V166: 0.002 | W166: 0.002 | X166: 0.002 | Y166: 0.002 | Z166: 0.002 | AA166: 0.002 | AB166: 0.002 | AC166: 0.002
C168: Gross Plant | G168: =G19 -> 5162253 | H168: =H19 -> 5913511 | I168: 6825205 | J168: 7818396 | K168: 10620365 | L168: 11113982 | M168: 0 | N168: 0 | O168: 0 | P168: 0 | Q168: 0 | R168: 0 | S168: 0 | T168: 0 | U168: 0 | V168: 0 | W168: 0 | X168: 0 | Y168: 0 | Z168: 0 | AA168: 0 | AB168: 0 | AC168: 0
D169: Increase | H169: =IF(H3,H168-G168) -> 751258 | I169: 911694 | J169: 993191 | K169: 2801969 | L169: FALSE | M169: FALSE | N169: FALSE | O169: FALSE | P169: FALSE | Q169: FALSE | R169: FALSE | S169: FALSE | T169: FALSE | U169: FALSE | V169: FALSE | W169: FALSE | X169: FALSE | Y169: FALSE | Z169: FALSE | AA169: FALSE | AB169: FALSE | AC169: FALSE
D170: Accumulated Depreciation | G170: =-G20 -> 2517468 | H170: =-H20 -> 2942242 | I170: 3418248 | J170: 3673737 | K170: 4213740 | L170: 4404490 | M170: 0 | N170: 0 | O170: 0 | P170: 0 | Q170: 0 | R170: 0 | S170: 0 | T170: 0 | U170: 0 | V170: 0 | W170: 0 | X170: 0 | Y170: 0 | Z170: 0 | AA170: 0 | AB170: 0 | AC170: 0
D171: Increase in Accumulated Depreciation | H171: =IF(H3,H170-G170) -> 424774 | I171: 476006 | J171: 255489 | K171: 540003 | L171: FALSE | M171: FALSE | N171: FALSE | O171: FALSE | P171: FALSE | Q171: FALSE | R171: FALSE | S171: FALSE | T171: FALSE | U171: FALSE | V171: FALSE | W171: FALSE | X171: FALSE | Y171: FALSE | Z171: FALSE | AA171: FALSE | AB171: FALSE | AC171: FALSE
D172: Depreciation Expense | G172: =G111 -> 368800 | H172: =H111 -> 535046 | I172: 618185 | J172: 742837 | K172: 864567 | L172: 910114 | M172: 0 | N172: 0 | O172: 0 | P172: 0 | Q172: 0 | R172: 0 | S172: 0 | T172: 0 | U172: 0 | V172: 0 | W172: 0 | X172: 0 | Y172: 0 | Z172: 0 | AA172: 0 | AB172: 0 | AC172: 0
D173: Retirements | G173: =G172-G171 -> 368800 | H173: =H172-H171 -> 110272 | I173: 142179 | J173: 487348 | K173: 324564 | L173: 910114 | M173: 0 | N173: 0 | O173: 0 | P173: 0 | Q173: 0 | R173: 0 | S173: 0 | T173: 0 | U173: 0 | V173: 0 | W173: 0 | X173: 0 | Y173: 0 | Z173: 0 | AA173: 0 | AB173: 0 | AC173: 0
D174: Average Plant | G174: =AVERAGE(G168,F168) -> 5162253 | H174: =AVERAGE(H168,G168) -> 5537882 | I174: 6369358 | J174: 7321800.5 | K174: 9219380.5 | L174: 10867173.5 | M174: 5556991 | N174: 0 | O174: 0 | P174: 0 | Q174: 0 | R174: 0 | S174: 0 | T174: 0 | U174: 0 | V174: 0 | W174: 0 | X174: 0 | Y174: 0 | Z174: 0 | AA174: 0 | AB174: 0 | AC174: 0
D175: Depreciation Rate - History | G175: =IF(G174,G172/G174) -> 0.07144167479 | H175: =IF(H174,H172/H174) -> 0.09661563753 | I175: 0.09705609262 | J175: 0.1014555095 | K175: 0.09377712526 | L175: 0.08374891594 | M175: 0 | N175: FALSE | O175: FALSE | P175: FALSE | Q175: FALSE | R175: FALSE | S175: FALSE | T175: FALSE | U175: FALSE | V175: FALSE | W175: FALSE | X175: FALSE | Y175: FALSE | Z175: FALSE | AA175: FALSE | AB175: FALSE | AC175: FALSE
D176: Depreciation Rate - Projected | L176: 0.09 | M176: 0.09 | N176: 0.09 | O176: 0.09 | P176: 0.09 | Q176: 0.09 | R176: 0.09 | S176: 0.09 | T176: 0.09 | U176: 0.09 | V176: 0.09 | W176: 0.09 | X176: 0.09 | Y176: 0.09 | Z176: 0.09 | AA176: 0.09 | AB176: 0.09 | AC176: 0.09
D177: Depreciation Rate Applied | G177: =IF(G3,G175,G176) -> 0.07144167479 | H177: 0.09661563753 | I177: 0.09705609262 | J177: 0.1014555095 | K177: 0.09377712526 | L177: 0.09 | M177: 0.09 | N177: 0.09 | O177: 0.09 | P177: 0.09 | Q177: 0.09 | R177: 0.09 | S177: 0.09 | T177: 0.09 | U177: 0.09 | V177: 0.09 | W177: 0.09 | X177: 0.09 | Y177: 0.09 | Z177: 0.09 | AA177: 0.09 | AB177: 0.09 | AC177: 0.09
D179: Retirement Rate - Historic | H179: =IF(H74,H173/H174) -> 0.01991230582 | I179: =IF(I74,I173/I174) -> 0.02232234395 | J179: 0.06656122357 | K179: 0.03520453462 | L179: 0.08374891594 | M179: FALSE | N179: FALSE | O179: FALSE | P179: FALSE | Q179: FALSE | R179: FALSE | S179: FALSE | T179: FALSE | U179: FALSE | V179: FALSE | W179: FALSE | X179: FALSE | Y179: FALSE | Z179: FALSE | AA179: FALSE | AB179: FALSE | AC179: FALSE
D180: Retirement Rate - Projected | L180: 0.03 | M180: 0.03 | N180: 0.03 | O180: 0.03 | P180: 0.03 | Q180: 0.03 | R180: 0.03 | S180: 0.03 | T180: 0.03 | U180: 0.03 | V180: 0.03 | W180: 0.03 | X180: 0.03 | Y180: 0.03 | Z180: 0.03 | AA180: 0.03 | AB180: 0.03 | AC180: 0.03
D181: Retirement Rate Applied | H181: =IF(H3,H179,H180) -> 0.01991230582 | I181: 0.02232234395 | J181: 0.06656122357 | K181: 0.03520453462 | L181: 0.03 | M181: 0.03 | N181: 0.03 | O181: 0.03 | P181: 0.03 | Q181: 0.03 | R181: 0.03 | S181: 0.03 | T181: 0.03 | U181: 0.03 | V181: 0.03 | W181: 0.03 | X181: 0.03 | Y181: 0.03 | Z181: 0.03 | AA181: 0.03 | AB181: 0.03 | AC181: 0.03
D183: Capital Expenditures Derived | H183: =H169+H173 -> 861530 | I183: =I169+I173 -> 1053873 | J183: 1480539 | K183: 3126533 | L183: 910114 | M183: 0 | N183: 0 | O183: 0 | P183: 0 | Q183: 0 | R183: 0 | S183: 0 | T183: 0 | U183: 0 | V183: 0 | W183: 0 | X183: 0 | Y183: 0 | Z183: 0 | AA183: 0 | AB183: 0 | AC183: 0
D184: Capital Expenditures Cash Flow | G184: =-G112 -> 1014455 | H184: =-H112 -> 930497 | I184: 1118823 | J184: 1727384 | K184: 3211877 | L184: 2928307 | M184: 0 | N184: 0 | O184: 0 | P184: 0 | Q184: 0 | R184: 0 | S184: 0 | T184: 0 | U184: 0 | V184: 0 | W184: 0 | X184: 0 | Y184: 0 | Z184: 0 | AA184: 0 | AB184: 0 | AC184: 0
D186: Loan Increase | H186: =IF(H3,H143-G143) -> 11605302 | I186: 31729398 | J186: 49212257 | K186: 56091644 | L186: FALSE | M186: FALSE | N186: FALSE | O186: FALSE | P186: FALSE | Q186: FALSE | R186: FALSE | S186: FALSE | T186: FALSE | U186: FALSE | V186: FALSE | W186: FALSE | X186: FALSE | Y186: FALSE | Z186: FALSE | AA186: FALSE | AB186: FALSE | AC186: FALSE
D187: Capital Expenditures/Loan Increase | H187: =IF(H186,H184/H186) -> 0.08017861147 | I187: =IF(I186,I184/I186) -> 0.03526140017 | J187: 0.0351006864 | K187: 0.05726123841 | L187: =IF(L186,L184/L186) -> FALSE | M187: FALSE | N187: FALSE | O187: FALSE | P187: FALSE | Q187: FALSE | R187: FALSE | S187: FALSE | T187: FALSE | U187: FALSE | V187: FALSE | W187: FALSE | X187: FALSE | Y187: FALSE | Z187: FALSE | AA187: FALSE | AB187: FALSE | AC187: FALSE
D189: Capital Expenditure Growth - Historic | H189: =IF(H184,H184/G184-1) -> -0.08276167992 | I189: =IF(I184,I184/H184-1) -> 0.2023929148 | J189: 0.5439296475 | K189: 0.8593879531 | L189: -0.0882879388 | M189: FALSE | N189: FALSE | O189: FALSE | P189: FALSE | Q189: FALSE | R189: FALSE | S189: FALSE | T189: FALSE | U189: FALSE | V189: FALSE | W189: FALSE | X189: FALSE | Y189: FALSE | Z189: FALSE | AA189: FALSE | AB189: FALSE | AC189: FALSE
D190: Capital Expenditure Growth - Projected | L190: =L126 -> 0.15 | M190: =M126 -> 0.15 | N190: =N126 -> 0.15 | O190: 0.15 | P190: 0.15 | Q190: 0.15 | R190: 0.15 | S190: 0.15 | T190: 0.15 | U190: 0.15 | V190: 0.15 | W190: 0.15 | X190: 0.15 | Y190: 0.15 | Z190: 0.15 | AA190: 0.15 | AB190: 0.15 | AC190: 0.15
D191: Capital Expenditure Growth - Applied | G191: =IF(G3,G189,G190) -> 0 | H191: -0.08276167992 | I191: 0.2023929148 | J191: 0.5439296475 | K191: 0.8593879531 | L191: 0.15 | M191: 0.15 | N191: 0.15 | O191: 0.15 | P191: 0.15 | Q191: 0.15 | R191: 0.15 | S191: 0.15 | T191: 0.15 | U191: 0.15 | V191: 0.15 | W191: 0.15 | X191: 0.15 | Y191: 0.15 | Z191: 0.15 | AA191: 0.15 | AB191: 0.15 | AC191: 0.15
C193: Current Assets
D194: Receivables and other current assets | G194: =adjust(G23)+adjust(G25) -> 0 | H194: 0 | I194: 0 | J194: 1273598 | K194: 1946793 | L194: 1514246 | M194: 0 | N194: 0 | O194: 0 | P194: 0 | Q194: 0 | R194: 0 | S194: 0 | T194: 0 | U194: 0 | V194: 0 | W194: 0 | X194: 0 | Y194: 0 | Z194: 0 | AA194: 0 | AB194: 0 | AC194: 0
D195: Total Revenues | G195: =G77 -> 14521005 | H195: =H77 -> 17380044 | I195: 20211353 | J195: 23811482 | K195: 27545764 | L195: 28604966 | M195: 0 | N195: 0 | O195: 0 | P195: 0 | Q195: 0 | R195: 0 | S195: 0 | T195: 0 | U195: 0 | V195: 0 | W195: 0 | X195: 0 | Y195: 0 | Z195: 0 | AA195: 0 | AB195: 0 | AC195: 0
D196: Receivables as Percent of Revenues | G196: =IF(G195,G194/G195) -> 0 | H196: =IF(H195,H194/H195) -> 0 | I196: 0 | J196: 0.05348671704 | K196: 0.07067485948 | L196: 0.05293647264 | M196: FALSE | N196: FALSE | O196: FALSE | P196: FALSE | Q196: FALSE | R196: FALSE | S196: FALSE | T196: FALSE | U196: FALSE | V196: FALSE | W196: FALSE | X196: FALSE | Y196: FALSE | Z196: FALSE | AA196: FALSE | AB196: FALSE | AC196: FALSE
D197: Projected Receivables | L197: 0.055 | M197: 0.055 | N197: 0.055 | O197: 0.055 | P197: 0.055 | Q197: 0.055 | R197: 0.055 | S197: 0.055 | T197: 0.055 | U197: 0.055 | V197: 0.055 | W197: 0.055 | X197: 0.055 | Y197: 0.055 | Z197: 0.055 | AA197: 0.055 | AB197: 0.055 | AC197: 0.055
D198: Receivable Percent Applied | G198: =IF(G3,G196,G197) -> 0 | H198: 0 | I198: 0 | J198: 0.05348671704 | K198: 0.07067485948 | L198: 0.055 | M198: 0.055 | N198: 0.055 | O198: 0.055 | P198: 0.055 | Q198: 0.055 | R198: 0.055 | S198: 0.055 | T198: 0.055 | U198: 0.055 | V198: 0.055 | W198: 0.055 | X198: 0.055 | Y198: 0.055 | Z198: 0.055 | AA198: 0.055 | AB198: 0.055 | AC198: 0.055
C200: Current Liabilities
D201: Total Other Current Liabilities | G201: =adjust(G31)+G39+G40 -> 4893152 | H201: =adjust(H31)+H39+H40 -> 3299252 | I201: 4214793 | J201: 7896276 | K201: 11676956 | L201: 13330200 | M201: 0 | N201: 0 | O201: 0 | P201: 0 | Q201: 0 | R201: 0 | S201: 0 | T201: 0 | U201: 0 | V201: 0 | W201: 0 | X201: 0 | Y201: 0 | Z201: 0 | AA201: 0 | AB201: 0 | AC201: 0
D202: Total Expenses other than Interest | G202: =G79+G81+G82-G172 -> 6432162 | H202: 7899906 | I202: 8939899 | J202: 9449887 | K202: 11995151 | L202: 12280146 | M202: 0 | N202: 0 | O202: 0 | P202: 0 | Q202: 0 | R202: 0 | S202: 0 | T202: 0 | U202: 0 | V202: 0 | W202: 0 | X202: 0 | Y202: 0 | Z202: 0 | AA202: 0 | AB202: 0 | AC202: 0
D203: Current Liabilities as Percent of Expenses | G203: =IF(G202,G201/G202) -> 0.7607320836 | H203: =IF(H202,H201/H202) -> 0.4176318047 | I203: 0.471458682 | J203: 0.8355947537 | K203: 0.9734730309 | L203: 1.085508267 | M203: FALSE | N203: FALSE | O203: FALSE | P203: FALSE | Q203: FALSE | R203: FALSE | S203: FALSE | T203: FALSE | U203: FALSE | V203: FALSE | W203: FALSE | X203: FALSE | Y203: FALSE | Z203: FALSE | AA203: FALSE | AB203: FALSE | AC203: FALSE
D204: Projected Current Liability Percent | L204: 1 | M204: 1 | N204: 1 | O204: 1 | P204: 1 | Q204: 1 | R204: 1 | S204: 1 | T204: 1 | U204: 1 | V204: 1 | W204: 1 | X204: 1 | Y204: 1 | Z204: 1 | AA204: 1 | AB204: 1 | AC204: 1
D205: Payable Percent Applied | G205: =IF(G3,G203,G204) -> 0.7607320836 | H205: 0.4176318047 | I205: 0.471458682 | J205: 0.8355947537 | K205: 0.9734730309 | L205: 1 | M205: 1 | N205: 1 | O205: 1 | P205: 1 | Q205: 1 | R205: 1 | S205: 1 | T205: 1 | U205: 1 | V205: 1 | W205: 1 | X205: 1 | Y205: 1 | Z205: 1 | AA205: 1 | AB205: 1 | AC205: 1
C207: Other Assets
D208: Deferred Tax Assets | G208: =G26 -> 770686 | H208: =H26 -> 1046739 | I208: 951767 | J208: 798382 | K208: 919802 | L208: 1015870 | M208: 0 | N208: 0 | O208: 0 | P208: 0 | Q208: 0 | R208: 0 | S208: 0 | T208: 0 | U208: 0 | V208: 0 | W208: 0 | X208: 0 | Y208: 0 | Z208: 0 | AA208: 0 | AB208: 0 | AC208: 0
D209: Other Long-term Assets | G209: =G27 -> 7445934 | H209: =H27 -> 6659639 | I209: 7415449 | J209: 9561029 | K209: 13984879 | L209: 14232020 | M209: 0 | N209: 0 | O209: 0 | P209: 0 | Q209: 0 | R209: 0 | S209: 0 | T209: 0 | U209: 0 | V209: 0 | W209: 0 | X209: 0 | Y209: 0 | Z209: 0 | AA209: 0 | AB209: 0 | AC209: 0
D210: Total | G210: =SUM(G208:G209) -> 8216620 | H210: =SUM(H208:H209) -> 7706378 | I210: 8367216 | J210: 10359411 | K210: 14904681 | L210: 15247890 | M210: 0 | N210: 0 | O210: 0 | P210: 0 | Q210: 0 | R210: 0 | S210: 0 | T210: 0 | U210: 0 | V210: 0 | W210: 0 | X210: 0 | Y210: 0 | Z210: 0 | AA210: 0 | AB210: 0 | AC210: 0
D212: Increase | H212: =IF(H3,H210-G210) -> -510242 | I212: 660838 | J212: 1992195 | K212: 4545270 | L212: FALSE | M212: FALSE | N212: FALSE | O212: FALSE | P212: FALSE | Q212: FALSE | R212: FALSE | S212: FALSE | T212: FALSE | U212: FALSE | V212: FALSE | W212: FALSE | X212: FALSE | Y212: FALSE | Z212: FALSE | AA212: FALSE | AB212: FALSE | AC212: FALSE
D214: Other Long-term Liabilities | G214: =G42 -> 1913375 | H214: =H42 -> 1444172 | I214: 1484642 | J214: 715507 | K214: 1029011 | L214: 989067 | M214: 0 | N214: 0 | O214: 0 | P214: 0 | Q214: 0 | R214: 0 | S214: 0 | T214: 0 | U214: 0 | V214: 0 | W214: 0 | X214: 0 | Y214: 0 | Z214: 0 | AA214: 0 | AB214: 0 | AC214: 0
D215: Pension Liabilities | G215: =G41 -> 792603 | H215: =H41 -> 1021633 | I215: 2047252 | J215: 2251449 | K215: 2854612 | L215: 3016257 | M215: 0 | N215: 0 | O215: 0 | P215: 0 | Q215: 0 | R215: 0 | S215: 0 | T215: 0 | U215: 0 | V215: 0 | W215: 0 | X215: 0 | Y215: 0 | Z215: 0 | AA215: 0 | AB215: 0 | AC215: 0
C217: Total Debt | G217: =G36+G37+G38 -> 1114353 | H217: =H36+H37+H38 -> 1141921 | I217: 1580653 | J217: 1974599 | K217: 2698369 | L217: 2879335 | M217: 0 | N217: 0 | O217: 0 | P217: 0 | Q217: 0 | R217: 0 | S217: 0 | T217: 0 | U217: 0 | V217: 0 | W217: 0 | X217: 0 | Y217: 0 | Z217: 0 | AA217: 0 | AB217: 0 | AC217: 0
D218: Assumed Interest Rate | G218: 0.04 | H218: 0.04 | I218: 0.04 | J218: 0.04 | K218: 0.04 | L218: 0.04 | M218: 0.04 | N218: 0.04 | O218: 0.04 | P218: 0.04 | Q218: 0.04 | R218: 0.04 | S218: 0.04 | T218: 0.04 | U218: 0.04 | V218: 0.04 | W218: 0.04 | X218: 0.04 | Y218: 0.04 | Z218: 0.04 | AA218: 0.04 | AB218: 0.04 | AC218: 0.04
D219: Average Debt for Interest Rate | G219: =AVERAGE(G217,F217) -> 1114353 | H219: =AVERAGE(H217,G217) -> 1128137 | I219: 1361287 | J219: 1777626 | K219: 2336484 | L219: 2788852 | M219: 1439667.5 | N219: 0 | O219: 0 | P219: 0 | Q219: 0 | R219: 0 | S219: 0 | T219: 0 | U219: 0 | V219: 0 | W219: 0 | X219: 0 | Y219: 0 | Z219: 0 | AA219: 0 | AB219: 0 | AC219: 0
D220: Imputed Interest | G220: =IF(G219,G218*G219) -> 44574.12 | H220: =IF(H219,H218*H219) -> 45125.48 | I220: 54451.48 | J220: 71105.04 | K220: 93459.36 | L220: 111554.08 | M220: 57586.7 | N220: FALSE | O220: FALSE | P220: FALSE | Q220: FALSE | R220: FALSE | S220: FALSE | T220: FALSE | U220: FALSE | V220: FALSE | W220: FALSE | X220: FALSE | Y220: FALSE | Z220: FALSE | AA220: FALSE | AB220: FALSE | AC220: FALSE
D221: Interest on Deposits | G221: =G65-G220 -> 6895770.88 | H221: 7985860.52 | I221: 7669322.52 | J221: 7659051.96 | K221: 7553707.64 | L221: 7178523.92 | M221: -57586.7 | N221: 0 | O221: 0 | P221: 0 | Q221: 0 | R221: 0 | S221: 0 | T221: 0 | U221: 0 | V221: 0 | W221: 0 | X221: 0 | Y221: 0 | Z221: 0 | AA221: 0 | AB221: 0 | AC221: 0
D222: Repayment Percent | L222: 0.48 | M222: 0.1 | N222: 0.1 | O222: 0.1 | P222: 0.1 | Q222: 0.1 | R222: 0.02
C224: Interest Rate on Deposits
D225: Average Deposits | G225: =AVERAGE(G118,F118) -> 213577063 | H225: =AVERAGE(H118,G118) -> 230602858 | I225: 264306269 | J225: 304013533.5 | K225: 349940244.5 | L225: 371734072.5 | M225: 185315419 | N225: 0 | O225: 0 | P225: 0 | Q225: 0 | R225: 0 | S225: 0 | T225: 0 | U225: 0 | V225: 0 | W225: 0 | X225: 0 | Y225: 0 | Z225: 0 | AA225: 0 | AB225: 0 | AC225: 0
D226: Interest Rate on Deposits | G226: =IF(G225,G221/G225) -> 0.03228703861 | H226: =IF(H225,H221/H225) -> 0.0346303623 | I226: 0.02901680141 | J226: 0.02519312832 | K226: 0.02158570716 | L226: 0.01931091189 | M226: -0.0003107496414 | N226: FALSE | O226: FALSE | P226: FALSE | Q226: FALSE | R226: FALSE | S226: FALSE | T226: FALSE | U226: FALSE | V226: FALSE | W226: FALSE | X226: FALSE | Y226: FALSE | Z226: FALSE | AA226: FALSE | AB226: FALSE | AC226: FALSE
D228: Base Case | L228: 0.02 | M228: 0.02 | N228: 0.02 | O228: 0.02 | P228: 0.02 | Q228: 0.02 | R228: 0.02 | S228: 0.02 | T228: 0.02 | U228: 0.02 | V228: 0.02 | W228: 0.02 | X228: 0.02 | Y228: 0.02 | Z228: 0.02 | AA228: 0.02 | AB228: 0.02 | AC228: 0.02
D229: Low Case | L229: 0.03 | M229: 0.03 | N229: 0.03 | O229: 0.03 | P229: 0.03 | Q229: 0.03 | R229: 0.03 | S229: 0.03 | T229: 0.03 | U229: 0.03 | V229: 0.03 | W229: 0.03 | X229: 0.03 | Y229: 0.03 | Z229: 0.03 | AA229: 0.03 | AB229: 0.03 | AC229: 0.03
D230: High Case | L230: 0.015 | M230: 0.015 | N230: 0.015 | O230: 0.015 | P230: 0.015 | Q230: 0.015 | R230: 0.015 | S230: 0.015 | T230: 0.015 | U230: 0.015 | V230: 0.015 | W230: 0.015 | X230: 0.015 | Y230: 0.015 | Z230: 0.015 | AA230: 0.015 | AB230: 0.015 | AC230: 0.015
D231: Sensitivity | L231: 0.017 | M231: 0.017 | N231: =M231 -> 0.017 | O231: =N231 -> 0.017 | P231: 0.017 | Q231: 0.017 | R231: 0.017 | S231: 0.017 | T231: 0.017 | U231: 0.017 | V231: 0.017 | W231: 0.017 | X231: 0.017 | Y231: 0.017 | Z231: 0.017 | AA231: 0.017 | AB231: 0.017 | AC231: 0.017
D233: Deposit Interest Rate Applied | F233: ='Master Scenario'!J31 -> 3 | G233: =IF(G3,G226,INDEX(G228:G231,$F$233)) -> 0.03228703861 | H233: 0.0346303623 | I233: 0.02901680141 | J233: 0.02519312832 | K233: 0.02158570716 | L233: 0.015 | M233: 0.015 | N233: 0.015 | O233: 0.015 | P233: 0.015 | Q233: 0.015 | R233: 0.015 | S233: 0.015 | T233: 0.015 | U233: 0.015 | V233: 0.015 | W233: 0.015 | X233: 0.015 | Y233: 0.015 | Z233: 0.015 | AA233: 0.015 | AB233: 0.015 | AC233: 0.015
C235: Interest Income Rates
D236: Cash - Average | G236: =AVERAGE(F8:G8)+AVERAGE(F24:G24) -> 28376935 | H236: =AVERAGE(G8:H8)+AVERAGE(G24:H24) -> 60181194 | I236: 89390709.5 | J236: 67986007.5 | K236: 63035325.5 | L236: 77349370.5 | M236: 38902069.5 | N236: 0 | O236: 0 | P236: 0 | Q236: 0 | R236: 0 | S236: 0 | T236: 0 | U236: 0 | V236: 0 | W236: 0 | X236: 0 | Y236: 0 | Z236: 0 | AA236: 0 | AB236: 0 | AC236: 0
D237: Other Investements - Average | G237: =AVERAGE(F10:G10) -> 94677071 | H237: =AVERAGE(G10:H10) -> 76433051.5 | I237: 65281797.5 | J237: 92067659 | K237: 97404448 | L237: 80489969.5 | M237: 38965899 | N237: 0 | O237: 0 | P237: 0 | Q237: 0 | R237: 0 | S237: 0 | T237: 0 | U237: 0 | V237: 0 | W237: 0 | X237: 0 | Y237: 0 | Z237: 0 | AA237: 0 | AB237: 0 | AC237: 0
D238: Base for Other Interest | G238: =SUM(G236:G237) -> 123054006 | H238: =SUM(H236:H237) -> 136614245.5 | I238: 154672507 | J238: 160053666.5 | K238: 160439773.5 | L238: 157839340 | M238: 77867968.5 | N238: 0 | O238: 0 | P238: 0 | Q238: 0 | R238: 0 | S238: 0 | T238: 0 | U238: 0 | V238: 0 | W238: 0 | X238: 0 | Y238: 0 | Z238: 0 | AA238: 0 | AB238: 0 | AC238: 0
D239: Imputed Interest Income Rate | G239: 0.03 | H239: 0.03 | I239: 0.03 | J239: 0.03 | K239: 0.03 | L239: 0.03 | M239: 0.03 | N239: 0.03 | O239: 0.03 | P239: 0.03 | Q239: 0.03 | R239: 0.03 | S239: 0.03 | T239: 0.03 | U239: 0.03 | V239: 0.03 | W239: 0.03 | X239: 0.03 | Y239: 0.03 | Z239: 0.03 | AA239: 0.03 | AB239: 0.03 | AC239: 0.03
D240: Interest Income on Cash | G240: =G239*G236 -> 851308.05 | H240: =H239*H236 -> 1805435.82 | I240: 2681721.285 | J240: 2039580.225 | K240: 1891059.765 | L240: 2320481.115 | M240: 1167062.085 | N240: 0 | O240: 0 | P240: 0 | Q240: 0 | R240: 0 | S240: 0 | T240: 0 | U240: 0 | V240: 0 | W240: 0 | X240: 0 | Y240: 0 | Z240: 0 | AA240: 0 | AB240: 0 | AC240: 0
D241: Intrerest Income on Investments | G241: =G239*G237 -> 2840312.13 | H241: =H239*H237 -> 2292991.545 | I241: 1958453.925 | J241: 2762029.77 | K241: 2922133.44 | L241: 2414699.085 | M241: 1168976.97 | N241: 0 | O241: 0 | P241: 0 | Q241: 0 | R241: 0 | S241: 0 | T241: 0 | U241: 0 | V241: 0 | W241: 0 | X241: 0 | Y241: 0 | Z241: 0 | AA241: 0 | AB241: 0 | AC241: 0
D242: Interest Income | G242: =G238*G239 -> 3691620.18 | H242: =H238*H239 -> 4098427.365 | I242: 4640175.21 | J242: 4801609.995 | K242: 4813193.205 | L242: 4735180.2 | M242: 2336039.055 | N242: 0 | O242: 0 | P242: 0 | Q242: 0 | R242: 0 | S242: 0 | T242: 0 | U242: 0 | V242: 0 | W242: 0 | X242: 0 | Y242: 0 | Z242: 0 | AA242: 0 | AB242: 0 | AC242: 0
D244: Total Interest Income | G244: =G63 -> 18616168 | H244: =H63 -> 22081673 | I244: 20660602 | J244: 25783993 | K244: 28885290 | L244: 29754210 | M244: 0 | N244: 0 | O244: 0 | P244: 0 | Q244: 0 | R244: 0 | S244: 0 | T244: 0 | U244: 0 | V244: 0 | W244: 0 | X244: 0 | Y244: 0 | Z244: 0 | AA244: 0 | AB244: 0 | AC244: 0
D245: Interest Income on Loans | G245: =IF(G244,G244-G242) -> 14924547.82 | H245: =IF(H244,H244-H242) -> 17983245.64 | I245: 16020426.79 | J245: 20982383 | K245: 24072096.8 | L245: 25019029.8 | M245: FALSE | N245: FALSE | O245: FALSE | P245: FALSE | Q245: FALSE | R245: FALSE | S245: FALSE | T245: FALSE | U245: FALSE | V245: FALSE | W245: FALSE | X245: FALSE | Y245: FALSE | Z245: FALSE | AA245: FALSE | AB245: FALSE | AC245: FALSE
D246: Average Loans | G246: =AVERAGE(F17:G17) -> 111447679 | H246: =AVERAGE(G17:H17) -> 116475230.5 | I246: 137456591.5 | J246: 178018225 | K246: 230488839.5 | L246: 262369523 | M246: 133193708 | N246: 0 | O246: 0 | P246: 0 | Q246: 0 | R246: 0 | S246: 0 | T246: 0 | U246: 0 | V246: 0 | W246: 0 | X246: 0 | Y246: 0 | Z246: 0 | AA246: 0 | AB246: 0 | AC246: 0
D247: Interest Income Rate | G247: =IF(G246,G245/G246) -> 0.1339152861 | H247: =IF(H246,H245/H246) -> 0.1543954501 | I247: 0.1165489891 | J247: 0.1178664881 | K247: 0.1044393162 | L247: 0.0953579879 | M247: 0 | N247: FALSE | O247: FALSE | P247: FALSE | Q247: FALSE | R247: FALSE | S247: FALSE | T247: FALSE | U247: FALSE | V247: FALSE | W247: FALSE | X247: FALSE | Y247: FALSE | Z247: FALSE | AA247: FALSE | AB247: FALSE | AC247: FALSE
D249: Base Case | L249: 0.09 | M249: 0.09 | N249: =M249 -> 0.09 | O249: =N249 -> 0.09 | P249: 0.09 | Q249: 0.09 | R249: 0.09 | S249: 0.09 | T249: 0.09 | U249: 0.09 | V249: 0.09 | W249: 0.09 | X249: 0.09 | Y249: 0.09 | Z249: 0.09 | AA249: 0.09 | AB249: 0.09 | AC249: 0.09
D250: Low Case | L250: =L249 -> 0.09 | M250: =M249 -> 0.09 | N250: =M250-0.75% -> 0.0825 | O250: =N250-0.75% -> 0.075 | P250: =O250-0.75% -> 0.0675 | Q250: =P250-0.75% -> 0.06 | R250: =Q250 -> 0.06 | S250: =R250 -> 0.06 | T250: 0.06 | U250: 0.06 | V250: 0.06 | W250: 0.06 | X250: 0.06 | Y250: 0.06 | Z250: 0.06 | AA250: 0.06 | AB250: 0.06 | AC250: 0.06
D251: High Case | L251: 0.092 | M251: 0.092 | N251: =M251+0.1% -> 0.093 | O251: =N251+0.1% -> 0.094 | P251: =O251+0.1% -> 0.095 | Q251: =P251 -> 0.095 | R251: =Q251 -> 0.095 | S251: 0.095 | T251: 0.095 | U251: 0.095 | V251: 0.095 | W251: 0.095 | X251: 0.095 | Y251: 0.095 | Z251: 0.095 | AA251: 0.095 | AB251: 0.095 | AC251: 0.095
D252: Sensitivity Case | L252: 0.095 | M252: 0.095 | N252: =M252 -> 0.095 | O252: =N252 -> 0.095 | P252: 0.095 | Q252: 0.095 | R252: 0.095 | S252: 0.095 | T252: 0.095 | U252: 0.095 | V252: 0.095 | W252: 0.095 | X252: 0.095 | Y252: 0.095 | Z252: 0.095 | AA252: 0.095 | AB252: 0.095 | AC252: 0.095
D254: Interest Income Rate Applied | F254: ='Master Scenario'!K31 -> 3 | G254: =IF(G3,G247,INDEX(G249:G252,$F$254)) -> 0.1339152861 | H254: 0.1543954501 | I254: 0.1165489891 | J254: 0.1178664881 | K254: 0.1044393162 | L254: 0.092 | M254: 0.092 | N254: 0.093 | O254: 0.094 | P254: 0.095 | Q254: 0.095 | R254: 0.095 | S254: 0.095 | T254: 0.095 | U254: 0.095 | V254: 0.095 | W254: 0.095 | X254: 0.095 | Y254: 0.095 | Z254: 0.095 | AA254: 0.095 | AB254: 0.095 | AC254: 0.095
C256: Other Income | G256: =adjust(G69)+adjust(G70)+adjust(G71)+adjust(G72) -> 4599331 | H256: 3344773 | I256: 7931836 | J256: 5157907 | K256: 6201575 | L256: 6396534 | M256: 0 | N256: 0 | O256: 0 | P256: 0 | Q256: 0 | R256: 0 | S256: 0 | T256: 0 | U256: 0 | V256: 0 | W256: 0 | X256: 0 | Y256: 0 | Z256: 0 | AA256: 0 | AB256: 0 | AC256: 0
D257: Average Deposits | G257: =G225 -> 213577063 | H257: =H225 -> 230602858 | I257: 264306269 | J257: 304013533.5 | K257: 349940244.5 | L257: 371734072.5 | M257: 185315419 | N257: 0 | O257: 0 | P257: 0 | Q257: 0 | R257: 0 | S257: 0 | T257: 0 | U257: 0 | V257: 0 | W257: 0 | X257: 0 | Y257: 0 | Z257: 0 | AA257: 0 | AB257: 0 | AC257: 0
... 353 more rows

Sheet Master Scenario
D2: Scenario | E2: 3
E4: 1 | F4: =E4+1 -> 2 | G4: 3 | H4: 4 | I4: 5 | J4: 6 | K4: 7 | L4: 8 | M4: 9 | N4: 10
E5: Deposit Growth | F5: Cash to Deposits | G5: Loans to Deposits | H5: Loan Loss Provision | I5: Capital Expenditure | J5: Deposit Interest Rate | K5: Loan Interest Rate | L5: Other Income to Deposits | M5: Salary Expense to Loans | N5: Other Expense as Percent of Loans
D6: Base Case | E6: 1 | F6: 0.2 | G6: 1 | H6: 1 | I6: 0.1 | J6: 1 | K6: 1 | L6: 0.017 | M6: 0.024 | N6: 1
D7: Low Case | E7: 2 | F7: 0.3 | G7: 2 | H7: 2 | I7: 0.12 | J7: 2 | K7: 2 | L7: 0.015 | M7: 0.022 | N7: 2
D8: High Case | E8: 3 | F8: 0.18 | G8: 3 | H8: 3 | I8: 0.08 | J8: 3 | K8: 3 | L8: 0.021 | M8: 0.026 | N8: 3
D9: =TRANSPOSE(E5:N5)&" Low" -> Deposit Growth Low | E9: =E7 -> 2 | F9: =F$6 -> 0.2 | G9: 1 | H9: 1 | I9: 0.1 | J9: 1 | K9: 1 | L9: 0.017 | M9: 0.024 | N9: 1
D10: Cash to Deposits Low | E10: =E$6 -> 1 | F10: =F7 -> 0.3 | G10: =G$6 -> 1 | H10: 1 | I10: 0.1 | J10: 1 | K10: 1 | L10: 0.017 | M10: 0.024 | N10: 1
D11: Loans to Deposits Low | E11: 1 | F11: =F$6 -> 0.2 | G11: =G7 -> 2 | H11: =H$6 -> 1 | I11: 0.1 | J11: 1 | K11: 1 | L11: 0.017 | M11: 0.024 | N11: 1
D12: Loan Loss Provision Low | E12: 1 | F12: 0.2 | G12: =G$6 -> 1 | H12: =H7 -> 2 | I12: =I$6 -> 0.1 | J12: 1 | K12: 1 | L12: 0.017 | M12: 0.024 | N12: 1
D13: Capital Expenditure Low | E13: 1 | F13: 0.2 | G13: 1 | H13: =H$6 -> 1 | I13: =I7 -> 0.12 | J13: =J$6 -> 1 | K13: =K$6 -> 1 | L13: =L$6 -> 0.017 | M13: =M$6 -> 0.024 | N13: =N$6 -> 1
D14: Deposit Interest Rate Low | E14: 1 | F14: 0.2 | G14: 1 | H14: 1 | I14: =I$6 -> 0.1 | J14: =J7 -> 2 | K14: =K$6 -> 1 | L14: =L$6 -> 0.017 | M14: =M$6 -> 0.024 | N14: =N$6 -> 1
D15: Loan Interest Rate Low | E15: 1 | F15: 0.2 | G15: 1 | H15: 1 | I15: 0.1 | J15: =J$6 -> 1 | K15: =K7 -> 2 | L15: =L$6 -> 0.017 | M15: =M$6 -> 0.024 | N15: =N$6 -> 1
D16: Other Income to Deposits Low | E16: 1 | F16: 0.2 | G16: 1 | H16: 1 | I16: 0.1 | J16: 1 | K16: =K$6 -> 1 | L16: =L7 -> 0.015 | M16: =M$6 -> 0.024 | N16: =N$6 -> 1
D17: Salary Expense to Loans Low | E17: 1 | F17: 0.2 | G17: 1 | H17: 1 | I17: 0.1 | J17: 1 | K17: 1 | L17: =L$6 -> 0.017 | M17: =M7 -> 0.022 | N17: =N$6 -> 1
D18: Other Expense as Percent of Loans Low | E18: 1 | F18: 0.2 | G18: 1 | H18: 1 | I18: 0.1 | J18: 1 | K18: 1 | L18: 0.017 | M18: =M$6 -> 0.024 | N18: =N7 -> 2
D19: =TRANSPOSE(E5:N5)&" High" -> Deposit Growth High | E19: =E8 -> 3 | F19: 0.2 | G19: 1 | H19: 1 | I19: 0.1 | J19: 1 | K19: 1 | L19: 0.017 | M19: 0.024 | N19: =N$6 -> 1
D20: Cash to Deposits High | E20: =E$6 -> 1 | F20: =F8 -> 0.18 | G20: 1 | H20: 1 | I20: 0.1 | J20: 1 | K20: 1 | L20: 0.017 | M20: 0.024 | N20: 1
D21: Loans to Deposits High | E21: 1 | F21: =F$6 -> 0.2 | G21: =G8 -> 3 | H21: 1 | I21: 0.1 | J21: 1 | K21: 1 | L21: 0.017 | M21: 0.024 | N21: 1
D22: Loan Loss Provision High | E22: 1 | F22: 0.2 | G22: =G$6 -> 1 | H22: =H8 -> 3 | I22: 0.1 | J22: 1 | K22: 1 | L22: 0.017 | M22: 0.024 | N22: 1
D23: Capital Expenditure High | E23: 1 | F23: 0.2 | G23: 1 | H23: =H$6 -> 1 | I23: =I8 -> 0.08 | J23: 1 | K23: 1 | L23: 0.017 | M23: 0.024 | N23: 1
D24: Deposit Interest Rate High | E24: 1 | F24: 0.2 | G24: 1 | H24: 1 | I24: =I$6 -> 0.1 | J24: =J8 -> 3 | K24: 1 | L24: 0.017 | M24: 0.024 | N24: 1
D25: Loan Interest Rate High | E25: 1 | F25: 0.2 | G25: 1 | H25: 1 | I25: 0.1 | J25: =J$6 -> 1 | K25: =K8 -> 3 | L25: 0.017 | M25: 0.024 | N25: 1
D26: Other Income to Deposits High | E26: 1 | F26: 0.2 | G26: 1 | H26: 1 | I26: 0.1 | J26: =J$6 -> 1 | K26: =K$6 -> 1 | L26: =L8 -> 0.021 | M26: 0.024 | N26: 1
D27: Salary Expense to Loans High | E27: 1 | F27: 0.2 | G27: 1 | H27: 1 | I27: 0.1 | J27: =J$6 -> 1 | K27: =K$6 -> 1 | L27: =L$6 -> 0.017 | M27: =M8 -> 0.026 | N27: 1
D28: Other Expense as Percent of Loans High | E28: 1 | F28: 0.2 | G28: 1 | H28: 1 | I28: 0.1 | J28: =J$6 -> 1 | K28: =K$6 -> 1 | L28: =L$6 -> 0.017 | M28: =M$6 -> 0.024 | N28: =N8 -> 3
D29: Flex Case | E29: 1 | F29: 0.2 | G29: 1 | H29: 1 | I29: 0.1 | J29: =J$6 -> 1 | K29: =K$6 -> 1 | L29: =L$6 -> 0.017 | M29: =M$6 -> 0.024 | N29: =N$6 -> 1
D31: =INDEX(D6:D29,$E$2) -> High Case | E31: =INDEX(E6:E29,$E$2) -> 3 | F31: 0.18 | G31: 3 | H31: 3 | I31: 0.08 | J31: 3 | K31: 3 | L31: 0.021 | M31: 0.026 | N31: 3

Sheet Audit
B4: Cash Flow | C4: =Working!F491 -> TRUE | D4: =IF(C4,"",B4) -> 
B5: Balance Sheet | C5: =Working!F541 -> FALSE | D5: =IF(C5,"",B5) -> Balance Sheet
B6: Net Margin | C6: =Working!F640 -> TRUE
B7: Total Revenue | C7: =Working!F645 -> TRUE
B8: EBT | C8: =Working!F650 -> TRUE
B9: Cap Adequacecy | C9: =Working!F547 -> FALSE | D9: Cap Adequacecy
B10: Assets | C10: =Working!F661 -> TRUE | D10: =IF(C10,"",B10) -> 
C12: =AND(C4:C10) -> FALSE | D12: =D4&D5&D6&D7&D8&D10&D9 -> Balance SheetCap Adequacecy
D13: =IF(D12="","Model Ok",D12) -> Balance SheetCap Adequacecy

Sheet Key Stats
A5: PT Bank Central Asia Tbk (JKSE:BBCA) > Financials > Key Stats
A7: In Millions of the trading currency, except per share items. | B7: Currency: | C7: Trading Currency | E7: Conversion: | F7: Today's Spot Rate
B8: Order: | C8: Latest on Right | E8: Units: | F8: S&P Capital IQ (Default)
B9: Decimals: | C9: Capital IQ (Default)
A12: Key Financials¹
A13: For the Fiscal Period Ending | B13: 12 months Dec-31-2009A | C13: 12 months Dec-31-2010A | D13: 12 months Dec-31-2011A | E13: 12 months Dec-31-2012A | F13: LTM² 12 months Mar-31-2013A | G13: 12 months† Dec-31-2013E | H13: 12 months Dec-31-2014E | I13: 12 months Dec-31-2015E
A14: Currency | B14: IDR | C14: IDR | D14: IDR | E14: IDR | F14: IDR | G14: IDR | H14: IDR | I14: IDR
A16: Total Revenue | B16: 17380044 | C16: 20211353 | D16: 23811482 | E16: 27545764 | F16: 28604966 | G16: 32930259.86 | H16: 38738752.84 | I16: 45711977.73
A17: Growth Over Prior Year | B17: 0.196889 | C17: 0.162905 | D17: 0.178124 | E17: 0.156826 | F17: 0.156458 | G17: 0.05146904713 | H17: 0.1763877056 | I17: 0.1800064375
A19: EBT Excl. Unusual Items | B19: 8945092 | C19: 10653269 | D19: 13618758 | E19: 14686046 | F19: 15414706 | G19: - | H19: - | I19: -
A20: Margin % | B20: 0.514676 | C20: 0.527093 | D20: 0.57194 | E20: 0.53315 | F20: 0.538882 | G20: - | H20: - | I20: -
A21: Earnings from Cont. Ops. | B21: 6807242 | C21: 8479273 | D21: 10817798 | E21: 11718460 | F21: 12308435 | G21: - | H21: - | I21: -
A22: Margin % | B22: 0.39167 | C22: 0.41953 | D22: 0.45431 | E22: 0.425417 | F22: 0.43029 | G22: - | H22: - | I22: -
A24: Net Income | B24: 6807242 | C24: 8479273 | D24: 10819309 | E24: 11721717 | F24: 12309907 | G24: 13432026.41 | H24: 15899680.98 | I24: 18889303.05
A25: Margin % | B25: 0.39167 | C25: 0.41953 | D25: 0.454373 | E25: 0.425536 | F25: 0.430341 | G25: 0.4078931192 | H25: 0.4104334759 | I25: 0.4132243667
A27: Diluted EPS Excl. Extra Items³ | B27: 279.3833 | C27: 348.006912 | D27: 444.046833 | E27: 480.363065 | F27: 503.394482 | G27: 548.62168 | H27: 649.56256 | I27: 769.76194
A28: Growth Over Prior Year | B28: 0.181512 | C28: 0.245625 | D28: 0.275971 | E28: 0.081784 | F28: 0.104334 | G28: - | H28: 0.1839899583 | I28: 0.1850466566
A30: Total Assets | B30: 282392324 | C30: 324419069 | D30: 381908353 | E30: 442994197 | F30: 447444999 | G30: - | H30: - | I30: -
A31: Growth Over Prior Year | B31: 0.149947 | C31: 0.148823 | D31: 0.177206 | E31: 0.159948 | F31: 0.116571 | G31: - | H31: - | I31: -
A33: ¹All results are taken from the most recently filed statement for each period. When there has been more than one, earlier filings can be viewed on the individual statement pages.
A34: ²Growth rates for the LTM period are calculated against the LTM period ending 12 months before.
A35: ³All forward period figures are consensus mean estimates provided by the brokers and may not be on a comparable basis as financials.
A36: †Growth rates for forward periods are calculated against prior period estimates or actual pro forma results as disclosed on the Estimates Consensus page.
A38: Latest Capitalization (Millions of IDR)
A39: Currency | B39: IDR
A40: Share Price | B40: 9100
A41: Shares Out. | B41: 24456.229
A43: Market Capitalization** | B43: 222551683.9
A44: Book Value of Common Equity | B44: 56525272
A45: + Book Value of Pref. Equity | B45: -
A46: = Total Equity | B46: 56599302
A48: Tier 1 Capital | B48: -
A49: Tier 2 Capital | B49: -
A50: Total Capital | B50: -
A52: Tier 1 Capital Ratio % | B52: -
A53: Total Capital Ratio % | B53: -
A54: Leverage Ratio % | B54: -
A56: **For companies that have multiple share classes that publicly trade, we are incorporating the different prices to calculate our company level market capitalization. Please click on the value to see the detailed calculation. Prices shown on this page are the close price of the company’s primary stock class. Shares shown on this page are total company as-reported share values.
A61: Valuation Multiples based on Current Capitalization
A62: For the Fiscal Period Ending | B62: 12 months Dec-31-2012A | C62: LTM 12 months Mar-31-2013A | D62: 12 months Dec-31-2013E | E62: 12 months Dec-31-2014E | F62: 12 months Dec-31-2015E
A63: Market Cap / Total Revenue | B63: 8.079343 | C63: 7.780176 | D63: 6.731494709 | E63: 5.719257998 | F63: 4.857504508
A65: Market Cap / EBT Excl. Unusual Items | B65: 15.153955 | C65: 14.437621 | D65: - | E65: - | F65: -
A67: P/Diluted EPS Before Extra | B67: 18.944004 | C67: 18.077274 | D67: 16.4919759 | E67: 13.90698896 | F67: 11.73714702
A69: P/BV | B69: 4.294144 | C69: NA | D69: 3.593911173 | E69: 2.996040725 | F69: 2.510369187
A71: Price/Tang BV | B71: 4.294144 | C71: NA | D71: - | E71: - | F71: -

Sheet Income Statement
A5: PT Bank Central Asia Tbk (JKSE:BBCA) > Financials > Income Statement
A7: In Millions of the reported currency, except per share items. | B7: Template: | C7: Bank | E7: Restatement: | F7: Latest Filings
B8: Period Type: | C8: Annual | E8: Order: | F8: Latest on Right
B9: Currency: | C9: Reported Currency | E9: Conversion: | F9: Today's Spot Rate
B10: Units: | C10: S&P Capital IQ (Default) | E10: Decimals: | F10: Capital IQ (Default)
A13: Income Statement
A14: For the Fiscal Period Ending | B14: Reclassified 12 months Dec-31-2008 | C14: Reclassified 12 months Dec-31-2009 | D14: 12 months Dec-31-2010 | E14: Reclassified 12 months Dec-31-2011 | F14: 12 months Dec-31-2012 | G14: LTM 12 months Mar-31-2013
A15: Currency | B15: IDR | C15: IDR | D15: IDR | E15: IDR | F15: IDR | G15: IDR
A17: Interest Income On Loans | B17: 18616168 | C17: 22081673 | D17: 20660602 | E17: 25783993 | F17: 28885290 | G17: 29754210
A18: Total Interest Income | B18: 18616168 | C18: 22081673 | D18: 20660602 | E18: 25783993 | F18: 28885290 | G18: 29754210
A19: Interest On Deposits | B19: 6940345 | C19: 8030986 | D19: 7723774 | E19: 7730157 | F19: 7647167 | G19: 7290078
A20: Total Interest Expense | B20: 6940345 | C20: 8030986 | D20: 7723774 | E20: 7730157 | F20: 7647167 | G20: 7290078
A21: Net Interest Income | B21: 11675823 | C21: 14050687 | D21: 12936828 | E21: 18053836 | F21: 21238123 | G21: 22464132
A23: Income From Trading Activities | B23: - | C23: - | D23: - | E23: 1158948 | F23: 604736 | G23: 624258
A24: Gain (Loss) On Sale Of Assets (Rev) | B24: 5974 | C24: 7219 | D24: 9673 | E24: 7007 | F24: 4461 | G24: 4461
A25: Gain on Sale of Invest. & Secur (Rev) | B25: -14429 | C25: -2211438 | D25: 2068760 | E25: - | F25: - | G25: -
A26: Total Other Non-Interest Income | B26: 4580672 | C26: 5130002 | D26: 5674085 | E26: 4835924 | F26: 5771097 | G26: 5958196
A27: Non-Oper. Income (Exp.) | B27: 27114 | C27: 418990 | D27: 179318 | E27: 314976 | F27: 426017 | G27: 433877
A28: Total Non Interest Income | B28: 4599331 | C28: 3344773 | D28: 7931836 | E28: 6316855 | F28: 6806311 | G28: 7020792
A29: Revenue Before Loan Losses | B29: 16275154 | C29: 17395460 | D29: 20868664 | E29: 24370691 | F29: 28044434 | G29: 29484924
A31: Provision For Loan Losses | B31: 1754149 | C31: 15416 | D31: 657311 | E31: 559209 | F31: 498670 | G31: 879958
A32: Total Revenue | B32: 14521005 | C32: 17380044 | D32: 20211353 | E32: 23811482 | F32: 27545764 | G32: 28604966
A34: Salaries and Other Empl. Benefits | B34: 3283965 | C34: 4186617 | D34: 4544611 | E34: 5204359 | F34: 6154966 | G34: 6398327
A35: Amort. of Goodwill & Intang. Assets | B35: - | C35: - | D35: - | E35: - | F35: - | G35: -
A36: Selling General & Admin Exp., Total | B36: 3318400 | C36: 4056247 | D36: 4785413 | E36: 5448690 | F36: 6400048 | G36: 6513027
A37: Total Other Non-Interest Expense | B37: 198597 | C37: 192088 | D37: 228060 | E37: -460325 | F37: 304704 | G37: 278906
A38: Total Non-Interest Expense | B38: 6800962 | C38: 8434952 | D38: 9558084 | E38: 10192724 | F38: 12859718 | G38: 13190260
A40: EBT Excl. Unusual Items | B40: 7720043 | C40: 8945092 | D40: 10653269 | E40: 13618758 | F40: 14686046 | G40: 15414706
A42: Impairment of Goodwill | B42: - | C42: - | D42: - | E42: - | F42: - | G42: -
A43: Other Unusual Items | B43: - | C43: - | D43: - | E43: - | F43: - | G43: -
A44: EBT Incl. Unusual Items | B44: 7720043 | C44: 8945092 | D44: 10653269 | E44: 13618758 | F44: 14686046 | G44: 15414706
A46: Income Tax Expense | B46: 1943904 | C46: 2137850 | D46: 2173996 | E46: 2800960 | F46: 2967586 | G46: 3106271
A47: Earnings from Cont. Ops. | B47: 5776139 | C47: 6807242 | D47: 8479273 | E47: 10817798 | F47: 11718460 | G47: 12308435
A49: Earnings of Discontinued Ops. | B49: - | C49: - | D49: - | E49: - | F49: - | G49: -
A50: Extraord. Item & Account. Change | B50: - | C50: - | D50: - | E50: - | F50: - | G50: -
A51: Net Income to Company | B51: 5776139 | C51: 6807242 | D51: 8479273 | E51: 10817798 | F51: 11718460 | G51: 12308435
A53: Minority Int. in Earnings | B53: - | C53: - | D53: - | E53: 1511 | F53: 3257 | G53: 1472
A54: Net Income | B54: 5776139 | C54: 6807242 | D54: 8479273 | E54: 10819309 | F54: 11721717 | G54: 12309907
A56: Pref. Dividends and Other Adj. | B56: - | C56: - | D56: - | E56: - | F56: - | G56: -
A58: NI to Common Incl Extra Items | B58: 5776139 | C58: 6807242 | D58: 8479273 | E58: 10819309 | F58: 11721717 | G58: 12309907
A59: NI to Common Excl. Extra Items | B59: 5776139 | C59: 6807242 | D59: 8479273 | E59: 10819309 | F59: 11721717 | G59: 12309907
A61: Per Share Items
A62: Basic EPS | B62: 236.46235 | C62: 279.3833 | D62: 348.006912 | E62: 444.046833 | F62: 480.363065 | G62: 503.394482
A63: Basic EPS Excl. Extra Items | B63: 236.46235 | C63: 279.3833 | D63: 348.006912 | E63: 444.046833 | F63: 480.363065 | G63: 503.394482
A64: Weighted Avg. Basic Shares Out. | B64: 24427.30941 | C64: 24365.243 | D64: 24365.243 | E64: 24365.243 | F64: 24401.78656 | G64: 24453.79804
A66: Diluted EPS | B66: 236.46235 | C66: 279.3833 | D66: 348.006912 | E66: 444.046833 | F66: 480.363065 | G66: 503.394482
A67: Diluted EPS Excl. Extra Items | B67: 236.46235 | C67: 279.3833 | D67: 348.006912 | E67: 444.046833 | F67: 480.363065 | G67: 503.394482
A68: Weighted Avg. Diluted Shares Out. | B68: 24427.30941 | C68: 24365.243 | D68: 24365.243 | E68: 24365.243 | F68: 24401.78656 | G68: 24453.79804
A70: Normalized Basic EPS | B70: 197.525924 | C70: 229.45318 | D70: 273.27013 | E70: 349.400773 | F70: 376.285389 | G70: 394.035447
A71: Normalized Diluted EPS | B71: 197.525924 | C71: 229.45318 | D71: 273.27013 | E71: 349.400773 | F71: 376.285389 | G71: 394.035447
A73: Dividends per Share | B73: NA | C73: 110 | D73: 112.5 | E73: 113.5 | F73: NA | G73: NA
A74: Payout Ratio % | B74: 0.26828 | C74: 0.501103 | D74: 0.323269 | E74: 0.255603 | F74: 0.236263 | G74: 0.224974
A75: Shares per Depository Receipt | B75: 25 | C75: 25 | D75: 25 | E75: 25 | F75: 25 | G75: 25
A77: Supplemental Items
A78: Effective Tax Rate % | B78: 0.251799 | C78: 0.238996 | D78: 0.204068 | E78: 0.205669 | F78: 0.202068 | G78: 0.201513
A79: Total Current Taxes | B79: 2342474 | C79: 2539930 | D79: 2255244 | E79: 2628781 | F79: 3141702 | G79: 3331168
A80: Total Deferred Taxes | B80: -398570 | C80: -402080 | D80: -81248 | E80: 172179 | F80: -174116 | G80: -224897
A82: Normalized Net Income | B82: 4825026.875 | C82: 5590682.5 | D82: 6658293.125 | E82: 8513234.75 | F82: 9182035.75 | G82: 9635663.25
A83: NI per SFAS 123 (after Options) | B83: NA | C83: NA | D83: NA | E83: NA | F83: NA | G83: NA
A84: Non-Cash Pension Expense | B84: 149968 | C84: 481897 | D84: 351195 | E84: - | F84: - | G84: -
A85: Filing Date | B85: 2010-03-05 | C85: 2011-03-01 | D85: 2013-02-20 | E85: 2013-03-28 | F85: 2013-03-28 | G85: 2013-04-30
A86: Restatement Type | B86: RC | C86: RC | D86: NC | E86: RC | F86: O | G86: O
A87: Calculation Type | B87: REP | C87: REP | D87: REP | E87: REP | F87: REP | G87: LTM
A90: Note: For multiple class companies, per share items are primary class equivalent, and for foreign companies listed as primary ADRs, per share items are ADR-equivalent.

Sheet Balance Sheet
A5: PT Bank Central Asia Tbk (JKSE:BBCA) > Financials > Balance Sheet
A7: In Millions of the reported currency, except per share items. | B7: Template: | C7: Bank | E7: Restatement: | F7: Latest Filings
B8: Period Type: | C8: Annual | E8: Order: | F8: Latest on Right
B9: Currency: | C9: Reported Currency | E9: Conversion: | F9: Today's Spot Rate
B10: Units: | C10: S&P Capital IQ (Default) | E10: Decimals: | F10: Capital IQ (Default)
A13: Balance Sheet
A14: Balance Sheet as of: | B14: Reclassified Dec-31-2008 | C14: Restated Dec-31-2009 | D14: 2010-12-31 | E14: Reclassified Dec-31-2011 | F14: 2012-12-31 | G14: 2013-03-31
A15: Currency | B15: IDR | C15: IDR | D15: IDR | E15: IDR | F15: IDR | G15: IDR
A16: ASSETS
A17: Cash And Equivalents | B17: 18708327 | C17: 80474175 | D17: 66210486 | E17: 17294974 | F17: 43046602 | G17: 44254533
A19: Investment Securities | B19: 94677071 | C19: 58189032 | D19: 72374563 | E19: 111760755 | F19: 83048141 | G19: 77931798
A20: Trading Asset Securities | B20: 206766 | C20: 37410 | D20: 63966 | E20: 2567832 | F20: 1441725 | G20: 1850018
A21: Total Investments | B21: 94883837 | C21: 58226442 | D21: 72438529 | E21: 114328587 | F21: 84489866 | G21: 79781816
A23: Gross Loans | B23: 114242564 | C23: 125847866 | D23: 157577264 | E23: 206789521 | F23: 262881165 | G23: 271236575
A24: Allowance For Loan Losses | B24: -2794789 | C24: -4345084 | D24: -3949307 | E24: -3860505 | F24: -4105684 | G24: -4413962
A25: Other Adj. to Gross Loans | B25: -96 | C25: - | D25: -217556 | E25: -302967 | F25: -423851 | G25: -435197
A26: Net Loans | B26: 111447679 | C26: 121502782 | D26: 153410401 | E26: 202626049 | F26: 258351630 | G26: 266387416
A28: Gross Property, Plant & Equipment | B28: 5162253 | C28: 5913511 | D28: 6825205 | E28: 7818396 | F28: 10620365 | G28: 11113982
A29: Accumulated Depreciation | B29: -2517468 | C29: -2942242 | D29: -3418248 | E29: -3673737 | F29: -4213740 | G29: -4404490
A30: Net Property, Plant & Equipment | B30: 2644785 | C30: 2971269 | D30: 3406957 | E30: 4144659 | F30: 6406625 | G30: 6709492
A32: Other Receivables | B32: - | C32: - | D32: - | E32: 1273598 | F32: 1946793 | G32: 1514246
A33: Restricted Cash | B33: 9668608 | C33: 11511278 | D33: 20585480 | E33: 31881075 | F33: 33848000 | G33: 33549606
A34: Other Current Assets | B34: - | C34: - | D34: - | E34: - | F34: - | G34: -
A35: Deferred Tax Assets, LT | B35: 770686 | C35: 1046739 | D35: 951767 | E35: 798382 | F35: 919802 | G35: 1015870
A36: Other Long-Term Assets | B36: 7445934 | C36: 6659639 | D36: 7415449 | E36: 9561029 | F36: 13984879 | G36: 14232020
A37: Total Assets | B37: 245569856 | C37: 282392324 | D37: 324419069 | E37: 381908353 | F37: 442994197 | G37: 447444999
A39: LIABILITIES
A40: Accrued Exp. | B40: 150776 | C40: 162283 | D40: 171288 | E40: 3693094 | F40: 5620847 | G40: 7327942
A42: Interest Bearing Deposits | B42: 213577063 | C42: 247628653 | D42: 280983885 | E42: 327043182 | F42: 372837307 | G42: 370630838
A43: Total Deposits | B43: 213577063 | C43: 247628653 | D43: 280983885 | E43: 327043182 | F43: 372837307 | G43: 370630838
A45: Short-term Borrowings | B45: 220286 | C45: 417265 | D45: 432150 | E45: 74393 | F45: 173474 | G45: 455000
A46: Curr. Port. of LT Debt | B46: 11897 | C46: 310242 | D46: 753309 | E46: 924639 | F46: 981859 | G46: 980177
A47: Long-Term Debt | B47: 882170 | C47: 414414 | D47: 395194 | E47: 975567 | F47: 1543036 | G47: 1444158
A48: Curr. Income Taxes Payable | B48: 498436 | C48: 264191 | D48: 487315 | E48: 159860 | F48: 216614 | G48: 240807
A49: Other Current Liabilities | B49: 4243940 | C49: 2872778 | D49: 3556190 | E49: 4043322 | F49: 5839495 | G49: 5761451
A50: Pension & Other Post-Retire. Benefits | B50: 792603 | C50: 1021633 | D50: 2047252 | E50: 2251449 | F50: 2854612 | G50: 3016257
A51: Other Non-Current Liabilities | B51: 1913375 | C51: 1444172 | D51: 1484642 | E51: 715507 | F51: 1029011 | G51: 989067
A52: Total Liabilities | B52: 222290546 | C52: 254535631 | D52: 290311225 | E52: 339881013 | F52: 391096255 | G52: 390845697
A54: Common Stock | B54: 1540938 | C54: 1540938 | D54: 1540938 | E54: 1540938 | F54: 1540938 | G54: 1540938
A55: Additional Paid In Capital | B55: 3895933 | C55: 3895933 | D55: 3895933 | E55: 3895933 | F55: 4396429 | G55: 5711369
A56: Retained Earnings | B56: 18338392 | C56: 22587283 | D56: 28528020 | E56: 36581874 | F56: 45534178 | G56: 48426068
A57: Treasury Stock | B57: -808585 | C57: -808585 | D57: -808585 | E57: -808585 | F57: -617589 | G57: -
A58: Comprehensive Inc. and Other | B58: 312632 | C58: 641124 | D58: 951538 | E58: 792756 | F58: 972819 | G58: 846897
A59: Total Common Equity | B59: 23279310 | C59: 27856693 | D59: 34107844 | E59: 42002916 | F59: 51826775 | G59: 56525272
A61: Minority Interest | B61: - | C61: - | D61: - | E61: 24424 | F61: 71167 | G61: 74030
A63: Total Equity | B63: 23279310 | C63: 27856693 | D63: 34107844 | E63: 42027340 | F63: 51897942 | G63: 56599302
A65: Total Liabilities And Equity | B65: 245569856 | C65: 282392324 | D65: 324419069 | E65: 381908353 | F65: 442994197 | G65: 447444999
A67: Supplemental Items
A68: Total Shares Out. on Filing Date | B68: 24365.243 | C68: 24365.243 | D68: 24365.243 | E68: 24365.243 | F68: 24456.229 | G68: NA
A69: Total Shares Out. on Balance Sheet Date | B69: 24365.243 | C69: 24365.243 | D69: 24365.243 | E69: 24365.243 | F69: 24456.229 | G69: NA
A70: Book Value/Share | B70: 955.431062 | C70: 1143.296334 | D70: 1399.856508 | E70: 1723.886603 | F70: 2119.16461 | G70: NA
A71: Book Value/Share (Reported) | B71: 944 | C71: 1143 | D71: 1400 | E71: - | F71: - | G71: -
A72: Tangible Book Value | B72: 23279310 | C72: 27856693 | D72: 34107844 | E72: 42002916 | F72: 51826775 | G72: 56525272
A73: Tangible Book Value/Share | B73: 955.431062 | C73: 1143.296334 | D73: 1399.856508 | E73: 1723.886603 | F73: 2119.16461 | G73: NA
A74: Average Assets | B74: NA | C74: NA | D74: NA | E74: NA | F74: NA | G74: NA
A75: Average Loans | B75: NA | C75: NA | D75: NA | E75: NA | F75: NA | G75: NA
A76: Total Debt | B76: 1114353 | C76: 1141921 | D76: 1580653 | E76: 1974599 | F76: 2698369 | G76: 2879335
A77: Cash Deposits Int. Bearing | B77: NA | C77: 57115453 | D77: 2296366 | E77: NA | F77: NA | G77: NA
A78: Debt Equiv. of Unfunded Proj. Benefit Obligation | B78: 1181319 | C78: 2450576 | D78: 3322901 | E78: NA | F78: NA | G78: NA
A79: Net Debt | B79: -22737148 | C79: -82692640 | D79: -77508725 | E79: -77626822 | F79: -77527728 | G79: -74487637
A80: Full Time Employees | B80: 20303 | C80: 20173 | D80: 19687 | E80: 19962 | F80: NA | G80: NA
A81: Number of Branches | B81: 844 | C81: 875 | D81: 902 | E81: 944 | F81: NA | G81: NA
A82: Assets under Cap. Lease, Gross | B82: 15283 | C82: 14471 | D82: 16083 | E82: 26205 | F82: 28653 | G82: 28653
A83: Assets under Cap. Lease, Accum. Depr. | B83: -1048 | C83: -5286 | D83: -9385 | E83: -2047 | F83: -10334 | G83: -12790
A84: Filing Date | B84: 2010-03-05 | C84: 2011-03-01 | D84: 2013-02-20 | E84: 2013-03-28 | F84: 2013-03-28 | G84: 2013-04-30
A85: Restatement Type | B85: RC | C85: RS | D85: NC | E85: RC | F85: O | G85: O
A86: Calculation Type | B86: REP | C86: REP | D86: REP | E86: REP | F86: REP | G86: REP
A89: Note: For multiple class companies, total share counts are primary class equivalent, and for foreign companies listed as primary ADRs, total share counts are ADR-equivalent.

Sheet Cash Flow
A5: PT Bank Central Asia Tbk (JKSE:BBCA) > Financials > Cash Flow
A7: In Millions of the reported currency, except per share items. | B7: Template: | C7: Bank | E7: Restatement: | F7: Latest Filings
B8: Period Type: | C8: Annual | E8: Order: | F8: Latest on Right
B9: Currency: | C9: Reported Currency | E9: Conversion: | F9: Today's Spot Rate
B10: Units: | C10: S&P Capital IQ (Default) | E10: Decimals: | F10: Capital IQ (Default)
A13: Cash Flow
A14: For the Fiscal Period Ending | B14: 12 months Dec-31-2008 | C14: Restated 12 months Dec-31-2009 | D14: Restated 12 months Dec-31-2010 | E14: Restated 12 months Dec-31-2011 | F14: 12 months Dec-31-2012 | G14: LTM 12 months Mar-31-2013
A15: Currency | B15: IDR | C15: IDR | D15: IDR | E15: IDR | F15: IDR | G15: IDR
A17: Net Income | B17: 5776139 | C17: 6807242 | D17: 8479273 | E17: 10819309 | F17: 11721717 | G17: 12309907
A18: Depreciation & Amort. | B18: 368800 | C18: 535046 | D18: 618185 | E18: 742837 | F18: 864567 | G18: 910114
A19: Depreciation & Amort., Total | B19: 368800 | C19: 535046 | D19: 618185 | E19: 742837 | F19: 864567 | G19: 910114
A21: Change in Trad. Asset Securities | B21: 121907 | C21: -1227165 | D21: -92251 | E21: -454854 | F21: 1165555 | G21: 498431
A22: Change in Other Net Operating Assets | B22: -26916593 | C22: 11123446 | D22: 21093654 | E22: -96132248 | F22: -31845814 | G22: -10573578
A23: Other Operating Activities | B23: -6851733 | C23: -19487088 | D23: -58939345 | E23: 34132 | F23: -1780000 | G23: -22126125
A24: Cash from Ops. | B24: -27501480 | C24: -2248519 | D24: -28840484 | E24: -84990824 | F24: -19873975 | G24: -18981251
A26: Capital Expenditures | B26: -1014455 | C26: -930497 | D26: -1118823 | E26: -1727384 | F26: -3211877 | G26: -2928307
A27: Sale of Property, Plant and Equipment | B27: 13780 | C27: 11045 | D27: 13389 | E27: 24191 | F27: 16894 | G27: 33559
A28: Cash Acquisitions | B28: - | C28: - | D28: - | E28: - | F28: - | G28: -
A29: Divestitures | B29: - | C29: - | D29: - | E29: - | F29: - | G29: -
A30: Net Cash from Investments | B30: 5205628 | C30: 11046085 | D30: -3867938 | E30: 5699763 | F30: 5245354 | G30: 4138567
A31: Net (Increase)/Decrease in Loans Orig/Sold | B31: - | C31: - | D31: - | E31: - | F31: - | G31: -
A32: Deferred Charges | B32: - | C32: - | D32: - | E32: - | F32: - | G32: -
A33: Total Other Investing Activities | B33: 51 | C33: 108 | D33: -25934 | E33: 225 | F33: 1884 | G33: 1884
A34: Cash from Investing | B34: 4205004 | C34: 10126741 | D34: -4999306 | E34: 3996795 | F34: 2052255 | G34: 1245703
A36: Short Term Debt Issued | B36: - | C36: - | D36: - | E36: - | F36: - | G36: -
A37: Long-Term Debt Issued | B37: - | C37: 282008 | D37: - | E37: 362228 | F37: 1039867 | G37: -
A38: Total Debt Issued | B38: - | C38: 282008 | D38: - | E38: 362228 | F38: 1039867 | G38: 692249
A39: Short Term Debt Repaid | B39: - | C39: - | D39: - | E39: - | F39: - | G39: -
A40: Long-Term Debt Repaid | B40: -635670 | C40: - | D40: -281612 | E40: -7883 | F40: -312820 | G40: -
A41: Total Debt Repaid | B41: -635670 | C41: - | D41: -281612 | E41: -7883 | F41: -312820 | G41: -324001
A43: Issuance of Common Stock | B43: - | C43: - | D43: - | E43: - | F43: 691492 | G43: 2624021
A44: Repurchase of Common Stock | B44: -617589 | C44: - | D44: - | E44: - | F44: - | G44: -
A46: Common Dividends Paid | B46: -1549623 | C46: -3411135 | D46: -2741090 | E46: -2765455 | F46: -2769413 | G46: -2769413
A47: Total Dividends Paid | B47: -1549623 | C47: -3411135 | D47: -2741090 | E47: -2765455 | F47: -2769413 | G47: -2769413
A49: Net Incr. (Decr.) in Deposit Accounts | B49: 25757716 | C49: 29369796 | D49: 32146448 | E49: 46720157 | F49: 47589019 | G49: 33859579
A50: Special Dividend Paid | B50: - | C50: - | D50: - | E50: - | F50: - | G50: -
A51: Other Financing Activities | B51: -56113 | C51: - | D51: - | E51: - | F51: 50000 | G51: 50000
A52: Cash from Financing | B52: 22898721 | C52: 26240669 | D52: 29123746 | E52: 44309047 | F52: 46288145 | G52: 34132435
A54: Foreign Exchange Rate Adj. | B54: - | C54: - | D54: -594002 | E54: -934935 | F54: -747872 | G54: -983470
A55: Net Change in Cash | B55: -397755 | C55: 34118891 | D55: -5310046 | E55: -37619917 | F55: 27718553 | G55: 15413417
A57: Supplemental Items
A58: Cash Interest Paid | B58: 6937316 | C58: 8017976 | D58: 7715163 | E58: 7696113 | F58: 7692146 | G58: 7356959
A59: Cash Taxes Paid | B59: 2251332 | C59: 2772529 | D59: 2037009 | E59: 2751678 | F59: 3084948 | G59: 3266533
A60: Net Debt Issued | B60: -635670 | C60: 282008 | D60: -281612 | E60: 354345 | F60: 727047 | G60: 368248
A61: Filing Date | B61: 2010-03-05 | C61: 2011-03-01 | D61: 2013-02-20 | E61: 2013-03-28 | F61: 2013-03-28 | G61: 2013-04-30
A62: Restatement Type | B62: NC | C62: RS | D62: RS | E62: RS | F62: O | G62: O
A63: Calculation Type | B63: REP | C63: REP | D63: REP | E63: REP | F63: REP | G63: LTM

Sheet Multiples
A5: PT Bank Central Asia Tbk (JKSE:BBCA) > Financials > Multiples
B7: View: | C7: Data | E7: Frequency: | F7: Quarterly
B8: Order: | C8: Latest on Right | E8: Decimals: | F8: Capital IQ (Default)
A11: Multiples Detail
A13: For Quarter Ending | C13: 2012-12-28 | D13: 2013-03-28 | E13: 2013-06-28 | F13: 2013-07-08
A14: Market Cap/LTM Total Revenue | B14: Average | C14: 7.938754 | D14: 9.227008 | E14: 9.035786 | F14: 8.186284
B15: High | C15: 8.721692 | D15: 10.374223 | E15: 9.943807 | F15: 8.506896
B16: Low | C16: 7.331582 | D16: 8.124945 | E16: 7.651931 | F16: 7.780176
B17: Close | C17: 8.354463 | D17: 10.121375 | E17: 8.549644 | F17: 7.780176
A19: Market Cap/NTM Total Revenues | B19: Average | C19: 6.786107 | D19: 7.842841 | E19: 7.719682 | F19: 6.374365
B20: High | C20: 7.366992 | D20: 8.806318 | E20: 8.497324 | F20: 6.680382
B21: Low | C21: 6.332996 | D21: 6.853807 | E21: 6.192551 | F21: 6.062633
B22: Close | C22: 7.09254 | D22: 8.806318 | E22: 6.708555 | F22: 6.062633
A24: Market Cap/LTM EBT Excl. Unusual Items | B24: Average | C24: 14.639099 | D24: 17.064892 | E24: 16.752848 | F24: 15.191232
B25: High | C25: 16.126081 | D25: 19.181549 | E25: 18.651021 | F25: 15.78619
B26: Low | C26: 13.440498 | D26: 15.022717 | E26: 14.199638 | F26: 14.437621
B27: Close | C27: 15.447088 | D27: 18.984075 | E27: 15.865517 | F27: 14.437621
A29: P/LTM EPS | B29: Average | C29: 18.384193 | D29: 21.422292 | E29: 21.016779 | F29: 19.020867
B30: High | C30: 20.245358 | D30: 24.081321 | E30: 23.315697 | F30: 19.76581
B31: Low | C31: 16.890331 | D31: 18.860149 | E31: 17.779296 | F31: 18.077274
B32: Close | C32: 19.392922 | D32: 23.732049 | E32: 19.865136 | F32: 18.077274
A34: P/NTM EPS | B34: Average | C34: 16.579014 | D34: 19.062922 | E34: 18.541455 | F34: 16.603263
B35: High | C35: 17.954794 | D35: 21.648039 | E35: 20.868739 | F35: 17.407
B36: Low | C36: 15.496662 | D36: 16.700152 | E36: 15.68837 | F36: 15.786258
B37: Close | C37: 17.266187 | D37: 21.627602 | E37: 17.480408 | F37: 15.786258
A39: P/LTM Normalized EPS | B39: Average | C39: 23.367109 | D39: 27.212207 | E39: 26.789547 | F39: 24.299843
B40: High | C40: 25.714772 | D40: 30.587044 | E40: 29.764642 | F40: 25.251535
B41: Low | C41: 21.501144 | D41: 23.95534 | E41: 22.713692 | F41: 23.094368
B42: Close | C42: 24.632044 | D42: 30.296153 | E42: 25.378427 | F42: 23.094368
A44: P/BV | B44: Average | C44: 4.378564 | D44: 4.99429 | E44: - | F44: -
B45: High | C45: 4.722366 | D45: 5.61713 | E45: - | F45: -
B46: Low | C46: 4.076147 | D46: 4.399257 | E46: - | F46: -
B47: Close | C47: 4.523529 | D47: 5.379478 | E47: - | F47: -
A49: P/Tangible BV | B49: Average | C49: 4.378564 | D49: 4.99429 | E49: - | F49: -
B50: High | C50: 4.722366 | D50: 5.61713 | E50: - | F50: -
B51: Low | C51: 4.076147 | D51: 4.399257 | E51: - | F51: -
B52: Close | C52: 4.523529 | D52: 5.379478 | E52: - | F52: -
A54: Average multiples are calculated using positive close values on each trading day within the frequency periods selected. Negative values are excluded from the calculation. When the Multiples are not meaningful, due to negative values, then they will not be displayed in the chart.
A56: When a mismatch exists between the currency of the equity listing and the reported financial results such results are translated into the currency of the listing at the exchange rate applicable on the financial period end date.
A58: Historical Equity Pricing Data supplied by

Sheet Historical Capitalization
A5: PT Bank Central Asia Tbk (JKSE:BBCA) > Financials > Historical Capitalization
A7: In Millions of the trading currency, except per share items. | B7: Frequency: | C7: Quarterly | E7: Order: | F7: Latest on Right
B8: Currency: | C8: Trading Currency | E8: Conversion: | F8: Today's Spot Rate
B9: Units: | C9: S&P Capital IQ (Default) | E9: Decimals: | F9: Capital IQ (Default)
A12: Historical Capitalization
A13: Balance Sheet as of: | B13: 2011-12-31 | C13: 2012-03-31 | D13: 2012-06-30 | E13: 2012-09-30 | F13: 2012-12-31 | G13: 2013-03-31
A14: Pricing as of* | B14: 2013-02-20 | C14: 2012-04-27 | D14: 2012-07-31 | E14: 2012-10-30 | F14: 2013-03-28 | G14: 2013-04-30
A15: Currency | B15: IDR | C15: IDR | D15: IDR | E15: IDR | F15: IDR | G15: IDR
A16: Capitalization Detail
A17: Share Price | B17: 10300.00387 | C17: 7849.999081 | D17: 8000 | E17: 8200.001923 | F17: 11400.00194 | G17: 10750
A18: Shares Out. | B18: 24456.229 | C18: 24365.243 | D18: 24365.243 | E18: 24456.229 | F18: 24456.229 | G18: 24456.229
A20: Market Capitalization | B20: 251899158.7 | C20: 191267157.6 | D20: 194921944 | E20: 200541077.8 | F20: 278801010.6 | G20: 262904461.8
A21: Book Value of Common Equity | B21: 42002916 | C21: 44291155 | D21: 45491639 | E21: 49198676 | F21: 51826775 | G21: 56525272
A22: + Book Value of Pref. Equity | B22: - | C22: - | D22: - | E22: - | F22: - | G22: -
A23: = Total Equity | B23: 42027340 | C23: 44316657 | D23: 45514829 | E23: 49220587 | F23: 51897942 | G23: 56599302
A25: Tier 1 Capital | B25: 31880713 | C25: - | D25: - | E25: - | F25: - | G25: -
A26: Tier 2 Capital | B26: 3081433 | C26: - | D26: - | E26: - | F26: - | G26: -
A27: Total Capital | B27: 34962146 | C27: - | D27: - | E27: - | F27: - | G27: -
A29: Tier 1 Capital Ratio % | B29: 0.116238 | C29: - | D29: - | E29: - | F29: - | G29: -
A30: Total Capital Ratio % | B30: 0.1275 | C30: - | D30: - | E30: - | F30: - | G30: -
A31: Leverage Ratio % | B31: - | C31: - | D31: - | E31: - | F31: - | G31: -
A34: * Pricing as of the filing date of the balance sheet period end date. For TEV calculation purposes on this page Capital IQ only uses balance sheet components from the original filing that is publicly available as of a given pricing date and does not use restated balance sheet data from a later filing. In the cases where a company did not disclose balance sheet values for a particular period, TEV is calculated using balance sheet components from the last reported balance sheet as of this date. The table above is organized along period end dates.
A35: ** For companies that have multiple share classes that publicly trade, we are incorporating the different prices to calculate our company level market capitalization. Please click on the value to see the detailed calculation. Prices shown on this page are the close price of the company’s primary stock class. Shares shown on this page are total company as-reported share values.
A38: Historical Equity Pricing Data supplied by

Sheet Capital Structure Summary
A5: PT Bank Central Asia Tbk (JKSE:BBCA) > Financials > Capital Structure Summary
A7: In Millions of the reported currency, except ratios and % of Total values. | B7: Restatement: | C7: Latest Filings | E7: Period Type: | F7: Annual
B8: Currency: | C8: Reported Currency | E8: Conversion: | F8: Today's Spot Rate
B9: Units: | C9: S&P Capital IQ (Default) | E9: Decimals: | F9: Capital IQ (Default)
B10: Order: | C10: Latest on Right
A14: Debt Summary Data
A15: For the Fiscal Period Ending | B15: 12 months Dec-31-2011 | D15: 12 months Dec-31-2012 | F15: 3 months Mar-31-2013
A16: Currency | B16: IDR | D16: IDR | F16: IDR
A17: Units | B17: Millions | C17: % of Total | D17: Millions | E17: % of Total | F17: Millions | G17: % of Total
A19: Total Revolving Credit | B19: 442742 | C19: 0.224218 | D19: 125894 | E19: 0.046655 | F19: - | G19: -
A20: Total Term Loans | B20: 488795.3954 | C20: 0.247541 | D20: 461858.7872 | E20: 0.171162 | F20: - | G20: -
A21: Total Senior Bonds and Notes | B21: 1481018 | C21: 0.750034 | D21: 2521877 | E21: 0.934593 | F21: - | G21: -
A22: Total Principal Due | B22: 2412555.395 | C22: 1.221795 | D22: 3109629.787 | E22: 1.15241 | F22: - | G22: -
A24: Total Adjustments | B24: -437956.4 | C24: -0.221795 | D24: -411260.8 | E24: -0.15241 | F24: - | G24: -
A25: Total Debt Outstanding | B25: 1974599 | C25: 1 | D25: 2698369 | E25: 1 | F25: 2879335 | G25: 1
A27: Available Credit
A28: Undrawn Revolving Credit | B28: - | C28: - | D28: 20400000 | E28: - | F28: - | G28: -
A29: Total Undrawn Credit | B29: - | C29: - | D29: 20400000 | E29: - | F29: - | G29: -
A31: Additional Totals
A32: Total Cash & ST Investments | B32: 79601421 | C32: - | D32: 80226097 | E32: - | F32: 77366972 | G32: -
A33: Net Debt | B33: -77626822 | C33: - | D33: -77527728 | E33: - | F33: -74487637 | G33: -
A34: Total Senior Debt | B34: 2412555.395 | C34: 1.221795 | D34: 3109629.787 | E34: 1.15241 | F34: - | G34: -
A35: Total Short-Term Borrowings | B35: 74393 | C35: 0.037674 | D35: 173474 | E35: 0.064288 | F35: 455000 | G35: 0.158022
A36: Curr. Port. of LT Debt/Cap. Leases | B36: 924639 | C36: 0.468266 | D36: 981859 | E36: 0.363871 | F36: 980177 | G36: 0.340417
A37: Long-Term Debt (Incl. Cap. Leases) | B37: 975567 | C37: 0.494058 | D37: 1543036 | E37: 0.57184 | F37: - | G37: -
A38: Total Bank Debt | B38: 931537.3954 | C38: 0.47176 | D38: 587752.7872 | E38: 0.217817 | F38: - | G38: -
A39: Total Secured Debt | B39: 1923834 | C39: 0.97429 | D39: 2647771 | E39: 0.981248 | F39: - | G39: -
A40: Senior Secured Loans | B40: 442816 | C40: 0.224256 | D40: 125894 | E40: 0.046655 | F40: - | G40: -
A41: Senior Secured Bonds and Notes | B41: 1481018 | C41: 0.750034 | D41: 2521877 | E41: 0.934593 | F41: - | G41: -
A42: Total Senior Secured Debt | B42: 1923834 | C42: 0.97429 | D42: 2647771 | E42: 0.981248 | F42: - | G42: -
A43: Total Unsecured Debt | B43: 488721.3954 | C43: 0.247504 | D43: 461858.7872 | E43: 0.171162 | F43: - | G43: -
A44: Fixed Rate Debt | B44: 211424 | C44: 0.107071 | D44: 0 | E44: 0 | F44: - | G44: -
A45: Variable Rate Debt | B45: 488721.3954 | C45: 0.247504 | D45: 461858.7872 | E45: 0.171162 | F45: - | G45: -
A46: Hedging Activities | B46: 44393 | C46: 0.022482 | D46: 48474 | E46: 0.017964 | F46: - | G46: -
A48: Fixed Payment Schedule
A49: LT Debt (Incl. Cap. Leases) Due +1 | B49: 954639 | C49: 0.483459 | D49: - | E49: - | F49: - | G49: -
A50: LT Debt (Incl. Cap. Leases) Due +2 | B50: 207820.25 | C50: 0.105246 | D50: - | E50: - | F50: - | G50: -
A51: LT Debt (Incl. Cap. Leases) Due +3 | B51: 207820.25 | C51: 0.105246 | D51: - | E51: - | F51: - | G51: -
A52: LT Debt (Incl. Cap. Leases) Due +4 | B52: 207820.25 | C52: 0.105246 | D52: - | E52: - | F52: - | G52: -
A53: LT Debt (Incl. Cap. Leases) Due +5 | B53: 207820.25 | C53: 0.105246 | D53: - | E53: - | F53: - | G53: -
A54: LT Debt (Incl. Cap. Leases) Due, Next 5 Yrs | B54: 1785920 | C54: 0.904446 | D54: - | E54: - | F54: - | G54: -
A56: Interest Rate Data
A57: Filing Date | B57: 2013-03-28 | C57: - | D57: 2013-03-28 | E57: - | F57: 2013-04-30 | G57: -
A59: Currency | B59: IDR | D59: IDR | F59: IDR
A60: Exchange Rate | B60: 1 | D60: 1 | F60: 1
A61: Conversion Method | B61: S | D61: S | F61: S

Sheet Capital Structure Details
A5: PT Bank Central Asia Tbk (JKSE:BBCA) > Financials > Capital Structure Details
A7: Principal Due in Millions of the reported currency. | B7: Period Type: | C7: Annual | E7: Source: | F7: A 2012 filed Mar-28-2013
B8: Currency: | C8: Reported Currency | E8: Conversion: | F8: Today's Spot Rate
B9: Units: | C9: S&P Capital IQ (Default) | E9: Decimals: | F9: Capital IQ (Default)
A12: FY 2012 (Dec-31-2012) Capital Structure As Reported Details
A13: Description | B13: Type | C13: Principal Due (IDR) | D13: Coupon/Base Rate | E13: Floating Rate | F13: Maturity | G13: Seniority | H13: Secured | I13: Convertible | J13: Repayment Currency
A14: Housing Loan from Bank Indonesia | B14: Term Loans | C14: - | D14: 2.970% | E14: NA | F14: 6-30-2007 - 2013 | G14: Senior | H14: Yes | I14: No | J14: IDR
A15: Liquidity Credit Facility from Bank Indonesia | B15: Revolving Credit | C15: 577 | D15: NA | E15: NA | F15: 2000-09-22 | G15: Senior | H15: Yes | I15: No | J15: IDR
A16: Loan Facility from PT Bank Victoria | B16: Revolving Credit | C16: 75000 | D16: NA | E16: NA | F16: 2013-12-11 | G16: Senior | H16: Yes | I16: No | J16: IDR
A17: Loan Facility from Sumitomo Mitsui Banking Corporation | B17: Revolving Credit | C17: 50000 | D17: NA | E17: NA | F17: 7-31-2012 - 2013 | G17: Senior | H17: Yes | I17: No | J17: IDR
A18: Loan from Japan Bank for International Cooperation - JPY | B18: Term Loans | C18: 48502.3 | D18: NA | E18: New Benchmark | F18: 2013-08-01 | G18: Senior | H18: No | I18: No | J18: JPY
A19: Loan from Japan Bank for International Cooperation - JPY | B19: Term Loans | C19: 413356.5 | D19: NA | E19: New Benchmark | F19: 2013-08-01 | G19: Senior | H19: No | I19: No | J19: JPY
A20: Marketable Securities Issued | B20: Bonds and Notes | C20: 2521877 | D20: NA | E20: NA | F20: 2014-12-01 | G20: Senior | H20: Yes | I20: No | J20: IDR
A21: Others Borrowings- Overdraft | B21: Revolving Credit | C21: 317 | D21: NA | E21: NA | F21: 2000-09-20 | G21: Senior | H21: Yes | I21: No | J21: NA
A22: Working Capital Facility from The Hongkong and Shanghai Banking Corporation Ltd, | B22: Revolving Credit | C22: - | D22: 8.710% | E22: NA | F22: 2013-07-09 | G22: Senior | H22: Yes | I22: No | J22: IDR
A27: FY 2011 (Dec-31-2011) Capital Structure As Reported Details
A28: Description | B28: Type | C28: Principal Due (IDR) | D28: Coupon/Base Rate | E28: Floating Rate | F28: Maturity | G28: Seniority | H28: Secured | I28: Convertible | J28: Repayment Currency
A29: Housing Loan from Bank Indonesia | B29: Term Loans | C29: 74 | D29: 2.970% | E29: NA | F29: 6-30-2007 - 2013 | G29: Senior | H29: Yes | I29: No | J29: IDR
A30: Liquidity Credit Facility from Bank Indonesia | B30: Revolving Credit | C30: 583 | D30: NA | E30: NA | F30: 2000-09-22 | G30: Senior | H30: Yes | I30: No | J30: IDR
A31: Loan from Japan Bank for International Cooperation - JPY | B31: Term Loans | C31: 437398.1 | D31: NA | E31: New Benchmark | F31: 2013-08-01 | G31: Senior | H31: No | I31: No | J31: JPY
A32: Loan from Japan Bank for International Cooperation - JPY | B32: Term Loans | C32: 51323.3 | D32: NA | E32: New Benchmark | F32: 2013-08-01 | G32: Senior | H32: No | I32: No | J32: JPY
A33: Marketable Securities Issued | B33: Bonds and Notes | C33: 1481018 | D33: NA | E33: NA | F33: 2014-12-01 | G33: Senior | H33: Yes | I33: No | J33: IDR
A34: Others Borrowings- Overdraft | B34: Revolving Credit | C34: 230809 | D34: NA | E34: NA | F34: 2000-09-20 | G34: Senior | H34: Yes | I34: No | J34: NA
A35: Working Capital Facility from PT Bank Victoria | B35: Revolving Credit | C35: 30000 | D35: 7.000% | E35: NA | F35: 2012-12-17 | G35: Senior | H35: Yes | I35: No | J35: IDR
A36: Working Capital Facility from The Hongkong and Shanghai Banking Corporation Ltd, | B36: Revolving Credit | C36: 181350 | D36: 8.710% | E36: NA | F36: 2013-07-09 | G36: Senior | H36: Yes | I36: No | J36: IDR

Sheet Ratios
A5: PT Bank Central Asia Tbk (JKSE:BBCA) > Financials > Ratios
B7: Restatement: | C7: Latest Filings | E7: Period Type: | F7: Annual
B8: Order: | C8: Latest on Right | E8: Decimals: | F8: Capital IQ (Default)
A11: Ratios
A12: For the Fiscal Period Ending | B12: 12 months Dec-31-2008 | C12: 12 months Dec-31-2009 | D12: 12 months Dec-31-2010 | E12: 12 months Dec-31-2011 | F12: 12 months Dec-31-2012 | G12: LTM 12 months Mar-31-2013
A13: Profitability
A14: Return on Assets % | B14: 0.024919 | C14: 0.025786 | D14: 0.027946 | E14: 0.030631 | F14: 0.028411 | G14: 0.029023
A15: Return on Equity % | B15: 0.264226 | C15: 0.26624 | D15: 0.273681 | E15: 0.284173 | F15: 0.249527 | G15: 0.243934
A16: Return on Common Equity % | B16: 0.264226 | C16: 0.26624 | D16: 0.273681 | E16: 0.284304 | F16: 0.24985 | G16: 0.244204
A17: Shareholders Value Added | B17: 3152876.54 | C17: 3739081.82 | D17: 4761400.78 | E17: 6252663.4 | F17: 6091935.54 | G17: 6260921.38
A19: Margin Analysis
A20: SG&A Margin % | B20: 0.429364 | C20: 0.445747 | D20: 0.436725 | E20: 0.424173 | F20: 0.429319 | G20: 0.426775
A21: Net Interest Income / Total Revenue % | B21: 0.804064 | C21: 0.808437 | D21: 0.640077 | E21: 0.758198 | F21: 0.771012 | G21: 0.785322
A22: EBT Margin % | B22: 0.531646 | C22: 0.514676 | D22: 0.527093 | E22: 0.57194 | F22: 0.53315 | G22: 0.538882
A23: Earnings from Cont. Ops Margin % | B23: 0.397778 | C23: 0.39167 | D23: 0.41953 | E23: 0.45431 | F23: 0.425417 | G23: 0.43029
A24: Net Income Margin% | B24: 0.397778 | C24: 0.39167 | D24: 0.41953 | E24: 0.454373 | F24: 0.425536 | G24: 0.430341
A25: Net Income Avail. for Common Margin % | B25: 0.397778 | C25: 0.39167 | D25: 0.41953 | E25: 0.454373 | F25: 0.425536 | G25: 0.430341
A26: Normalized Net Income Margin % | B26: 0.332279 | C26: 0.321672 | D26: 0.329433 | E26: 0.357526 | F26: 0.333337 | G26: 0.336852
A28: Asset quality
A29: Nonperforming Loans / Total Loans % | B29: 0.005906 | C29: 0.007175 | D29: 0.006301 | E29: NA | F29: NA | G29: NA
A30: Nonperforming Loans / Total Assets % | B30: 0.002747 | C30: 0.003197 | D30: 0.00306 | E30: NA | F30: NA | G30: NA
A31: Nonperforming Assets / Total Assets % | B31: 0.002747 | C31: 0.003197 | D31: 0.00306 | E31: NA | F31: NA | G31: NA
A32: Nonperforming Assets / Loans and OREO % | B32: 0.005906 | C32: 0.007175 | D32: 0.006301 | E32: - | F32: - | G32: -
A33: Nonperforming Assets / Equity % | B33: 0.028985 | C33: 0.032417 | D33: 0.029111 | E33: - | F33: - | G33: -
A34: Allow. for Credit Losses / Net Charge-offs % | B34: 20.765822 | C34: 15.269751 | D34: 19.932102 | E34: NA | F34: NA | G34: NA
A35: Allow. for Credit Losses / Nonperf. Loans % | B35: 4.141845 | C35: 4.811522 | D35: 3.977439 | E35: NA | F35: NA | G35: NA
A36: Allow. for Credit Losses / Total Loans % | B36: 0.024463 | C36: 0.034526 | D36: 0.025062 | E36: 0.018668 | F36: 0.015618 | G36: 0.016273
A37: Net Charge-offs / Total Avg. Loans % | B37: NA | C37: NA | D37: NA | E37: NA | F37: NA | G37: NA
A38: Prov. for Loan Losses / Net Charge-offs % | B38: 13.033666 | C38: 0.054175 | D38: 3.31744 | E38: NA | F38: NA | G38: NA
A40: Capital And Funding
A41: Avg. Common Equity / Avg. Assets % | B41: 0.094312 | C41: 0.096855 | D41: 0.102114 | E41: 0.107755 | F41: 0.113746 | G41: 0.118862
A42: Avg. Total Equity / Avg. Assets % | B42: 0.094312 | C42: 0.096855 | D42: 0.102114 | E42: 0.10779 | F42: 0.113862 | G42: 0.118979
A43: Total Equity + Allowance for Loan Losses / Total Loans % | B43: 0.228234 | C43: 0.255878 | D43: 0.241514 | E43: 0.221787 | F43: 0.212767 | G43: 0.224671
A44: Gross Loans / Total Deposits % | B44: 0.5349 | C44: 0.508212 | D44: 0.560805 | E44: 0.6323 | F44: 0.705082 | G44: 0.731824
A45: Net Loans / Total Deposits % | B45: 0.521814 | C45: 0.490665 | D45: 0.545975 | E45: 0.619569 | F45: 0.692933 | G45: 0.71874
A46: Tier 1 Capital Ratio % | B46: 0.152828 | C46: 0.145474 | D46: 0.126227 | E46: NA | F46: NA | G46: NA
A47: Total Capital Ratio % | B47: 0.1578 | C47: 0.1533 | D47: 0.135 | E47: NA | F47: NA | G47: NA
A48: Tier 2 Capital Ratio % | B48: 0.012677 | C48: 0.007797 | D48: 0.008772 | E48: NA | F48: NA | G48: NA
A49: Coverage Ratio % | B49: NA | C49: NA | D49: 0.032047 | E49: NA | F49: NA | G49: NA
A50: Interbank Ratio | B50: 1.879633 | C50: 4.322799 | D50: 1.738987 | E50: 6.432195 | F50: 15.842592 | G50: 12.255413
A52: Fixed Charges Coverage
A53: EBT + Int. on Borrowings / Int. on Borrowings | B53: NA | C53: NA | D53: NA | E53: NA | F53: NA | G53: NA
A54: EBT + Int. Exp. / Int. Exp. | B54: 2.112342 | C54: 2.113822 | D54: 2.379282 | E54: 2.761769 | F54: 2.920455 | G54: 3.114477
A56: Growth Over Prior Year
A57: Net Interest Income | B57: 0.293112 | C57: 0.2034 | D57: -0.079275 | E57: 0.395538 | F57: 0.176377 | G57: 0.182052
A58: Non Interest Income | B58: 0.334311 | C58: -0.27277 | D58: 1.371412 | E58: -0.203608 | F58: 0.077484 | G58: 0.122053
A59: Provision for Loan Losses | B59: 8.291732 | C59: -0.991212 | D59: 41.638233 | E59: -0.149248 | F59: -0.108259 | G59: 0.67142
A60: Total Revenue | B60: 0.181778 | C60: 0.196889 | D60: 0.162905 | E60: 0.178124 | F60: 0.156826 | G60: 0.156458
A61: Earnings from Cont. Ops. | B61: 0.286659 | C61: 0.17851 | D61: 0.245625 | E61: 0.275793 | F61: 0.083257 | G61: 0.108258
A62: Net Income | B62: 0.286659 | C62: 0.17851 | D62: 0.245625 | E62: 0.275971 | F62: 0.083407 | G62: 0.108348
A63: Normalized Net Income | B63: 0.205949 | C63: 0.158684 | D63: 0.190962 | E63: 0.278591 | F63: 0.07856 | G63: 0.102783
A64: Diluted EPS before Extra | B64: 0.29386 | C64: 0.181512 | D64: 0.245625 | E64: 0.275971 | F64: 0.081784 | G64: 0.104334
A65: Dividend per Share | B65: NA | C65: NA | D65: 0.022727 | E65: 0.008888 | F65: NA | G65: NA
A66: Gross Loans | B66: 0.363197 | C66: 0.101584 | D66: 0.252125 | E66: 0.312305 | F66: 0.271249 | G66: 0.266081
A67: Allowance for Loan Losses | B67: 0.618523 | C67: 0.554709 | D67: -0.091087 | E67: -0.022486 | F67: 0.063509 | G67: 0.155238
A68: Net Loans | B68: 0.357831 | C68: 0.090222 | D68: 0.262608 | E68: 0.32081 | F68: 0.275016 | G68: 0.267968
A69: Non Performing Loans | B69: 0.007573 | C69: 0.338321 | D69: 0.099516 | E69: NA | F69: NA | G69: NA
A70: Non Performing Assets | B70: 0.007573 | C70: 0.338321 | D70: 0.099516 | E70: NA | F70: NA | G70: NA
A71: Total Assets | B71: 0.126441 | C71: 0.149947 | D71: 0.148823 | E71: 0.177206 | F71: 0.159948 | G71: 0.116571
A72: Total Deposits | B72: 0.116817 | C72: 0.159434 | D72: 0.134698 | E72: 0.163921 | F72: 0.140024 | G72: 0.094703
A73: Tangible Book Value | B73: 0.138813 | C73: 0.196628 | D73: 0.224403 | E73: 0.231473 | F73: 0.233885 | G73: 0.27622
A74: Avg. Interest Earning Assets | B74: NA | C74: NA | D74: NA | E74: NA | F74: NA | G74: NA
A75: Avg. Interest Bearing Liabilities | B75: NA | C75: NA | D75: NA | E75: NA | F75: NA | G75: NA
A76: Common Equity | B76: 0.138813 | C76: 0.196628 | D76: 0.224403 | E76: 0.231473 | F76: 0.233885 | G76: 0.27622
A77: Total Equity | B77: 0.138813 | C77: 0.196628 | D77: 0.224403 | E77: 0.232189 | F77: 0.234861 | G77: 0.277156
A79: Compound Annual Growth Rate Over Two Years
A80: Net Interest Income | B80: 0.138581 | C80: 0.24745 | D80: 0.052616 | E80: 0.133537 | F80: 0.28128 | G80: 0.26431
A81: Non Interest Income | B81: 0.290555 | C81: -0.014936 | D81: 0.313226 | E81: 0.374254 | F81: -0.073663 | G81: -0.03477
A82: Provision for Loan Losses | B82: 0.756481 | C82: -0.714241 | D82: -0.387859 | E82: 5.022839 | F82: -0.128994 | G82: -0.063705
A83: Total Revenue | B83: 0.138674 | C83: 0.18931 | D83: 0.179775 | E83: 0.17049 | F83: 0.167427 | G83: 0.178803
A84: Earnings from Cont. Ops. | B84: 0.166788 | C84: 0.231398 | D84: 0.211603 | E84: 0.260619 | F84: 0.17559 | G84: 0.198794
A85: Net Income | B85: 0.166804 | C85: 0.231398 | D85: 0.211603 | E85: 0.260707 | F85: 0.175753 | G85: 0.198865
A86: Normalized Net Income | B86: 0.12809 | C86: 0.18208 | D86: 0.174712 | E86: 0.233999 | F86: 0.174324 | G86: 0.199332
A87: Diluted EPS before Extra | B87: 0.17109 | C87: 0.236411 | D87: 0.213145 | E87: 0.260707 | F87: 0.174873 | G87: 0.196693
A88: Dividend per Share | B88: NA | C88: 0.09945 | D88: NA | E88: 0.015784 | F88: NA | G88: NA
A89: Gross Loans | B89: 0.352107 | C89: 0.225429 | D89: 0.174445 | E89: 0.281862 | F89: 0.291614 | G89: 0.326859
A90: Allowance for Loan Losses | B90: 0.256959 | C90: 0.586295 | D90: 0.188737 | E90: -0.05741 | F90: 0.019606 | G90: 0.061659
A91: Net Loans | B91: 0.354807 | C91: 0.216691 | D91: 0.173253 | E91: 0.291381 | F91: 0.297711 | G91: 0.332844
A92: Non Performing Loans | B92: -0.080938 | C92: 0.161231 | D92: 0.213056 | E92: NA | F92: NA | G92: NA
A93: Non Performing Assets | B93: -0.080938 | C93: 0.161231 | D93: 0.213056 | E93: NA | F93: NA | G93: NA
A94: Total Assets | B94: 0.17855 | C94: 0.138133 | D94: 0.149385 | E94: 0.162929 | F94: 0.168546 | G94: 0.170704
A95: Total Deposits | B95: 0.180433 | C95: 0.137927 | D95: 0.147 | E95: 0.149217 | F95: 0.151911 | G95: 0.153558
A96: Tangible Book Value | B96: 0.135109 | C96: 0.167363 | D96: 0.210436 | E96: 0.227934 | F96: 0.232679 | G96: 0.251941
A97: Avg. Interest Earning Assets | B97: NA | C97: NA | D97: NA | E97: NA | F97: NA | G97: NA
A98: Avg. Interest Bearing Liabilities | B98: NA | C98: NA | D98: NA | E98: NA | F98: NA | G98: NA
A99: Common Equity | B99: 0.135109 | C99: 0.167363 | D99: 0.210436 | E99: 0.227934 | F99: 0.232679 | G99: 0.251941
A100: Total Equity | B100: 0.135066 | C100: 0.167363 | D100: 0.210436 | E100: 0.228291 | F100: 0.233525 | G100: 0.252761
A102: Compound Annual Growth Rate Over Three Years
A103: Net Interest Income | B103: 0.170379 | C103: 0.15979 | D103: 0.12735 | E103: 0.156362 | F103: 0.147641 | G103: 0.19826
A104: Non Interest Income | B104: 0.230458 | C104: 0.065961 | D104: 0.320217 | E104: 0.111566 | F104: 0.267209 | G104: 0.200429
A105: Provision for Loan Losses | B105: 0.695454 | C105: -0.699582 | D105: 0.515655 | E105: -0.316871 | F105: 2.186255 | G105: NM
A106: Total Revenue | B106: 0.156328 | C106: 0.157758 | D106: 0.180442 | E106: 0.179225 | F106: 0.165918 | G106: 0.18015
A107: Earnings from Cont. Ops. | B107: 0.17095 | C107: 0.170683 | D107: 0.236123 | E107: 0.232633 | F107: 0.198486 | G107: 0.200935
A108: Net Income | B108: 0.17098 | C108: 0.170693 | D108: 0.236123 | E108: 0.23269 | F108: 0.198597 | G108: 0.200983
A109: Normalized Net Income | B109: 0.146464 | C109: 0.138197 | D109: 0.185034 | E109: 0.208365 | F109: 0.179844 | G109: 0.181815
A110: Diluted EPS before Extra | B110: 0.174365 | C110: 0.174554 | D110: 0.239475 | E110: 0.233736 | F110: 0.197999 | G110: 0.199531
A111: Dividend per Share | B111: NA | C111: 0.089744 | D111: 0.073257 | E111: NA | F111: NA | G111: NA
A112: Gross Loans | B112: 0.276582 | C112: 0.262835 | D112: 0.234264 | E112: 0.218709 | F112: 0.278315 | G112: 0.300706
A113: Allowance for Loan Losses | B113: 0.265625 | C113: 0.349265 | D113: 0.317539 | E113: 0.113692 | F113: -0.018714 | G113: 0.061393
A114: Net Loans | B114: 0.276861 | C114: 0.260153 | D114: 0.231808 | E114: 0.22051 | F114: 0.285903 | G114: 0.306699
A115: Non Performing Loans | B115: NA | C115: 0.041718 | D115: 0.140284 | E115: NA | F115: NA | G115: NA
A116: Non Performing Assets | B116: NA | C116: 0.041718 | D116: 0.140284 | E116: NA | F116: NA | G116: NA
A117: Total Assets | B117: 0.178113 | C117: 0.168937 | D117: 0.141686 | E117: 0.158585 | F117: 0.161934 | G117: 0.163293
A118: Total Deposits | B118: 0.180389 | C118: 0.173392 | D118: 0.13685 | E118: 0.152613 | F118: 0.146145 | G118: 0.148331
A119: Tangible Book Value | B119: 0.136771 | C119: 0.155256 | D119: 0.186075 | E119: 0.217409 | F119: 0.229914 | G119: 0.237506
A120: Avg. Interest Earning Assets | B120: NA | C120: NA | D120: NA | E120: NA | F120: NA | G120: NA
A121: Avg. Interest Bearing Liabilities | B121: NA | C121: NA | D121: NA | E121: NA | F121: NA | G121: NA
A122: Common Equity | B122: 0.136771 | C122: 0.155256 | D122: 0.186075 | E122: 0.217409 | F122: 0.229914 | G122: 0.237506
A123: Total Equity | B123: 0.13674 | C123: 0.155227 | D123: 0.186075 | E123: 0.217645 | F123: 0.230477 | G123: 0.238046
A125: Compound Annual Growth Rate Over Five Years
A126: Net Interest Income | B126: 0.179558 | C126: 0.173999 | D126: 0.12177 | E126: 0.149217 | F126: 0.186569 | G126: 0.192316
A127: Non Interest Income | B127: 0.227363 | C127: 0.099369 | D127: 0.26292 | E127: 0.179972 | F127: 0.145763 | G127: 0.14307
A128: Provision for Loan Losses | B128: 0.72921 | C128: -0.40623 | D128: 0.128009 | E128: -0.003313 | F128: 0.214419 | G128: 0.213837
A129: Total Revenue | B129: 0.169018 | C129: 0.162843 | D129: 0.165651 | E129: 0.162834 | F129: 0.175219 | G129: 0.178444
A130: Earnings from Cont. Ops. | B130: 0.192922 | C130: 0.163276 | D130: 0.187045 | E130: 0.20586 | F130: 0.211544 | G130: 0.218684
A131: Net Income | B131: 0.192935 | C131: 0.163292 | D131: 0.187063 | E131: 0.205901 | F131: 0.211612 | G131: 0.218713
A132: Normalized Net Income | B132: 0.197159 | C132: 0.145851 | D132: 0.157681 | E132: 0.175592 | F132: 0.180738 | G132: 0.187258
A133: Diluted EPS before Extra | B133: 0.192634 | C133: 0.166235 | D133: 0.189726 | E133: 0.208285 | F133: 0.213218 | G133: 0.219601
A134: Dividend per Share | B134: NA | C134: 0.110953 | D134: 0.09954 | E134: 0.059535 | F134: NA | G134: NA
A135: Gross Loans | B135: 0.309137 | C135: 0.251619 | D135: 0.234702 | E135: 0.270412 | F135: 0.256892 | G135: 0.259566
A136: Allowance for Loan Losses | B136: 25.271 | C136: 31.5504 | D136: 23.429 | E136: 16.8927 | F136: 18.9135 | G136: 20.5601
A137: Net Loans | B137: 0.310761 | C137: 0.249656 | D137: 0.234363 | E137: 0.272553 | F137: 0.257758 | G137: 0.260179
A138: Non Performing Loans | B138: -0.1 | C138: 11.8698 | D138: NA | E138: NA | F138: NA | G138: NA
A139: Non Performing Assets | B139: -0.001368 | C139: 0.118698 | D139: NA | E139: NA | F139: NA | G139: NA
A140: Total Assets | B140: 0.130043 | C140: 0.136148 | D140: 0.166537 | E140: 0.16653 | F140: 0.152355 | G140: 0.15845
A141: Total Deposits | B141: 0.125512 | C141: 0.13411 | D141: 0.166918 | E141: 0.163661 | F141: 0.14285 | G141: 0.148252
A142: Tangible Book Value | B142: 0.130172 | C142: 0.148747 | D142: 0.165683 | E142: 0.183796 | F142: 0.204501 | G142: 0.215211
A143: Avg. Interest Earning Assets | B143: NA | C143: NA | D143: NA | E143: NA | F143: NA | G143: NA
A144: Avg. Interest Bearing Liabilities | B144: NA | C144: NA | D144: NA | E144: NA | F144: NA | G144: NA
A145: Common Equity | B145: 0.130172 | C145: 0.148747 | D145: 0.165683 | E145: 0.183796 | F145: 0.204501 | G145: 0.215211
A146: Total Equity | B146: 0.130158 | C146: 0.148731 | D146: 0.165665 | E146: 0.183916 | F146: 0.204832 | G146: 0.215529

Sheet Supplemental
A5: PT Bank Central Asia Tbk (JKSE:BBCA) > Financials > Supplemental
A7: In Millions of the reported currency, except per share items. | B7: Restatement: | C7: Latest Filings | E7: Period Type: | F7: Annual
B8: Currency: | C8: Reported Currency | E8: Conversion: | F8: Today's Spot Rate
B9: Order: | C9: Latest on Right | E9: Units: | F9: S&P Capital IQ (Default)
B10: Decimals: | C10: Capital IQ (Default)
A13: Supplemental
A14: For the Fiscal Period Ending | B14: 12 months Dec-31-2007 | C14: 12 months Dec-31-2008 | D14: 12 months Dec-31-2009 | E14: 12 months Dec-31-2010 | F14: 12 months Dec-31-2011 | G14: 12 months Dec-31-2012
A15: Currency | B15: IDR | C15: IDR | D15: IDR | E15: IDR | F15: IDR | G15: IDR
A16: Fair Value Measurements
A17: Fair Value Change Included in Earnings | B17: - | C17: - | D17: 69573 | E17: -13809 | F17: - | G17: -
A20: Filing Date | B20: 2009-03-01 | C20: 2010-03-05 | D20: 2011-03-01 | E20: 2013-02-20 | F20: 2013-03-28 | G20: 2013-03-28

Sheet Industry Specific
A5: PT Bank Central Asia Tbk (JKSE:BBCA) > Financials > Industry Specific
A7: In Millions of the reported currency, except per share items. | B7: Restatement: | C7: Latest Filings | E7: Period Type: | F7: Annual
B8: Currency: | C8: Reported Currency | E8: Conversion: | F8: Today's Spot Rate
B9: Order: | C9: Latest on Right | E9: Units: | F9: S&P Capital IQ (Default)
B10: Decimals: | C10: Capital IQ (Default)
A13: Industry Specific
A14: For the Fiscal Period Ending | B14: 12 months Dec-31-2007 | C14: 12 months Dec-31-2008 | D14: 12 months Dec-31-2009 | E14: 12 months Dec-31-2010 | F14: 12 months Dec-31-2011 | G14: 12 months Dec-31-2012
A15: Currency | B15: IDR | C15: IDR | D15: IDR | E15: IDR | F15: IDR | G15: IDR
A16: Capital Requirement and Financial Strength
A17: Tier 1 Capital | B17: 17095742 | C17: 20215658 | D17: 21670983 | E17: 25920836 | F17: - | G17: -
A18: Tier 2 Capital | B18: 2296615 | C18: 1677006 | D18: 1161603 | E18: 1801332 | F18: - | G18: -
A19: Total Capital | B19: 18590263 | C19: 20876066 | D19: 22832586 | E19: 27722168 | F19: - | G19: -
A21: Earning Assets and Liabilities
A22: Risk Adjusted Assets | B22: 96705929 | C22: 132276897 | D22: 148967979 | E22: 205349477 | F22: - | G22: -
A23: Net Interest Margin % | B23: 6.1 | C23: 6.6 | D23: 6.4 | E23: 5.3 | F23: - | G23: -
A24: Efficiency Ratio | B24: 66.7 | C24: 66.8 | D24: 68.7 | E24: - | F24: - | G24: -
A26: Non-Performing Loans and Assets
A27: Restructured Loans | B27: 89969 | C27: - | D27: - | E27: - | F27: - | G27: -
A28: Non Performing Loans | B28: 669697 | C28: 674769 | D28: 903058 | E28: 992927 | F28: - | G28: -
A29: Non Performing Assets | B29: 669697 | C29: 674769 | D29: 903058 | E29: 992927 | F29: - | G29: -
A30: Credit Exposure | B30: - | C30: - | D30: 278457478 | E30: 385509196 | F30: - | G30: -
A32: Charge-Offs
A33: Charge-Offs - Gross | B33: -214036 | C33: -147592 | D33: -345849 | E33: -254341 | F33: - | G33: -
A34: Charge-Offs - Recovered | B34: 11517 | C34: 13006 | D34: 61294 | E34: 56203 | F34: - | G34: -
A35: Charge-Offs - Net | B35: -202519 | C35: -134586 | D35: -284555 | E35: -198138 | F35: - | G35: -
A37: Composition of Loans
A38: Commercial Loans | B38: 49453427 | C38: 99334220 | D38: 107706995 | E38: 128096366 | F38: - | G38: -
A39: Consumer Loans | B39: 16689594 | C39: 1409286 | D39: 1944439 | E39: 3013929 | F39: - | G39: -
A40: Construction Loans | B40: - | C40: 3278017 | D40: 3602983 | E40: 3472224 | F40: - | G40: -
A41: Lease Finance | B41: 27737 | C41: 11532 | D41: 2158 | E41: 4884 | F41: - | G41: -
A42: Other Loans | B42: 17593505 | C42: 22133122 | D42: 28676366 | E42: 38582042 | F42: - | G42: -
A43: Total Loans | B43: 83764263 | C43: 126166177 | D43: 141932941 | E43: 173169445 | F43: - | G43: -
A45: Domestic Loans | B45: 83764263 | C45: 126166177 | D45: 141932941 | E45: 173169445 | F45: - | G45: -
A46: Impaired Loans | B46: - | C46: - | D46: - | E46: 123233723 | F46: - | G46: -
A47: Vehicle Loans | B47: - | C47: 7856000 | D47: - | E47: 13473000 | F47: - | G47: -
A48: Commercial Loans / Total Loans % | B48: 0.590388 | C48: 0.787328 | D48: 0.758858 | E48: 0.739716 | F48: - | G48: -
A49: Construction Loans / Total Loans % | B49: - | C49: 0.025981 | D49: 0.025385 | E49: 0.020051 | F49: - | G49: -
A50: Total Consumer Loans / Total Loans % | B50: 0.199244 | C50: 0.01117 | D50: 0.013699 | E50: 0.017404 | F50: - | G50: -
A51: Auto Loans / Total Loans % | B51: - | C51: 0.062267 | D51: - | E51: 0.077802 | F51: - | G51: -
A52: Total Real Estate Loans / Total Loans % | B52: - | C52: 0.025981 | D52: 0.025385 | E52: 0.020051 | F52: - | G52: -
A53: Other Loans / Total Loans % | B53: 0.210035 | C53: 0.175428 | D53: 0.202041 | E53: 0.222799 | F53: - | G53: -
A55: Composition of Deposits
A56: Demand Deposits | B56: 44502609 | C56: 48788838 | D56: 54076706 | E56: 66826129 | F56: - | G56: -
A57: Saving Deposits | B57: 94772219 | C57: 111774079 | D57: 128137595 | E57: 145553043 | F57: - | G57: -
A58: Time Deposits | B58: 50506390 | C58: 53014146 | D58: 65414352 | E58: 68144548 | F58: - | G58: -
A59: Other Deposits | B59: - | C59: - | D59: - | E59: 460165 | F59: - | G59: -
A60: Total Deposits | B60: 189781218 | C60: 213577063 | D60: 247628653 | E60: 280983885 | F60: - | G60: -
A62: Domestic Deposits | B62: 189781218 | C62: 213577063 | D62: 247628653 | E62: 280983885 | F62: - | G62: -
A63: Non-CD Deposits | B63: 139274828 | C63: 160562917 | D63: 182214301 | E63: 212379172 | F63: - | G63: -
A65: Savings Account Deposits / Total Deposits % | B65: 0.499376 | C65: 0.523343 | D65: 0.517458 | E65: 0.518012 | F65: - | G65: -
A66: Money Market and Savings Account Deposits / Total Deposits % | B66: 0.499376 | C66: 0.523343 | D66: 0.517458 | E66: 0.518012 | F66: - | G66: -
A67: Total Time Deposits / Total Deposits % | B67: 0.266129 | C67: 0.24822 | D67: 0.264163 | E67: 0.242521 | F67: - | G67: -
A68: Other Deposits / Total Deposits % | B68: - | C68: - | D68: - | E68: 0.001637 | F68: - | G68: -
A69: Non-CDs / Total Deposits % | B69: 0.73387 | C69: 0.751779 | D69: 0.735836 | E69: 0.755841 | F69: - | G69: -
A71: Cost of Funds
A72: Cost of Total Borrowings % | B72: 0.041 | C72: - | D72: 0.036 | E72: 0.03 | F72: - | G72: -
A74: Number of Customer Accounts (AUM)
A75: Other | B75: - | C75: - | D75: - | E75: 9000000 | F75: 10000000 | G75: -
A76: Total | B76: - | C76: - | D76: - | E76: 9000000 | F76: 10000000 | G76: -
A78: Other Data
A79: Assets Under Administration | B79: 8672564 | C79: - | D79: - | E79: - | F79: - | G79: -
A81: Interbank Data
A82: Federal Funds Sold and Related Transactions with Other Banks | B82: - | C82: 7909406 | D82: 11903845 | E82: 2650726 | F82: 2499443 | G82: 4483354
A83: Securities Purchased Under Agreements to Resell | B83: - | C83: - | D83: 669336 | E83: 3136335 | F83: 21201164 | G83: 34448535
A84: Federal Funds Purchased and Related Transactions with Other Banks | B84: - | C84: 4158059 | D84: 2908574 | E84: 3327833 | F84: 3684684 | G84: 2457419
A85: Securities Sold Under Agreements to Repurchase | B85: - | C85: 49892 | D85: - | E85: - | F85: - | G85: -
A88: Filing Date | B88: 2009-03-01 | C88: 2010-03-05 | D88: 2011-03-01 | E88: 2013-02-20 | F88: 2013-03-28 | G88: 2013-03-28

Sheet Pension OPEB
A5: PT Bank Central Asia Tbk (JKSE:BBCA) > Financials > Pension/OPEB
A7: In Millions of the reported currency, except per share items. | B7: Restatement: | C7: Latest Filings | E7: Period Type: | F7: Annual
B8: Currency: | C8: Reported Currency | E8: Conversion: | F8: Today's Spot Rate
B9: Order: | C9: Latest on Right | E9: Units: | F9: S&P Capital IQ (Default)
B10: Decimals: | C10: Capital IQ (Default)
A13: Pension/OPEB
A14: For the Fiscal Period Ending | B14: 12 months Dec-31-2007 | C14: 12 months Dec-31-2008 | D14: 12 months Dec-31-2009 | E14: 12 months Dec-31-2010 | F14: 12 months Dec-31-2011 | G14: 12 months Dec-31-2012
A15: Currency | B15: IDR | C15: IDR | D15: IDR | E15: IDR | F15: IDR | G15: IDR
A16: Pension Information - Total
A17: Defined Benefit Net Periodic Cost
A18: Def. Benefit Service Cost | B18: 71768 | C18: 75886 | D18: 231930 | E18: 188118 | F18: - | G18: -
A19: Def. Benefit Plan Interest Cost | B19: 117451 | C19: 110550 | D19: 341387 | E19: 269563 | F19: - | G19: -
A20: Def. Benefit Plan Other Cost | B20: 42087 | C20: 39418 | D20: 140510 | E20: 81632 | F20: - | G20: -
A21: Def. Benefit Plan Total Cost | B21: 231306 | C21: 225854 | D21: 713827 | E21: 539313 | F21: - | G21: -
A23: Total Pension Expense | B23: 231306 | C23: 225854 | D23: 713827 | E23: 539313 | F23: - | G23: -
A25: Defined Benefit Obligation
A26: Proj. Benefit Obligation (Pension) | B26: 1142263 | C26: 1181319 | D26: 2450576 | E26: 3322901 | F26: - | G26: -
A28: Weighted Avg. Assumptions on Def. Benefit Obligation
A29: PBO Assumed Rate of Return - Min | B29: 0.1 | C29: 0.12 | D29: 0.11 | E29: 0.09 | F29: - | G29: -
A30: PBO Assumed Rate of Return - Max | B30: 0.1 | C30: 0.12 | D30: 0.11 | E30: 0.09 | F30: - | G30: -
A31: Rate of PBO Compensation Increase - Min | B31: 0.08 | C31: 0.12 | D31: 0.08 | E31: 0.08 | F31: - | G31: -
A32: Rate of PBO Compensation Increase - Max | B32: 0.08 | C32: 0.12 | D32: 0.08 | E32: 0.08 | F32: - | G32: -
A34: Adj. for Liability Recognized on Balance Sheet
A35: Unrecog. Prior Plan Service Cost | B35: 237510 | C35: 211266 | D35: 472805 | E35: 527098 | F35: - | G35: -
A36: Other Adj. (Net Benefit Asset/Liab.) | B36: 273564 | C36: 177450 | D36: 587012 | E36: 1068787 | F36: - | G36: -
A37: Net Asset/Liability Recognized on Balance Sheet | B37: -631189 | C37: -792603 | D37: -1390759 | E37: -1727016 | F37: - | G37: -
A39: Other Pension Related Items
A40: Benefit Info Date | B40: - | C40: - | D40: 2010-02-16 | E40: - | F40: 2012-02-27 | G40: -
A42: Pension Information - Domestic
A43: Defined Benefit Net Periodic Cost
A44: Def. Benefit Service Cost | B44: 71768 | C44: 75886 | D44: 231930 | E44: 188118 | F44: - | G44: -
A45: Def. Benefit Interest Cost | B45: 117451 | C45: 110550 | D45: 341387 | E45: 269563 | F45: - | G45: -
A46: Def. Benefit Other Cost | B46: 42087 | C46: 39418 | D46: 140510 | E46: 81632 | F46: - | G46: -
A47: Def. Benefit Total Cost | B47: 231306 | C47: 225854 | D47: 713827 | E47: 539313 | F47: - | G47: -
A49: Defined Benefit Obligation
A50: Proj. Benefit Obligation (Pension) - Domestic | B50: 1142263 | C50: 1181319 | D50: 2450576 | E50: 3322901 | F50: - | G50: -
A52: Weighted Avg. Assumptions on Def. Benefit Obligation
A53: PBO Assumed Rate of Return - Min | B53: 0.1 | C53: 0.12 | D53: 0.11 | E53: 0.09 | F53: - | G53: -
A54: PBO Assumed Rate of Return - Max | B54: 0.1 | C54: 0.12 | D54: 0.11 | E54: 0.09 | F54: - | G54: -
A55: Rate of PBO Compensation Increase - Min | B55: 0.08 | C55: 0.12 | D55: 0.08 | E55: 0.08 | F55: - | G55: -
A56: Rate of PBO Compensation Increase - Max | B56: 0.08 | C56: 0.12 | D56: 0.08 | E56: 0.08 | F56: - | G56: -
A58: Adj. for Liability Recognized on Balance Sheet
A59: Unrecog. Prior Plan Service Cost | B59: 237510 | C59: 211266 | D59: 472805 | E59: 527098 | F59: - | G59: -
A60: Other Adj. (Net Benefit Asset/Liab.) | B60: 273564 | C60: 177450 | D60: 587012 | E60: 1068787 | F60: - | G60: -
A61: Net Asset/Liability Recognized on Balance Sheet | B61: -631189 | C61: -792603 | D61: -1390759 | E61: -1727016 | F61: - | G61: -
A63: Other Pension Related Items
A64: Benefit Info Date | B64: - | C64: - | D64: 2010-02-16 | E64: - | F64: 2012-02-27 | G64: -

Sheet Segments
A5: PT Bank Central Asia Tbk (JKSE:BBCA) > Financials > Segments
A7: In Millions of the reported currency. | B7: View By: | C7: Line Items | E7: Restatement: | F7: Latest Filings
B8: Period Type: | C8: Annual | E8: Order: | F8: Latest on Right
B9: Currency: | C9: Reported Currency | E9: Conversion: | F9: Today's Spot Rate
B10: Units: | C10: S&P Capital IQ (Default) | E10: Decimals: | F10: Capital IQ (Default)
A13: Business Segments
A14: For the Fiscal Period Ending | B14: Reclassified 12 months Dec-31-2007 | C14: Reclassified 12 months Dec-31-2008 | D14: Reclassified 12 months Dec-31-2009 | E14: 12 months Dec-31-2010 | F14: Reclassified 12 months Dec-31-2011 | G14: 12 months Dec-31-2012
A15: Currency | B15: IDR | C15: IDR | D15: IDR | E15: IDR | F15: IDR | G15: IDR
A16: Revenues
A17: Loan | B17: 7662366 | C17: 10468654 | D17: 13104080 | E17: 14771330 | F17: 17523854 | G17: 22392720
A18: Treasury | B18: 8444948 | C18: 8495546 | D18: 9392224 | E18: 7254952 | F18: 9833513 | G18: 8346094
A19: Others | B19: 2216552 | C19: 2841583 | D19: 3722372 | E19: 3943378 | F19: 4492836 | G19: 5334469
A20: Total Revenues | B20: 18323866 | C20: 21805783 | D20: 26218676 | E20: 25969660 | F20: 31850203 | G20: 36073283
A22: Assets
A23: Loan | B23: 80702481 | C23: 110026861 | D23: 119595661 | E23: 150016746 | F23: 198440354 | G23: 252760457
A24: Treasury | B24: 120214491 | C24: 112437248 | D24: 141344211 | E24: 149580858 | F24: 154455758 | G24: 152280908
A25: Others | B25: 17088036 | C25: 23105747 | D25: 21452452 | E25: 24821465 | F25: 29012241 | G25: 37952832
A26: Total Assets | B26: 218005008 | C26: 245569856 | D26: 282392324 | E26: 324419069 | F26: 381908353 | G26: 442994197
A29: Filing Date | B29: 2009-03-01 | C29: 2010-03-05 | D29: 2011-03-01 | E29: 2013-02-20 | F29: 2013-03-28 | G29: 2013-03-28
A32: Geographic Segments
A33: For the Fiscal Period Ending | B33: Reclassified 12 months Dec-31-2007 | C33: Reclassified 12 months Dec-31-2008 | D33: Reclassified 12 months Dec-31-2009 | E33: 12 months Dec-31-2010 | F33: Reclassified 12 months Dec-31-2011 | G33: 12 months Dec-31-2012
A34: Currency | B34: IDR | C34: IDR | D34: IDR | E34: IDR | F34: IDR | G34: IDR
A35: Revenues
A36: Sumatera | B36: 675652 | C36: 890142 | D36: 1077394 | E36: 1085345 | F36: 1445176 | G36: 1751088
A37: Java | B37: 11081653 | C37: 12915936 | D37: 17645278 | E37: 17812707 | F37: 21441011 | G37: 24265595
A38: Kalimantan | B38: 174440 | C38: 245196 | D38: 317749 | E38: 352201 | F38: 478761 | G38: 578801
A39: Eastern Indonesia | B39: 343846 | C39: 452011 | D39: 584243 | E39: 607764 | F39: 798919 | G39: 945641
A40: Overseas | B40: 31481 | C40: 29102 | D40: 34196 | E40: 34079 | F40: 46153 | G40: 4639
A41: Total Revenues | B41: 12307072 | C41: 14532387 | D41: 19658860 | E41: 19892096 | F41: 24210020 | G41: 27545764
A43: Operating Profit Before Tax
A44: Sumatera | B44: - | C44: - | D44: -305714 | E44: 487127 | F44: 883507 | G44: 1081596
A45: Java | B45: - | C45: - | D45: 9107166 | E45: 9455247 | F45: 11650760 | G45: 12258893
A46: Kalimantan | B46: - | C46: - | D46: -117212 | E46: 209305 | F46: 317061 | G46: 371320
A47: Eastern Indonesia | B47: - | C47: - | D47: -38953 | E47: 248088 | F47: 473523 | G47: 565734
A48: Overseas | B48: - | C48: - | D48: 9404 | E48: 423 | F48: -28076 | G48: -21975
A49: Total Operating Profit Before Tax | B49: - | C49: - | D49: 8654691 | E49: 10400190 | F49: 13296775 | G49: 14255568
A51: Interest Expense
A52: Sumatera | B52: -541410 | C52: -564402 | D52: -660879 | E52: -620220 | F52: -620689 | G52: -577613
A53: Java | B53: -5800584 | C53: -5930993 | D53: -6838764 | E53: -6594082 | F53: -6570769 | G53: -6552345
A54: Kalimantan | B54: -166349 | C54: -180418 | D54: -215329 | E54: -207027 | F54: -220123 | G54: -201669
A55: Eastern Indonesia | B55: -239733 | C55: -269020 | D55: -318209 | E55: -302445 | F55: -318576 | G55: -315540
A56: Total Interest Expense | B56: -6748076 | C56: -6944833 | D56: -8033181 | E56: -7723774 | F56: -7730157 | G56: -7647167
A58: Net Profit Before Tax
A59: Sumatera | B59: 343785 | C59: 512750 | D59: 581186 | E59: 497463 | F59: 892997 | G59: 1083847
A60: Java | B60: 5791043 | C60: 6813498 | D60: 7887444 | E60: 9687747 | F60: 11947837 | G60: 12681694
A61: Kalimantan | B61: 81848 | C61: 137727 | D61: 155971 | E61: 210556 | F61: 320239 | G61: 369018
A62: Eastern Indonesia | B62: 169768 | C62: 247402 | D62: 311090 | E62: 251462 | F62: 480637 | G62: 571489
A63: Overseas | B63: 15186 | C63: 8666 | D63: 9401 | E63: 6041 | F63: -22952 | G63: -20002
A64: Total Net Profit Before Tax | B64: 6401630 | C64: 7720043 | D64: 8945092 | E64: 10653269 | F64: 13618758 | G64: 14686046
A66: Tax Expense
A67: Java | B67: 1910218 | C67: - | D67: - | E67: - | F67: - | G67: -
A68: Overseas | B68: 2160 | C68: - | D68: - | E68: - | F68: - | G68: -
A69: Total Tax Expense | B69: 1912378 | C69: - | D69: - | E69: - | F69: - | G69: -
A71: Assets
A72: Sumatera | B72: 5110976 | C72: 18634457 | D72: 6184592 | E72: 8690486 | F72: 28785197 | G72: 33332496
A73: Java | B73: 208445002 | C73: 211884808 | D73: 269473365 | E73: 305947913 | F73: 327946220 | G73: 381583099
A74: Kalimantan | B74: 1381127 | C74: 5810827 | D74: 2067907 | E74: 3281828 | F74: 10466806 | G74: 11095133
A75: Eastern Indonesia | B75: 2696932 | C75: 8802514 | D75: 4293989 | E75: 6130877 | F75: 14369868 | G75: 16635258
A76: Overseas | B76: 370971 | C76: 437250 | D76: 372471 | E76: 367965 | F76: 340262 | G76: 348211
A77: Total Assets | B77: 218005008 | C77: 245569856 | D77: 282392324 | E77: 324419069 | F77: 381908353 | G77: 442994197
A79: Depreciation & Amortization
A80: Sumatera | B80: - | C80: - | D80: - | E80: - | F80: 18418 | G80: 19005
A81: Java | B81: - | C81: - | D81: - | E81: - | F81: 705931 | G81: 824532
A82: Kalimantan | B82: - | C82: - | D82: - | E82: - | F82: 7106 | G82: 7511
A83: Eastern Indonesia | B83: - | C83: - | D83: - | E83: - | F83: 9885 | G83: 12528
A84: Overseas | B84: - | C84: - | D84: - | E84: - | F84: 1497 | G84: 991
A85: Total Depreciation & Amortization | B85: - | C85: - | D85: - | E85: - | F85: 742837 | G85: 864567
A88: Filing Date | B88: 2009-03-01 | C88: 2010-03-05 | D88: 2011-03-01 | E88: 2013-02-20 | F88: 2013-03-28 | G88: 2013-03-28
